Workbook

Sheet Version
A1: Version history notes for the master temperature checks spreadsheet
A2: For more information or to request upgrades, please contact:
A3: Stewart Rounds, USGS Oregon Water Science Center, 503-251-3280, sarounds@usgs.gov
A5: Version 1.03 (24-Sep-2018)
A6: Changed the formulas on the Print-out worksheet to increase the number of dates per sensor that are allowed in the drop-down list.
A7: Now, up to 73 dates can be accommodated; the previous maximum was 12.
A9: Version 1.02 (3-Nov-2010)
A10: Columns were added to the Temperature Checks worksheet to accommodate two additional pairs of temperaure checks, for a
A11: total of twelve. In addition, the entry pairs on the Temperature Checks worksheet now can be entered in any order and still show up
A12: correctly on the Print-out worksheet. The Print-out worksheet was modified to accommodate the two new pairs of check data.
A14: Version 1.01 (11-Nov-2009)
A15: A "Print-out" worksheet was added to allow users to examine the full range of interpolated temperature checks for a selected
A16: probe and check date. Just input the field probe ID and select the date of the temperature check from the drop-down list, and the
A17: rest of the worksheet will be populated automatically. This can be printed out for your convenience.
A19: Version 1.00 (01-Nov-2009)
A20: This spreadsheet is used to store comparison data for temperature probes that are checked against an NIST-certified thermometer.
A21: The data in this spreadsheet can be imported into the water-quality monitor correction spreadsheet so that selected temperature
A22: corrections can be extracted and used to correct measured data in ADAPS. Version 2.12 or higher of the water-quality correction
A23: spreadsheet is required to take advantage of this master temperature checks spreadsheet.

Sheet Temperature Checks
A1: Temperature Probe Performance Checks | F1: Please do not use "drag and drop." Turn it off under Tools/Options/Edit or ExcelOptions/Advanced/Edit. Also, do not cut/paste. Use copy/paste then delete to move input data.
A2: version 1.03 (24-Sep-2018) | E2: For sake of readability, please enter the temperature checks from left to right and from low temperatures to high temperatures.
A3: Field Probe ID | B3: Date of NIST check (MM DD YYYY) | C3: OBSERVER | D3: NIST Certified Probe ID | E3: NIST reading #1 | F3: Field probe reading #1 | G3: NIST reading #2 | H3: Field probe reading #2 | I3: NIST reading #3 | J3: Field probe reading #3 | K3: NIST reading #4 | L3: Field probe reading #4 | M3: NIST reading #5 | N3: Field probe reading #5 | O3: NIST reading #6 | P3: Field probe reading #6 | Q3: NIST reading #7 | R3: Field probe reading #7 | S3: NIST reading #8 | T3: Field probe reading #8 | U3: NIST reading #9 | V3: Field probe reading #9 | W3: NIST reading #10 | X3: Field probe reading #10 | Y3: NIST reading #11 | Z3: Field probe reading #11 | AA3: NIST reading #12 | AB3: Field probe reading #12 | AC3: Remarks
CL4: Figuring out the ranks and positions after the first one
AD5: Sorted Field Probe Readings (ascending order) | AP5: Sorted NIST Probe Readings (ascending order) | BB5: Field probe readings extracted from user input | BN5: Ranks of unsorted field probe readings (ascending) | BZ5: Sorted positions to put in ascending order | CL5: Available ranks, minus 2 | CW5: TmpString | CX5: Ranks to use, no blanks
A6: 176194 | B6: 12 12 2017 | C6: MAM/WDM | D6: 11506500 | E6: 0.22 | F6: 0.3 | G6: 4.95 | H6: 5 | I6: 10.05 | J6: 10.1 | K6: 15.03 | L6: 15 | M6: 20.01 | N6: 20.1 | O6: 25.1 | P6: 25.2 | AD6: =IF(BZ6="","",OFFSET($D6,0,2*BZ6)) -> 0.3 | AE6: 5 | AF6: 10.1 | AG6: 15 | AH6: 20.1 | AI6: 25.2 | AP6: =IF(BZ6="","",IF(COUNT(OFFSET($D6,0,2*BZ6-1,1,2))=2,OFFSET($D6,0,2*BZ6-1),"")) -> 0.22 | AQ6: =IF(CA6="","",IF(COUNT(OFFSET($D6,0,2*CA6-1,1,2))=2,OFFSET($D6,0,2*CA6-1),"")) -> 4.95 | AR6: 10.05 | AS6: 15.03 | AT6: 20.01 | AU6: 25.1 | BB6: =IF(AND(E6<>"",F6<>""),F6,"") -> 0.3 | BC6: =IF(AND(G6<>"",H6<>""),H6,"") -> 5 | BD6: =IF(AND(I6<>"",J6<>""),J6,"") -> 10.1 | BE6: =IF(AND(K6<>"",L6<>""),L6,"") -> 15 | BF6: =IF(AND(M6<>"",N6<>""),N6,"") -> 20.1 | BG6: =IF(AND(O6<>"",P6<>""),P6,"") -> 25.2 | BH6: =IF(AND(Q6<>"",R6<>""),R6,"") ->  | BI6: =IF(AND(S6<>"",T6<>""),T6,"") ->  | BJ6: =IF(AND(U6<>"",V6<>""),V6,"") ->  | BK6: =IF(AND(W6<>"",X6<>""),X6,"") ->  | BL6: =IF(AND(Y6<>"",Z6<>""),Z6,"") ->  | BM6: =IF(AND(AA6<>"",AB6<>""),AB6,"") ->  | BN6: =IF(BB6<>"",RANK(BB6,$BB6:$BM6,1),"") -> 1 | BO6: 2 | BP6: 3 | BQ6: 4 | BR6: 5 | BS6: 6 | BZ6: =IF(ISNA(MATCH(1,$BN6:$BY6,0)),"",MATCH(1,$BN6:$BY6,0)) -> 1 | CA6: =IF(COUNT($CL6:$CV6)<1,"",MATCH(VALUE(CX6),$BN6:$BY6,0)) -> 2 | CB6: =IF(COUNT($CL6:$CV6)<2,"",MATCH(VALUE(CY6),$BN6:$BY6,0)) -> 3 | CC6: =IF(COUNT($CL6:$CV6)<3,"",MATCH(VALUE(CZ6),$BN6:$BY6,0)) -> 4 | CD6: =IF(COUNT($CL6:$CV6)<4,"",MATCH(VALUE(DA6),$BN6:$BY6,0)) -> 5 | CE6: =IF(COUNT($CL6:$CV6)<5,"",MATCH(VALUE(DB6),$BN6:$BY6,0)) -> 6 | CF6: =IF(COUNT($CL6:$CV6)<6,"",MATCH(VALUE(DC6),$BN6:$BY6,0)) ->  | CG6: =IF(COUNT($CL6:$CV6)<7,"",MATCH(VALUE(DD6),$BN6:$BY6,0)) ->  | CH6: =IF(COUNT($CL6:$CV6)<8,"",MATCH(VALUE(DE6),$BN6:$BY6,0)) ->  | CI6: =IF(COUNT($CL6:$CV6)<9,"",MATCH(VALUE(DF6),$BN6:$BY6,0)) ->  | CJ6: =IF(COUNT($CL6:$CV6)<10,"",MATCH(VALUE(DG6),$BN6:$BY6,0)) ->  | CK6: =IF(COUNT($CL6:$CV6)<11,"",MATCH(VALUE(DH6),$BN6:$BY6,0)) ->  | CL6: =IF(AND(COUNT($BN6:$BY6)>1,NOT(ISNA(MATCH(2,$BN6:$BY6,0)))),0,"") -> 0 | CM6: =IF(AND(COUNT($BN6:$BY6)>2,NOT(ISNA(MATCH(3,$BN6:$BY6,0)))),1,"") -> 1 | CN6: =IF(AND(COUNT($BN6:$BY6)>3,NOT(ISNA(MATCH(4,$BN6:$BY6,0)))),2,"") -> 2 | CO6: =IF(AND(COUNT($BN6:$BY6)>4,NOT(ISNA(MATCH(5,$BN6:$BY6,0)))),3,"") -> 3 | CP6: =IF(AND(COUNT($BN6:$BY6)>5,NOT(ISNA(MATCH(6,$BN6:$BY6,0)))),4,"") -> 4 | CQ6: =IF(AND(COUNT($BN6:$BY6)>6,NOT(ISNA(MATCH(7,$BN6:$BY6,0)))),5,"") ->  | CR6: =IF(AND(COUNT($BN6:$BY6)>7,NOT(ISNA(MATCH(8,$BN6:$BY6,0)))),6,"") ->  | CS6: =IF(AND(COUNT($BN6:$BY6)>8,NOT(ISNA(MATCH(9,$BN6:$BY6,0)))),7,"") ->  | CT6: =IF(AND(COUNT($BN6:$BY6)>9,NOT(ISNA(MATCH(10,$BN6:$BY6,0)))),8,"") ->  | CU6: =IF(AND(COUNT($BN6:$BY6)>10,NOT(ISNA(MATCH(11,$BN6:$BY6,0)))),9,"") ->  | CV6: =IF(AND(COUNT($BN6:$BY6)>11,NOT(ISNA(MATCH(12,$BN6:$BY6,0)))),10,"") ->  | CW6: =CONCATENATE(CL6,CM6,CN6,CO6,CP6,CQ6,CR6,CS6,CT6,CU6,IF(CV6=10,"A","")) -> 01234 | CX6: =IF(MID($CW6,1,1)="","",IF(MID($CW6,1,1)="A",12,MID($CW6,1,1)+2)) -> 2 | CY6: =IF(MID($CW6,2,1)="","",IF(MID($CW6,2,1)="A",12,MID($CW6,2,1)+2)) -> 3 | CZ6: =IF(MID($CW6,3,1)="","",IF(MID($CW6,3,1)="A",12,MID($CW6,3,1)+2)) -> 4 | DA6: =IF(MID($CW6,4,1)="","",IF(MID($CW6,4,1)="A",12,MID($CW6,4,1)+2)) -> 5 | DB6: =IF(MID($CW6,5,1)="","",IF(MID($CW6,5,1)="A",12,MID($CW6,5,1)+2)) -> 6 | DC6: =IF(MID($CW6,6,1)="","",IF(MID($CW6,6,1)="A",12,MID($CW6,6,1)+2)) ->  | DD6: =IF(MID($CW6,7,1)="","",IF(MID($CW6,7,1)="A",12,MID($CW6,7,1)+2)) ->  | DE6: =IF(MID($CW6,8,1)="","",IF(MID($CW6,8,1)="A",12,MID($CW6,8,1)+2)) ->  | DF6: =IF(MID($CW6,9,1)="","",IF(MID($CW6,9,1)="A",12,MID($CW6,9,1)+2)) ->  | DG6: =IF(MID($CW6,10,1)="","",IF(MID($CW6,10,1)="A",12,MID($CW6,10,1)+2)) ->  | DH6: =IF(MID($CW6,11,1)="","",IF(MID($CW6,11,1)="A",12,MID($CW6,11,1)+2)) -> 
A7: 176194 | B7: 03 27 2018 | C7: LMH | D7: 11506500 | E7: 0.35 | F7: 0.4 | G7: 5.05 | H7: 5.1 | I7: 10.097 | J7: 10.1 | K7: 15.092 | L7: 15.1 | M7: 20.047 | N7: 20.1 | O7: 25.07 | P7: 25 | AD7: =IF(BZ7="","",OFFSET($D7,0,2*BZ7)) -> 0.4 | AE7: =IF(CA7="","",OFFSET($D7,0,2*CA7)) -> 5.1 | AF7: =IF(CB7="","",OFFSET($D7,0,2*CB7)) -> 10.1 | AG7: =IF(CC7="","",OFFSET($D7,0,2*CC7)) -> 15.1 | AH7: =IF(CD7="","",OFFSET($D7,0,2*CD7)) -> 20.1 | AI7: =IF(CE7="","",OFFSET($D7,0,2*CE7)) -> 25 | AJ7: =IF(CF7="","",OFFSET($D7,0,2*CF7)) ->  | AK7: =IF(CG7="","",OFFSET($D7,0,2*CG7)) ->  | AL7: =IF(CH7="","",OFFSET($D7,0,2*CH7)) ->  | AM7: =IF(CI7="","",OFFSET($D7,0,2*CI7)) ->  | AN7: =IF(CJ7="","",OFFSET($D7,0,2*CJ7)) ->  | AO7: =IF(CK7="","",OFFSET($D7,0,2*CK7)) ->  | AP7: =IF(BZ7="","",IF(COUNT(OFFSET($D7,0,2*BZ7-1,1,2))=2,OFFSET($D7,0,2*BZ7-1),"")) -> 0.35 | AQ7: =IF(CA7="","",IF(COUNT(OFFSET($D7,0,2*CA7-1,1,2))=2,OFFSET($D7,0,2*CA7-1),"")) -> 5.05 | AR7: =IF(CB7="","",IF(COUNT(OFFSET($D7,0,2*CB7-1,1,2))=2,OFFSET($D7,0,2*CB7-1),"")) -> 10.097 | AS7: =IF(CC7="","",IF(COUNT(OFFSET($D7,0,2*CC7-1,1,2))=2,OFFSET($D7,0,2*CC7-1),"")) -> 15.092 | AT7: =IF(CD7="","",IF(COUNT(OFFSET($D7,0,2*CD7-1,1,2))=2,OFFSET($D7,0,2*CD7-1),"")) -> 20.047 | AU7: =IF(CE7="","",IF(COUNT(OFFSET($D7,0,2*CE7-1,1,2))=2,OFFSET($D7,0,2*CE7-1),"")) -> 25.07 | AV7: =IF(CF7="","",IF(COUNT(OFFSET($D7,0,2*CF7-1,1,2))=2,OFFSET($D7,0,2*CF7-1),"")) ->  | AW7: =IF(CG7="","",IF(COUNT(OFFSET($D7,0,2*CG7-1,1,2))=2,OFFSET($D7,0,2*CG7-1),"")) ->  | AX7: =IF(CH7="","",IF(COUNT(OFFSET($D7,0,2*CH7-1,1,2))=2,OFFSET($D7,0,2*CH7-1),"")) ->  | AY7: =IF(CI7="","",IF(COUNT(OFFSET($D7,0,2*CI7-1,1,2))=2,OFFSET($D7,0,2*CI7-1),"")) ->  | AZ7: =IF(CJ7="","",IF(COUNT(OFFSET($D7,0,2*CJ7-1,1,2))=2,OFFSET($D7,0,2*CJ7-1),"")) ->  | BA7: =IF(CK7="","",IF(COUNT(OFFSET($D7,0,2*CK7-1,1,2))=2,OFFSET($D7,0,2*CK7-1),"")) ->  | BB7: =IF(AND(E7<>"",F7<>""),F7,"") -> 0.4 | BC7: =IF(AND(G7<>"",H7<>""),H7,"") -> 5.1 | BD7: =IF(AND(I7<>"",J7<>""),J7,"") -> 10.1 | BE7: =IF(AND(K7<>"",L7<>""),L7,"") -> 15.1 | BF7: =IF(AND(M7<>"",N7<>""),N7,"") -> 20.1 | BG7: =IF(AND(O7<>"",P7<>""),P7,"") -> 25 | BH7: =IF(AND(Q7<>"",R7<>""),R7,"") ->  | BI7: =IF(AND(S7<>"",T7<>""),T7,"") ->  | BJ7: =IF(AND(U7<>"",V7<>""),V7,"") ->  | BK7: =IF(AND(W7<>"",X7<>""),X7,"") ->  | BL7: =IF(AND(Y7<>"",Z7<>""),Z7,"") ->  | BM7: =IF(AND(AA7<>"",AB7<>""),AB7,"") ->  | BN7: =IF(BB7<>"",RANK(BB7,$BB7:$BM7,1),"") -> 1 | BO7: =IF(BC7<>"",RANK(BC7,$BB7:$BM7,1),"") -> 2 | BP7: =IF(BD7<>"",RANK(BD7,$BB7:$BM7,1),"") -> 3 | BQ7: =IF(BE7<>"",RANK(BE7,$BB7:$BM7,1),"") -> 4 | BR7: =IF(BF7<>"",RANK(BF7,$BB7:$BM7,1),"") -> 5 | BS7: =IF(BG7<>"",RANK(BG7,$BB7:$BM7,1),"") -> 6 | BT7: =IF(BH7<>"",RANK(BH7,$BB7:$BM7,1),"") ->  | BU7: =IF(BI7<>"",RANK(BI7,$BB7:$BM7,1),"") ->  | BV7: =IF(BJ7<>"",RANK(BJ7,$BB7:$BM7,1),"") ->  | BW7: =IF(BK7<>"",RANK(BK7,$BB7:$BM7,1),"") ->  | BX7: =IF(BL7<>"",RANK(BL7,$BB7:$BM7,1),"") ->  | BY7: =IF(BM7<>"",RANK(BM7,$BB7:$BM7,1),"") ->  | BZ7: =IF(ISNA(MATCH(1,$BN7:$BY7,0)),"",MATCH(1,$BN7:$BY7,0)) -> 1 | CA7: =IF(COUNT($CL7:$CV7)<1,"",MATCH(VALUE(CX7),$BN7:$BY7,0)) -> 2 | CB7: =IF(COUNT($CL7:$CV7)<2,"",MATCH(VALUE(CY7),$BN7:$BY7,0)) -> 3 | CC7: =IF(COUNT($CL7:$CV7)<3,"",MATCH(VALUE(CZ7),$BN7:$BY7,0)) -> 4 | CD7: =IF(COUNT($CL7:$CV7)<4,"",MATCH(VALUE(DA7),$BN7:$BY7,0)) -> 5 | CE7: =IF(COUNT($CL7:$CV7)<5,"",MATCH(VALUE(DB7),$BN7:$BY7,0)) -> 6 | CF7: =IF(COUNT($CL7:$CV7)<6,"",MATCH(VALUE(DC7),$BN7:$BY7,0)) ->  | CG7: =IF(COUNT($CL7:$CV7)<7,"",MATCH(VALUE(DD7),$BN7:$BY7,0)) ->  | CH7: =IF(COUNT($CL7:$CV7)<8,"",MATCH(VALUE(DE7),$BN7:$BY7,0)) ->  | CI7: =IF(COUNT($CL7:$CV7)<9,"",MATCH(VALUE(DF7),$BN7:$BY7,0)) ->  | CJ7: =IF(COUNT($CL7:$CV7)<10,"",MATCH(VALUE(DG7),$BN7:$BY7,0)) ->  | CK7: =IF(COUNT($CL7:$CV7)<11,"",MATCH(VALUE(DH7),$BN7:$BY7,0)) ->  | CL7: =IF(AND(COUNT($BN7:$BY7)>1,NOT(ISNA(MATCH(2,$BN7:$BY7,0)))),0,"") -> 0 | CM7: =IF(AND(COUNT($BN7:$BY7)>2,NOT(ISNA(MATCH(3,$BN7:$BY7,0)))),1,"") -> 1 | CN7: =IF(AND(COUNT($BN7:$BY7)>3,NOT(ISNA(MATCH(4,$BN7:$BY7,0)))),2,"") -> 2 | CO7: =IF(AND(COUNT($BN7:$BY7)>4,NOT(ISNA(MATCH(5,$BN7:$BY7,0)))),3,"") -> 3 | CP7: =IF(AND(COUNT($BN7:$BY7)>5,NOT(ISNA(MATCH(6,$BN7:$BY7,0)))),4,"") -> 4 | CQ7: =IF(AND(COUNT($BN7:$BY7)>6,NOT(ISNA(MATCH(7,$BN7:$BY7,0)))),5,"") ->  | CR7: =IF(AND(COUNT($BN7:$BY7)>7,NOT(ISNA(MATCH(8,$BN7:$BY7,0)))),6,"") ->  | CS7: =IF(AND(COUNT($BN7:$BY7)>8,NOT(ISNA(MATCH(9,$BN7:$BY7,0)))),7,"") ->  | CT7: =IF(AND(COUNT($BN7:$BY7)>9,NOT(ISNA(MATCH(10,$BN7:$BY7,0)))),8,"") ->  | CU7: =IF(AND(COUNT($BN7:$BY7)>10,NOT(ISNA(MATCH(11,$BN7:$BY7,0)))),9,"") ->  | CV7: =IF(AND(COUNT($BN7:$BY7)>11,NOT(ISNA(MATCH(12,$BN7:$BY7,0)))),10,"") ->  | CW7: =CONCATENATE(CL7,CM7,CN7,CO7,CP7,CQ7,CR7,CS7,CT7,CU7,IF(CV7=10,"A","")) -> 01234 | CX7: =IF(MID($CW7,1,1)="","",IF(MID($CW7,1,1)="A",12,MID($CW7,1,1)+2)) -> 2 | CY7: =IF(MID($CW7,2,1)="","",IF(MID($CW7,2,1)="A",12,MID($CW7,2,1)+2)) -> 3 | CZ7: =IF(MID($CW7,3,1)="","",IF(MID($CW7,3,1)="A",12,MID($CW7,3,1)+2)) -> 4 | DA7: =IF(MID($CW7,4,1)="","",IF(MID($CW7,4,1)="A",12,MID($CW7,4,1)+2)) -> 5 | DB7: =IF(MID($CW7,5,1)="","",IF(MID($CW7,5,1)="A",12,MID($CW7,5,1)+2)) -> 6 | DC7: =IF(MID($CW7,6,1)="","",IF(MID($CW7,6,1)="A",12,MID($CW7,6,1)+2)) ->  | DD7: =IF(MID($CW7,7,1)="","",IF(MID($CW7,7,1)="A",12,MID($CW7,7,1)+2)) ->  | DE7: =IF(MID($CW7,8,1)="","",IF(MID($CW7,8,1)="A",12,MID($CW7,8,1)+2)) ->  | DF7: =IF(MID($CW7,9,1)="","",IF(MID($CW7,9,1)="A",12,MID($CW7,9,1)+2)) ->  | DG7: =IF(MID($CW7,10,1)="","",IF(MID($CW7,10,1)="A",12,MID($CW7,10,1)+2)) ->  | DH7: =IF(MID($CW7,11,1)="","",IF(MID($CW7,11,1)="A",12,MID($CW7,11,1)+2)) -> 
A8: 2475446 | B8: 5 10 2018 | C8: WDM | D8: 11506500 | E8: 0 | F8: 0 | G8: 5 | H8: 5 | I8: 10 | J8: 10.1 | K8: 15 | L8: 15 | M8: 20 | N8: 20.1 | O8: 25 | P8: 25.1 | Q8: 30 | R8: 30.1 | AD8: 0 | AE8: 5 | AF8: 10.1 | AG8: 15 | AH8: 20.1 | AI8: 25.1 | AJ8: 30.1 | AP8: 0 | AQ8: 5 | AR8: 10 | AS8: 15 | AT8: 20 | AU8: 25 | AV8: 30 | BB8: 0 | BC8: 5 | BD8: 10.1 | BE8: 15 | BF8: 20.1 | BG8: 25.1 | BH8: 30.1 | BN8: 1 | BO8: 2 | BP8: 3 | BQ8: 4 | BR8: 5 | BS8: 6 | BT8: 7 | BZ8: 1 | CA8: 2 | CB8: 3 | CC8: 4 | CD8: 5 | CE8: 6 | CF8: 7 | CL8: 0 | CM8: 1 | CN8: 2 | CO8: 3 | CP8: 4 | CQ8: 5 | CW8: 012345 | CX8: 2 | CY8: 3 | CZ8: 4 | DA8: 5 | DB8: 6 | DC8: 7
A9: 176194 | B9: 6 11 2018 | C9: MAM | D9: 11506500 | E9: 0.03 | F9: 0.1 | G9: 4.98 | H9: 5 | I9: 10 | J9: 10 | K9: 15.01 | L9: 15 | M9: 20.03 | N9: 20 | O9: 25.1 | P9: 25.2 | AD9: 0.1 | AE9: 5 | AF9: 10 | AG9: 15 | AH9: 20 | AI9: 25.2 | AP9: 0.03 | AQ9: 4.98 | AR9: 10 | AS9: 15.01 | AT9: 20.03 | AU9: 25.1 | BB9: 0.1 | BC9: 5 | BD9: 10 | BE9: 15 | BF9: 20 | BG9: 25.2 | BN9: 1 | BO9: 2 | BP9: 3 | BQ9: 4 | BR9: 5 | BS9: 6 | BZ9: 1 | CA9: 2 | CB9: 3 | CC9: 4 | CD9: 5 | CE9: 6 | CL9: 0 | CM9: 1 | CN9: 2 | CO9: 3 | CP9: 4 | CW9: 01234 | CX9: 2 | CY9: 3 | CZ9: 4 | DA9: 5 | DB9: 6
AD71: =IF(BZ71="","",OFFSET($D71,0,2*BZ71)) ->  | AE71: =IF(CA71="","",OFFSET($D71,0,2*CA71)) ->  | AF71: =IF(CB71="","",OFFSET($D71,0,2*CB71)) ->  | AG71: =IF(CC71="","",OFFSET($D71,0,2*CC71)) ->  | AH71: =IF(CD71="","",OFFSET($D71,0,2*CD71)) ->  | AI71: =IF(CE71="","",OFFSET($D71,0,2*CE71)) ->  | AJ71: =IF(CF71="","",OFFSET($D71,0,2*CF71)) ->  | AK71: =IF(CG71="","",OFFSET($D71,0,2*CG71)) ->  | AL71: =IF(CH71="","",OFFSET($D71,0,2*CH71)) ->  | AM71: =IF(CI71="","",OFFSET($D71,0,2*CI71)) ->  | AN71: =IF(CJ71="","",OFFSET($D71,0,2*CJ71)) ->  | AO71: =IF(CK71="","",OFFSET($D71,0,2*CK71)) ->  | AP71: =IF(BZ71="","",IF(COUNT(OFFSET($D71,0,2*BZ71-1,1,2))=2,OFFSET($D71,0,2*BZ71-1),"")) ->  | AQ71: =IF(CA71="","",IF(COUNT(OFFSET($D71,0,2*CA71-1,1,2))=2,OFFSET($D71,0,2*CA71-1),"")) ->  | AR71: =IF(CB71="","",IF(COUNT(OFFSET($D71,0,2*CB71-1,1,2))=2,OFFSET($D71,0,2*CB71-1),"")) ->  | AS71: =IF(CC71="","",IF(COUNT(OFFSET($D71,0,2*CC71-1,1,2))=2,OFFSET($D71,0,2*CC71-1),"")) ->  | AT71: =IF(CD71="","",IF(COUNT(OFFSET($D71,0,2*CD71-1,1,2))=2,OFFSET($D71,0,2*CD71-1),"")) ->  | AU71: =IF(CE71="","",IF(COUNT(OFFSET($D71,0,2*CE71-1,1,2))=2,OFFSET($D71,0,2*CE71-1),"")) ->  | AV71: =IF(CF71="","",IF(COUNT(OFFSET($D71,0,2*CF71-1,1,2))=2,OFFSET($D71,0,2*CF71-1),"")) ->  | AW71: =IF(CG71="","",IF(COUNT(OFFSET($D71,0,2*CG71-1,1,2))=2,OFFSET($D71,0,2*CG71-1),"")) ->  | AX71: =IF(CH71="","",IF(COUNT(OFFSET($D71,0,2*CH71-1,1,2))=2,OFFSET($D71,0,2*CH71-1),"")) ->  | AY71: =IF(CI71="","",IF(COUNT(OFFSET($D71,0,2*CI71-1,1,2))=2,OFFSET($D71,0,2*CI71-1),"")) ->  | AZ71: =IF(CJ71="","",IF(COUNT(OFFSET($D71,0,2*CJ71-1,1,2))=2,OFFSET($D71,0,2*CJ71-1),"")) ->  | BA71: =IF(CK71="","",IF(COUNT(OFFSET($D71,0,2*CK71-1,1,2))=2,OFFSET($D71,0,2*CK71-1),"")) ->  | BB71: =IF(AND(E71<>"",F71<>""),F71,"") ->  | BC71: =IF(AND(G71<>"",H71<>""),H71,"") ->  | BD71: =IF(AND(I71<>"",J71<>""),J71,"") ->  | BE71: =IF(AND(K71<>"",L71<>""),L71,"") ->  | BF71: =IF(AND(M71<>"",N71<>""),N71,"") ->  | BG71: =IF(AND(O71<>"",P71<>""),P71,"") ->  | BH71: =IF(AND(Q71<>"",R71<>""),R71,"") ->  | BI71: =IF(AND(S71<>"",T71<>""),T71,"") ->  | BJ71: =IF(AND(U71<>"",V71<>""),V71,"") ->  | BK71: =IF(AND(W71<>"",X71<>""),X71,"") ->  | BL71: =IF(AND(Y71<>"",Z71<>""),Z71,"") ->  | BM71: =IF(AND(AA71<>"",AB71<>""),AB71,"") ->  | BN71: =IF(BB71<>"",RANK(BB71,$BB71:$BM71,1),"") ->  | BO71: =IF(BC71<>"",RANK(BC71,$BB71:$BM71,1),"") ->  | BP71: =IF(BD71<>"",RANK(BD71,$BB71:$BM71,1),"") ->  | BQ71: =IF(BE71<>"",RANK(BE71,$BB71:$BM71,1),"") ->  | BR71: =IF(BF71<>"",RANK(BF71,$BB71:$BM71,1),"") ->  | BS71: =IF(BG71<>"",RANK(BG71,$BB71:$BM71,1),"") ->  | BT71: =IF(BH71<>"",RANK(BH71,$BB71:$BM71,1),"") ->  | BU71: =IF(BI71<>"",RANK(BI71,$BB71:$BM71,1),"") ->  | BV71: =IF(BJ71<>"",RANK(BJ71,$BB71:$BM71,1),"") ->  | BW71: =IF(BK71<>"",RANK(BK71,$BB71:$BM71,1),"") ->  | BX71: =IF(BL71<>"",RANK(BL71,$BB71:$BM71,1),"") ->  | BY71: =IF(BM71<>"",RANK(BM71,$BB71:$BM71,1),"") ->  | BZ71: =IF(ISNA(MATCH(1,$BN71:$BY71,0)),"",MATCH(1,$BN71:$BY71,0)) ->  | CA71: =IF(COUNT($CL71:$CV71)<1,"",MATCH(VALUE(CX71),$BN71:$BY71,0)) ->  | CB71: =IF(COUNT($CL71:$CV71)<2,"",MATCH(VALUE(CY71),$BN71:$BY71,0)) ->  | CC71: =IF(COUNT($CL71:$CV71)<3,"",MATCH(VALUE(CZ71),$BN71:$BY71,0)) ->  | CD71: =IF(COUNT($CL71:$CV71)<4,"",MATCH(VALUE(DA71),$BN71:$BY71,0)) ->  | CE71: =IF(COUNT($CL71:$CV71)<5,"",MATCH(VALUE(DB71),$BN71:$BY71,0)) ->  | CF71: =IF(COUNT($CL71:$CV71)<6,"",MATCH(VALUE(DC71),$BN71:$BY71,0)) ->  | CG71: =IF(COUNT($CL71:$CV71)<7,"",MATCH(VALUE(DD71),$BN71:$BY71,0)) ->  | CH71: =IF(COUNT($CL71:$CV71)<8,"",MATCH(VALUE(DE71),$BN71:$BY71,0)) ->  | CI71: =IF(COUNT($CL71:$CV71)<9,"",MATCH(VALUE(DF71),$BN71:$BY71,0)) ->  | CJ71: =IF(COUNT($CL71:$CV71)<10,"",MATCH(VALUE(DG71),$BN71:$BY71,0)) ->  | CK71: =IF(COUNT($CL71:$CV71)<11,"",MATCH(VALUE(DH71),$BN71:$BY71,0)) ->  | CL71: =IF(AND(COUNT($BN71:$BY71)>1,NOT(ISNA(MATCH(2,$BN71:$BY71,0)))),0,"") ->  | CM71: =IF(AND(COUNT($BN71:$BY71)>2,NOT(ISNA(MATCH(3,$BN71:$BY71,0)))),1,"") ->  | CN71: =IF(AND(COUNT($BN71:$BY71)>3,NOT(ISNA(MATCH(4,$BN71:$BY71,0)))),2,"") ->  | CO71: =IF(AND(COUNT($BN71:$BY71)>4,NOT(ISNA(MATCH(5,$BN71:$BY71,0)))),3,"") ->  | CP71: =IF(AND(COUNT($BN71:$BY71)>5,NOT(ISNA(MATCH(6,$BN71:$BY71,0)))),4,"") ->  | CQ71: =IF(AND(COUNT($BN71:$BY71)>6,NOT(ISNA(MATCH(7,$BN71:$BY71,0)))),5,"") ->  | CR71: =IF(AND(COUNT($BN71:$BY71)>7,NOT(ISNA(MATCH(8,$BN71:$BY71,0)))),6,"") ->  | CS71: =IF(AND(COUNT($BN71:$BY71)>8,NOT(ISNA(MATCH(9,$BN71:$BY71,0)))),7,"") ->  | CT71: =IF(AND(COUNT($BN71:$BY71)>9,NOT(ISNA(MATCH(10,$BN71:$BY71,0)))),8,"") ->  | CU71: =IF(AND(COUNT($BN71:$BY71)>10,NOT(ISNA(MATCH(11,$BN71:$BY71,0)))),9,"") ->  | CV71: =IF(AND(COUNT($BN71:$BY71)>11,NOT(ISNA(MATCH(12,$BN71:$BY71,0)))),10,"") ->  | CW71: =CONCATENATE(CL71,CM71,CN71,CO71,CP71,CQ71,CR71,CS71,CT71,CU71,IF(CV71=10,"A","")) ->  | CX71: =IF(MID($CW71,1,1)="","",IF(MID($CW71,1,1)="A",12,MID($CW71,1,1)+2)) ->  | CY71: =IF(MID($CW71,2,1)="","",IF(MID($CW71,2,1)="A",12,MID($CW71,2,1)+2)) ->  | CZ71: =IF(MID($CW71,3,1)="","",IF(MID($CW71,3,1)="A",12,MID($CW71,3,1)+2)) ->  | DA71: =IF(MID($CW71,4,1)="","",IF(MID($CW71,4,1)="A",12,MID($CW71,4,1)+2)) ->  | DB71: =IF(MID($CW71,5,1)="","",IF(MID($CW71,5,1)="A",12,MID($CW71,5,1)+2)) ->  | DC71: =IF(MID($CW71,6,1)="","",IF(MID($CW71,6,1)="A",12,MID($CW71,6,1)+2)) ->  | DD71: =IF(MID($CW71,7,1)="","",IF(MID($CW71,7,1)="A",12,MID($CW71,7,1)+2)) ->  | DE71: =IF(MID($CW71,8,1)="","",IF(MID($CW71,8,1)="A",12,MID($CW71,8,1)+2)) ->  | DF71: =IF(MID($CW71,9,1)="","",IF(MID($CW71,9,1)="A",12,MID($CW71,9,1)+2)) ->  | DG71: =IF(MID($CW71,10,1)="","",IF(MID($CW71,10,1)="A",12,MID($CW71,10,1)+2)) ->  | DH71: =IF(MID($CW71,11,1)="","",IF(MID($CW71,11,1)="A",12,MID($CW71,11,1)+2)) -> 
AD135: =IF(BZ135="","",OFFSET($D135,0,2*BZ135)) ->  | AE135: =IF(CA135="","",OFFSET($D135,0,2*CA135)) ->  | AF135: =IF(CB135="","",OFFSET($D135,0,2*CB135)) ->  | AG135: =IF(CC135="","",OFFSET($D135,0,2*CC135)) ->  | AH135: =IF(CD135="","",OFFSET($D135,0,2*CD135)) ->  | AI135: =IF(CE135="","",OFFSET($D135,0,2*CE135)) ->  | AJ135: =IF(CF135="","",OFFSET($D135,0,2*CF135)) ->  | AK135: =IF(CG135="","",OFFSET($D135,0,2*CG135)) ->  | AL135: =IF(CH135="","",OFFSET($D135,0,2*CH135)) ->  | AM135: =IF(CI135="","",OFFSET($D135,0,2*CI135)) ->  | AN135: =IF(CJ135="","",OFFSET($D135,0,2*CJ135)) ->  | AO135: =IF(CK135="","",OFFSET($D135,0,2*CK135)) ->  | AP135: =IF(BZ135="","",IF(COUNT(OFFSET($D135,0,2*BZ135-1,1,2))=2,OFFSET($D135,0,2*BZ135-1),"")) ->  | AQ135: =IF(CA135="","",IF(COUNT(OFFSET($D135,0,2*CA135-1,1,2))=2,OFFSET($D135,0,2*CA135-1),"")) ->  | AR135: =IF(CB135="","",IF(COUNT(OFFSET($D135,0,2*CB135-1,1,2))=2,OFFSET($D135,0,2*CB135-1),"")) ->  | AS135: =IF(CC135="","",IF(COUNT(OFFSET($D135,0,2*CC135-1,1,2))=2,OFFSET($D135,0,2*CC135-1),"")) ->  | AT135: =IF(CD135="","",IF(COUNT(OFFSET($D135,0,2*CD135-1,1,2))=2,OFFSET($D135,0,2*CD135-1),"")) ->  | AU135: =IF(CE135="","",IF(COUNT(OFFSET($D135,0,2*CE135-1,1,2))=2,OFFSET($D135,0,2*CE135-1),"")) ->  | AV135: =IF(CF135="","",IF(COUNT(OFFSET($D135,0,2*CF135-1,1,2))=2,OFFSET($D135,0,2*CF135-1),"")) ->  | AW135: =IF(CG135="","",IF(COUNT(OFFSET($D135,0,2*CG135-1,1,2))=2,OFFSET($D135,0,2*CG135-1),"")) ->  | AX135: =IF(CH135="","",IF(COUNT(OFFSET($D135,0,2*CH135-1,1,2))=2,OFFSET($D135,0,2*CH135-1),"")) ->  | AY135: =IF(CI135="","",IF(COUNT(OFFSET($D135,0,2*CI135-1,1,2))=2,OFFSET($D135,0,2*CI135-1),"")) ->  | AZ135: =IF(CJ135="","",IF(COUNT(OFFSET($D135,0,2*CJ135-1,1,2))=2,OFFSET($D135,0,2*CJ135-1),"")) ->  | BA135: =IF(CK135="","",IF(COUNT(OFFSET($D135,0,2*CK135-1,1,2))=2,OFFSET($D135,0,2*CK135-1),"")) ->  | BB135: =IF(AND(E135<>"",F135<>""),F135,"") ->  | BC135: =IF(AND(G135<>"",H135<>""),H135,"") ->  | BD135: =IF(AND(I135<>"",J135<>""),J135,"") ->  | BE135: =IF(AND(K135<>"",L135<>""),L135,"") ->  | BF135: =IF(AND(M135<>"",N135<>""),N135,"") ->  | BG135: =IF(AND(O135<>"",P135<>""),P135,"") ->  | BH135: =IF(AND(Q135<>"",R135<>""),R135,"") ->  | BI135: =IF(AND(S135<>"",T135<>""),T135,"") ->  | BJ135: =IF(AND(U135<>"",V135<>""),V135,"") ->  | BK135: =IF(AND(W135<>"",X135<>""),X135,"") ->  | BL135: =IF(AND(Y135<>"",Z135<>""),Z135,"") ->  | BM135: =IF(AND(AA135<>"",AB135<>""),AB135,"") ->  | BN135: =IF(BB135<>"",RANK(BB135,$BB135:$BM135,1),"") ->  | BO135: =IF(BC135<>"",RANK(BC135,$BB135:$BM135,1),"") ->  | BP135: =IF(BD135<>"",RANK(BD135,$BB135:$BM135,1),"") ->  | BQ135: =IF(BE135<>"",RANK(BE135,$BB135:$BM135,1),"") ->  | BR135: =IF(BF135<>"",RANK(BF135,$BB135:$BM135,1),"") ->  | BS135: =IF(BG135<>"",RANK(BG135,$BB135:$BM135,1),"") ->  | BT135: =IF(BH135<>"",RANK(BH135,$BB135:$BM135,1),"") ->  | BU135: =IF(BI135<>"",RANK(BI135,$BB135:$BM135,1),"") ->  | BV135: =IF(BJ135<>"",RANK(BJ135,$BB135:$BM135,1),"") ->  | BW135: =IF(BK135<>"",RANK(BK135,$BB135:$BM135,1),"") ->  | BX135: =IF(BL135<>"",RANK(BL135,$BB135:$BM135,1),"") ->  | BY135: =IF(BM135<>"",RANK(BM135,$BB135:$BM135,1),"") ->  | BZ135: =IF(ISNA(MATCH(1,$BN135:$BY135,0)),"",MATCH(1,$BN135:$BY135,0)) ->  | CA135: =IF(COUNT($CL135:$CV135)<1,"",MATCH(VALUE(CX135),$BN135:$BY135,0)) ->  | CB135: =IF(COUNT($CL135:$CV135)<2,"",MATCH(VALUE(CY135),$BN135:$BY135,0)) ->  | CC135: =IF(COUNT($CL135:$CV135)<3,"",MATCH(VALUE(CZ135),$BN135:$BY135,0)) ->  | CD135: =IF(COUNT($CL135:$CV135)<4,"",MATCH(VALUE(DA135),$BN135:$BY135,0)) ->  | CE135: =IF(COUNT($CL135:$CV135)<5,"",MATCH(VALUE(DB135),$BN135:$BY135,0)) ->  | CF135: =IF(COUNT($CL135:$CV135)<6,"",MATCH(VALUE(DC135),$BN135:$BY135,0)) ->  | CG135: =IF(COUNT($CL135:$CV135)<7,"",MATCH(VALUE(DD135),$BN135:$BY135,0)) ->  | CH135: =IF(COUNT($CL135:$CV135)<8,"",MATCH(VALUE(DE135),$BN135:$BY135,0)) ->  | CI135: =IF(COUNT($CL135:$CV135)<9,"",MATCH(VALUE(DF135),$BN135:$BY135,0)) ->  | CJ135: =IF(COUNT($CL135:$CV135)<10,"",MATCH(VALUE(DG135),$BN135:$BY135,0)) ->  | CK135: =IF(COUNT($CL135:$CV135)<11,"",MATCH(VALUE(DH135),$BN135:$BY135,0)) ->  | CL135: =IF(AND(COUNT($BN135:$BY135)>1,NOT(ISNA(MATCH(2,$BN135:$BY135,0)))),0,"") ->  | CM135: =IF(AND(COUNT($BN135:$BY135)>2,NOT(ISNA(MATCH(3,$BN135:$BY135,0)))),1,"") ->  | CN135: =IF(AND(COUNT($BN135:$BY135)>3,NOT(ISNA(MATCH(4,$BN135:$BY135,0)))),2,"") ->  | CO135: =IF(AND(COUNT($BN135:$BY135)>4,NOT(ISNA(MATCH(5,$BN135:$BY135,0)))),3,"") ->  | CP135: =IF(AND(COUNT($BN135:$BY135)>5,NOT(ISNA(MATCH(6,$BN135:$BY135,0)))),4,"") ->  | CQ135: =IF(AND(COUNT($BN135:$BY135)>6,NOT(ISNA(MATCH(7,$BN135:$BY135,0)))),5,"") ->  | CR135: =IF(AND(COUNT($BN135:$BY135)>7,NOT(ISNA(MATCH(8,$BN135:$BY135,0)))),6,"") ->  | CS135: =IF(AND(COUNT($BN135:$BY135)>8,NOT(ISNA(MATCH(9,$BN135:$BY135,0)))),7,"") ->  | CT135: =IF(AND(COUNT($BN135:$BY135)>9,NOT(ISNA(MATCH(10,$BN135:$BY135,0)))),8,"") ->  | CU135: =IF(AND(COUNT($BN135:$BY135)>10,NOT(ISNA(MATCH(11,$BN135:$BY135,0)))),9,"") ->  | CV135: =IF(AND(COUNT($BN135:$BY135)>11,NOT(ISNA(MATCH(12,$BN135:$BY135,0)))),10,"") ->  | CW135: =CONCATENATE(CL135,CM135,CN135,CO135,CP135,CQ135,CR135,CS135,CT135,CU135,IF(CV135=10,"A","")) ->  | CX135: =IF(MID($CW135,1,1)="","",IF(MID($CW135,1,1)="A",12,MID($CW135,1,1)+2)) ->  | CY135: =IF(MID($CW135,2,1)="","",IF(MID($CW135,2,1)="A",12,MID($CW135,2,1)+2)) ->  | CZ135: =IF(MID($CW135,3,1)="","",IF(MID($CW135,3,1)="A",12,MID($CW135,3,1)+2)) ->  | DA135: =IF(MID($CW135,4,1)="","",IF(MID($CW135,4,1)="A",12,MID($CW135,4,1)+2)) ->  | DB135: =IF(MID($CW135,5,1)="","",IF(MID($CW135,5,1)="A",12,MID($CW135,5,1)+2)) ->  | DC135: =IF(MID($CW135,6,1)="","",IF(MID($CW135,6,1)="A",12,MID($CW135,6,1)+2)) ->  | DD135: =IF(MID($CW135,7,1)="","",IF(MID($CW135,7,1)="A",12,MID($CW135,7,1)+2)) ->  | DE135: =IF(MID($CW135,8,1)="","",IF(MID($CW135,8,1)="A",12,MID($CW135,8,1)+2)) ->  | DF135: =IF(MID($CW135,9,1)="","",IF(MID($CW135,9,1)="A",12,MID($CW135,9,1)+2)) ->  | DG135: =IF(MID($CW135,10,1)="","",IF(MID($CW135,10,1)="A",12,MID($CW135,10,1)+2)) ->  | DH135: =IF(MID($CW135,11,1)="","",IF(MID($CW135,11,1)="A",12,MID($CW135,11,1)+2)) -> 
AD199: =IF(BZ199="","",OFFSET($D199,0,2*BZ199)) ->  | AE199: =IF(CA199="","",OFFSET($D199,0,2*CA199)) ->  | AF199: =IF(CB199="","",OFFSET($D199,0,2*CB199)) ->  | AG199: =IF(CC199="","",OFFSET($D199,0,2*CC199)) ->  | AH199: =IF(CD199="","",OFFSET($D199,0,2*CD199)) ->  | AI199: =IF(CE199="","",OFFSET($D199,0,2*CE199)) ->  | AJ199: =IF(CF199="","",OFFSET($D199,0,2*CF199)) ->  | AK199: =IF(CG199="","",OFFSET($D199,0,2*CG199)) ->  | AL199: =IF(CH199="","",OFFSET($D199,0,2*CH199)) ->  | AM199: =IF(CI199="","",OFFSET($D199,0,2*CI199)) ->  | AN199: =IF(CJ199="","",OFFSET($D199,0,2*CJ199)) ->  | AO199: =IF(CK199="","",OFFSET($D199,0,2*CK199)) ->  | AP199: =IF(BZ199="","",IF(COUNT(OFFSET($D199,0,2*BZ199-1,1,2))=2,OFFSET($D199,0,2*BZ199-1),"")) ->  | AQ199: =IF(CA199="","",IF(COUNT(OFFSET($D199,0,2*CA199-1,1,2))=2,OFFSET($D199,0,2*CA199-1),"")) ->  | AR199: =IF(CB199="","",IF(COUNT(OFFSET($D199,0,2*CB199-1,1,2))=2,OFFSET($D199,0,2*CB199-1),"")) ->  | AS199: =IF(CC199="","",IF(COUNT(OFFSET($D199,0,2*CC199-1,1,2))=2,OFFSET($D199,0,2*CC199-1),"")) ->  | AT199: =IF(CD199="","",IF(COUNT(OFFSET($D199,0,2*CD199-1,1,2))=2,OFFSET($D199,0,2*CD199-1),"")) ->  | AU199: =IF(CE199="","",IF(COUNT(OFFSET($D199,0,2*CE199-1,1,2))=2,OFFSET($D199,0,2*CE199-1),"")) ->  | AV199: =IF(CF199="","",IF(COUNT(OFFSET($D199,0,2*CF199-1,1,2))=2,OFFSET($D199,0,2*CF199-1),"")) ->  | AW199: =IF(CG199="","",IF(COUNT(OFFSET($D199,0,2*CG199-1,1,2))=2,OFFSET($D199,0,2*CG199-1),"")) ->  | AX199: =IF(CH199="","",IF(COUNT(OFFSET($D199,0,2*CH199-1,1,2))=2,OFFSET($D199,0,2*CH199-1),"")) ->  | AY199: =IF(CI199="","",IF(COUNT(OFFSET($D199,0,2*CI199-1,1,2))=2,OFFSET($D199,0,2*CI199-1),"")) ->  | AZ199: =IF(CJ199="","",IF(COUNT(OFFSET($D199,0,2*CJ199-1,1,2))=2,OFFSET($D199,0,2*CJ199-1),"")) ->  | BA199: =IF(CK199="","",IF(COUNT(OFFSET($D199,0,2*CK199-1,1,2))=2,OFFSET($D199,0,2*CK199-1),"")) ->  | BB199: =IF(AND(E199<>"",F199<>""),F199,"") ->  | BC199: =IF(AND(G199<>"",H199<>""),H199,"") ->  | BD199: =IF(AND(I199<>"",J199<>""),J199,"") ->  | BE199: =IF(AND(K199<>"",L199<>""),L199,"") ->  | BF199: =IF(AND(M199<>"",N199<>""),N199,"") ->  | BG199: =IF(AND(O199<>"",P199<>""),P199,"") ->  | BH199: =IF(AND(Q199<>"",R199<>""),R199,"") ->  | BI199: =IF(AND(S199<>"",T199<>""),T199,"") ->  | BJ199: =IF(AND(U199<>"",V199<>""),V199,"") ->  | BK199: =IF(AND(W199<>"",X199<>""),X199,"") ->  | BL199: =IF(AND(Y199<>"",Z199<>""),Z199,"") ->  | BM199: =IF(AND(AA199<>"",AB199<>""),AB199,"") ->  | BN199: =IF(BB199<>"",RANK(BB199,$BB199:$BM199,1),"") ->  | BO199: =IF(BC199<>"",RANK(BC199,$BB199:$BM199,1),"") ->  | BP199: =IF(BD199<>"",RANK(BD199,$BB199:$BM199,1),"") ->  | BQ199: =IF(BE199<>"",RANK(BE199,$BB199:$BM199,1),"") ->  | BR199: =IF(BF199<>"",RANK(BF199,$BB199:$BM199,1),"") ->  | BS199: =IF(BG199<>"",RANK(BG199,$BB199:$BM199,1),"") ->  | BT199: =IF(BH199<>"",RANK(BH199,$BB199:$BM199,1),"") ->  | BU199: =IF(BI199<>"",RANK(BI199,$BB199:$BM199,1),"") ->  | BV199: =IF(BJ199<>"",RANK(BJ199,$BB199:$BM199,1),"") ->  | BW199: =IF(BK199<>"",RANK(BK199,$BB199:$BM199,1),"") ->  | BX199: =IF(BL199<>"",RANK(BL199,$BB199:$BM199,1),"") ->  | BY199: =IF(BM199<>"",RANK(BM199,$BB199:$BM199,1),"") ->  | BZ199: =IF(ISNA(MATCH(1,$BN199:$BY199,0)),"",MATCH(1,$BN199:$BY199,0)) ->  | CA199: =IF(COUNT($CL199:$CV199)<1,"",MATCH(VALUE(CX199),$BN199:$BY199,0)) ->  | CB199: =IF(COUNT($CL199:$CV199)<2,"",MATCH(VALUE(CY199),$BN199:$BY199,0)) ->  | CC199: =IF(COUNT($CL199:$CV199)<3,"",MATCH(VALUE(CZ199),$BN199:$BY199,0)) ->  | CD199: =IF(COUNT($CL199:$CV199)<4,"",MATCH(VALUE(DA199),$BN199:$BY199,0)) ->  | CE199: =IF(COUNT($CL199:$CV199)<5,"",MATCH(VALUE(DB199),$BN199:$BY199,0)) ->  | CF199: =IF(COUNT($CL199:$CV199)<6,"",MATCH(VALUE(DC199),$BN199:$BY199,0)) ->  | CG199: =IF(COUNT($CL199:$CV199)<7,"",MATCH(VALUE(DD199),$BN199:$BY199,0)) ->  | CH199: =IF(COUNT($CL199:$CV199)<8,"",MATCH(VALUE(DE199),$BN199:$BY199,0)) ->  | CI199: =IF(COUNT($CL199:$CV199)<9,"",MATCH(VALUE(DF199),$BN199:$BY199,0)) ->  | CJ199: =IF(COUNT($CL199:$CV199)<10,"",MATCH(VALUE(DG199),$BN199:$BY199,0)) ->  | CK199: =IF(COUNT($CL199:$CV199)<11,"",MATCH(VALUE(DH199),$BN199:$BY199,0)) ->  | CL199: =IF(AND(COUNT($BN199:$BY199)>1,NOT(ISNA(MATCH(2,$BN199:$BY199,0)))),0,"") ->  | CM199: =IF(AND(COUNT($BN199:$BY199)>2,NOT(ISNA(MATCH(3,$BN199:$BY199,0)))),1,"") ->  | CN199: =IF(AND(COUNT($BN199:$BY199)>3,NOT(ISNA(MATCH(4,$BN199:$BY199,0)))),2,"") ->  | CO199: =IF(AND(COUNT($BN199:$BY199)>4,NOT(ISNA(MATCH(5,$BN199:$BY199,0)))),3,"") ->  | CP199: =IF(AND(COUNT($BN199:$BY199)>5,NOT(ISNA(MATCH(6,$BN199:$BY199,0)))),4,"") ->  | CQ199: =IF(AND(COUNT($BN199:$BY199)>6,NOT(ISNA(MATCH(7,$BN199:$BY199,0)))),5,"") ->  | CR199: =IF(AND(COUNT($BN199:$BY199)>7,NOT(ISNA(MATCH(8,$BN199:$BY199,0)))),6,"") ->  | CS199: =IF(AND(COUNT($BN199:$BY199)>8,NOT(ISNA(MATCH(9,$BN199:$BY199,0)))),7,"") ->  | CT199: =IF(AND(COUNT($BN199:$BY199)>9,NOT(ISNA(MATCH(10,$BN199:$BY199,0)))),8,"") ->  | CU199: =IF(AND(COUNT($BN199:$BY199)>10,NOT(ISNA(MATCH(11,$BN199:$BY199,0)))),9,"") ->  | CV199: =IF(AND(COUNT($BN199:$BY199)>11,NOT(ISNA(MATCH(12,$BN199:$BY199,0)))),10,"") ->  | CW199: =CONCATENATE(CL199,CM199,CN199,CO199,CP199,CQ199,CR199,CS199,CT199,CU199,IF(CV199=10,"A","")) ->  | CX199: =IF(MID($CW199,1,1)="","",IF(MID($CW199,1,1)="A",12,MID($CW199,1,1)+2)) ->  | CY199: =IF(MID($CW199,2,1)="","",IF(MID($CW199,2,1)="A",12,MID($CW199,2,1)+2)) ->  | CZ199: =IF(MID($CW199,3,1)="","",IF(MID($CW199,3,1)="A",12,MID($CW199,3,1)+2)) ->  | DA199: =IF(MID($CW199,4,1)="","",IF(MID($CW199,4,1)="A",12,MID($CW199,4,1)+2)) ->  | DB199: =IF(MID($CW199,5,1)="","",IF(MID($CW199,5,1)="A",12,MID($CW199,5,1)+2)) ->  | DC199: =IF(MID($CW199,6,1)="","",IF(MID($CW199,6,1)="A",12,MID($CW199,6,1)+2)) ->  | DD199: =IF(MID($CW199,7,1)="","",IF(MID($CW199,7,1)="A",12,MID($CW199,7,1)+2)) ->  | DE199: =IF(MID($CW199,8,1)="","",IF(MID($CW199,8,1)="A",12,MID($CW199,8,1)+2)) ->  | DF199: =IF(MID($CW199,9,1)="","",IF(MID($CW199,9,1)="A",12,MID($CW199,9,1)+2)) ->  | DG199: =IF(MID($CW199,10,1)="","",IF(MID($CW199,10,1)="A",12,MID($CW199,10,1)+2)) ->  | DH199: =IF(MID($CW199,11,1)="","",IF(MID($CW199,11,1)="A",12,MID($CW199,11,1)+2)) -> 
AD263: =IF(BZ263="","",OFFSET($D263,0,2*BZ263)) ->  | AE263: =IF(CA263="","",OFFSET($D263,0,2*CA263)) ->  | AF263: =IF(CB263="","",OFFSET($D263,0,2*CB263)) ->  | AG263: =IF(CC263="","",OFFSET($D263,0,2*CC263)) ->  | AH263: =IF(CD263="","",OFFSET($D263,0,2*CD263)) ->  | AI263: =IF(CE263="","",OFFSET($D263,0,2*CE263)) ->  | AJ263: =IF(CF263="","",OFFSET($D263,0,2*CF263)) ->  | AK263: =IF(CG263="","",OFFSET($D263,0,2*CG263)) ->  | AL263: =IF(CH263="","",OFFSET($D263,0,2*CH263)) ->  | AM263: =IF(CI263="","",OFFSET($D263,0,2*CI263)) ->  | AN263: =IF(CJ263="","",OFFSET($D263,0,2*CJ263)) ->  | AO263: =IF(CK263="","",OFFSET($D263,0,2*CK263)) ->  | AP263: =IF(BZ263="","",IF(COUNT(OFFSET($D263,0,2*BZ263-1,1,2))=2,OFFSET($D263,0,2*BZ263-1),"")) ->  | AQ263: =IF(CA263="","",IF(COUNT(OFFSET($D263,0,2*CA263-1,1,2))=2,OFFSET($D263,0,2*CA263-1),"")) ->  | AR263: =IF(CB263="","",IF(COUNT(OFFSET($D263,0,2*CB263-1,1,2))=2,OFFSET($D263,0,2*CB263-1),"")) ->  | AS263: =IF(CC263="","",IF(COUNT(OFFSET($D263,0,2*CC263-1,1,2))=2,OFFSET($D263,0,2*CC263-1),"")) ->  | AT263: =IF(CD263="","",IF(COUNT(OFFSET($D263,0,2*CD263-1,1,2))=2,OFFSET($D263,0,2*CD263-1),"")) ->  | AU263: =IF(CE263="","",IF(COUNT(OFFSET($D263,0,2*CE263-1,1,2))=2,OFFSET($D263,0,2*CE263-1),"")) ->  | AV263: =IF(CF263="","",IF(COUNT(OFFSET($D263,0,2*CF263-1,1,2))=2,OFFSET($D263,0,2*CF263-1),"")) ->  | AW263: =IF(CG263="","",IF(COUNT(OFFSET($D263,0,2*CG263-1,1,2))=2,OFFSET($D263,0,2*CG263-1),"")) ->  | AX263: =IF(CH263="","",IF(COUNT(OFFSET($D263,0,2*CH263-1,1,2))=2,OFFSET($D263,0,2*CH263-1),"")) ->  | AY263: =IF(CI263="","",IF(COUNT(OFFSET($D263,0,2*CI263-1,1,2))=2,OFFSET($D263,0,2*CI263-1),"")) ->  | AZ263: =IF(CJ263="","",IF(COUNT(OFFSET($D263,0,2*CJ263-1,1,2))=2,OFFSET($D263,0,2*CJ263-1),"")) ->  | BA263: =IF(CK263="","",IF(COUNT(OFFSET($D263,0,2*CK263-1,1,2))=2,OFFSET($D263,0,2*CK263-1),"")) ->  | BB263: =IF(AND(E263<>"",F263<>""),F263,"") ->  | BC263: =IF(AND(G263<>"",H263<>""),H263,"") ->  | BD263: =IF(AND(I263<>"",J263<>""),J263,"") ->  | BE263: =IF(AND(K263<>"",L263<>""),L263,"") ->  | BF263: =IF(AND(M263<>"",N263<>""),N263,"") ->  | BG263: =IF(AND(O263<>"",P263<>""),P263,"") ->  | BH263: =IF(AND(Q263<>"",R263<>""),R263,"") ->  | BI263: =IF(AND(S263<>"",T263<>""),T263,"") ->  | BJ263: =IF(AND(U263<>"",V263<>""),V263,"") ->  | BK263: =IF(AND(W263<>"",X263<>""),X263,"") ->  | BL263: =IF(AND(Y263<>"",Z263<>""),Z263,"") ->  | BM263: =IF(AND(AA263<>"",AB263<>""),AB263,"") ->  | BN263: =IF(BB263<>"",RANK(BB263,$BB263:$BM263,1),"") ->  | BO263: =IF(BC263<>"",RANK(BC263,$BB263:$BM263,1),"") ->  | BP263: =IF(BD263<>"",RANK(BD263,$BB263:$BM263,1),"") ->  | BQ263: =IF(BE263<>"",RANK(BE263,$BB263:$BM263,1),"") ->  | BR263: =IF(BF263<>"",RANK(BF263,$BB263:$BM263,1),"") ->  | BS263: =IF(BG263<>"",RANK(BG263,$BB263:$BM263,1),"") ->  | BT263: =IF(BH263<>"",RANK(BH263,$BB263:$BM263,1),"") ->  | BU263: =IF(BI263<>"",RANK(BI263,$BB263:$BM263,1),"") ->  | BV263: =IF(BJ263<>"",RANK(BJ263,$BB263:$BM263,1),"") ->  | BW263: =IF(BK263<>"",RANK(BK263,$BB263:$BM263,1),"") ->  | BX263: =IF(BL263<>"",RANK(BL263,$BB263:$BM263,1),"") ->  | BY263: =IF(BM263<>"",RANK(BM263,$BB263:$BM263,1),"") ->  | BZ263: =IF(ISNA(MATCH(1,$BN263:$BY263,0)),"",MATCH(1,$BN263:$BY263,0)) ->  | CA263: =IF(COUNT($CL263:$CV263)<1,"",MATCH(VALUE(CX263),$BN263:$BY263,0)) ->  | CB263: =IF(COUNT($CL263:$CV263)<2,"",MATCH(VALUE(CY263),$BN263:$BY263,0)) ->  | CC263: =IF(COUNT($CL263:$CV263)<3,"",MATCH(VALUE(CZ263),$BN263:$BY263,0)) ->  | CD263: =IF(COUNT($CL263:$CV263)<4,"",MATCH(VALUE(DA263),$BN263:$BY263,0)) ->  | CE263: =IF(COUNT($CL263:$CV263)<5,"",MATCH(VALUE(DB263),$BN263:$BY263,0)) ->  | CF263: =IF(COUNT($CL263:$CV263)<6,"",MATCH(VALUE(DC263),$BN263:$BY263,0)) ->  | CG263: =IF(COUNT($CL263:$CV263)<7,"",MATCH(VALUE(DD263),$BN263:$BY263,0)) ->  | CH263: =IF(COUNT($CL263:$CV263)<8,"",MATCH(VALUE(DE263),$BN263:$BY263,0)) ->  | CI263: =IF(COUNT($CL263:$CV263)<9,"",MATCH(VALUE(DF263),$BN263:$BY263,0)) ->  | CJ263: =IF(COUNT($CL263:$CV263)<10,"",MATCH(VALUE(DG263),$BN263:$BY263,0)) ->  | CK263: =IF(COUNT($CL263:$CV263)<11,"",MATCH(VALUE(DH263),$BN263:$BY263,0)) ->  | CL263: =IF(AND(COUNT($BN263:$BY263)>1,NOT(ISNA(MATCH(2,$BN263:$BY263,0)))),0,"") ->  | CM263: =IF(AND(COUNT($BN263:$BY263)>2,NOT(ISNA(MATCH(3,$BN263:$BY263,0)))),1,"") ->  | CN263: =IF(AND(COUNT($BN263:$BY263)>3,NOT(ISNA(MATCH(4,$BN263:$BY263,0)))),2,"") ->  | CO263: =IF(AND(COUNT($BN263:$BY263)>4,NOT(ISNA(MATCH(5,$BN263:$BY263,0)))),3,"") ->  | CP263: =IF(AND(COUNT($BN263:$BY263)>5,NOT(ISNA(MATCH(6,$BN263:$BY263,0)))),4,"") ->  | CQ263: =IF(AND(COUNT($BN263:$BY263)>6,NOT(ISNA(MATCH(7,$BN263:$BY263,0)))),5,"") ->  | CR263: =IF(AND(COUNT($BN263:$BY263)>7,NOT(ISNA(MATCH(8,$BN263:$BY263,0)))),6,"") ->  | CS263: =IF(AND(COUNT($BN263:$BY263)>8,NOT(ISNA(MATCH(9,$BN263:$BY263,0)))),7,"") ->  | CT263: =IF(AND(COUNT($BN263:$BY263)>9,NOT(ISNA(MATCH(10,$BN263:$BY263,0)))),8,"") ->  | CU263: =IF(AND(COUNT($BN263:$BY263)>10,NOT(ISNA(MATCH(11,$BN263:$BY263,0)))),9,"") ->  | CV263: =IF(AND(COUNT($BN263:$BY263)>11,NOT(ISNA(MATCH(12,$BN263:$BY263,0)))),10,"") ->  | CW263: =CONCATENATE(CL263,CM263,CN263,CO263,CP263,CQ263,CR263,CS263,CT263,CU263,IF(CV263=10,"A","")) ->  | CX263: =IF(MID($CW263,1,1)="","",IF(MID($CW263,1,1)="A",12,MID($CW263,1,1)+2)) ->  | CY263: =IF(MID($CW263,2,1)="","",IF(MID($CW263,2,1)="A",12,MID($CW263,2,1)+2)) ->  | CZ263: =IF(MID($CW263,3,1)="","",IF(MID($CW263,3,1)="A",12,MID($CW263,3,1)+2)) ->  | DA263: =IF(MID($CW263,4,1)="","",IF(MID($CW263,4,1)="A",12,MID($CW263,4,1)+2)) ->  | DB263: =IF(MID($CW263,5,1)="","",IF(MID($CW263,5,1)="A",12,MID($CW263,5,1)+2)) ->  | DC263: =IF(MID($CW263,6,1)="","",IF(MID($CW263,6,1)="A",12,MID($CW263,6,1)+2)) ->  | DD263: =IF(MID($CW263,7,1)="","",IF(MID($CW263,7,1)="A",12,MID($CW263,7,1)+2)) ->  | DE263: =IF(MID($CW263,8,1)="","",IF(MID($CW263,8,1)="A",12,MID($CW263,8,1)+2)) ->  | DF263: =IF(MID($CW263,9,1)="","",IF(MID($CW263,9,1)="A",12,MID($CW263,9,1)+2)) ->  | DG263: =IF(MID($CW263,10,1)="","",IF(MID($CW263,10,1)="A",12,MID($CW263,10,1)+2)) ->  | DH263: =IF(MID($CW263,11,1)="","",IF(MID($CW263,11,1)="A",12,MID($CW263,11,1)+2)) -> 
BL267: =IF(AND(AC267<>"",Z267<>""),Z267,"") -> 
AD327: =IF(BZ327="","",OFFSET($D327,0,2*BZ327)) ->  | AE327: =IF(CA327="","",OFFSET($D327,0,2*CA327)) ->  | AF327: =IF(CB327="","",OFFSET($D327,0,2*CB327)) ->  | AG327: =IF(CC327="","",OFFSET($D327,0,2*CC327)) ->  | AH327: =IF(CD327="","",OFFSET($D327,0,2*CD327)) ->  | AI327: =IF(CE327="","",OFFSET($D327,0,2*CE327)) ->  | AJ327: =IF(CF327="","",OFFSET($D327,0,2*CF327)) ->  | AK327: =IF(CG327="","",OFFSET($D327,0,2*CG327)) ->  | AL327: =IF(CH327="","",OFFSET($D327,0,2*CH327)) ->  | AM327: =IF(CI327="","",OFFSET($D327,0,2*CI327)) ->  | AN327: =IF(CJ327="","",OFFSET($D327,0,2*CJ327)) ->  | AO327: =IF(CK327="","",OFFSET($D327,0,2*CK327)) ->  | AP327: =IF(BZ327="","",IF(COUNT(OFFSET($D327,0,2*BZ327-1,1,2))=2,OFFSET($D327,0,2*BZ327-1),"")) ->  | AQ327: =IF(CA327="","",IF(COUNT(OFFSET($D327,0,2*CA327-1,1,2))=2,OFFSET($D327,0,2*CA327-1),"")) ->  | AR327: =IF(CB327="","",IF(COUNT(OFFSET($D327,0,2*CB327-1,1,2))=2,OFFSET($D327,0,2*CB327-1),"")) ->  | AS327: =IF(CC327="","",IF(COUNT(OFFSET($D327,0,2*CC327-1,1,2))=2,OFFSET($D327,0,2*CC327-1),"")) ->  | AT327: =IF(CD327="","",IF(COUNT(OFFSET($D327,0,2*CD327-1,1,2))=2,OFFSET($D327,0,2*CD327-1),"")) ->  | AU327: =IF(CE327="","",IF(COUNT(OFFSET($D327,0,2*CE327-1,1,2))=2,OFFSET($D327,0,2*CE327-1),"")) ->  | AV327: =IF(CF327="","",IF(COUNT(OFFSET($D327,0,2*CF327-1,1,2))=2,OFFSET($D327,0,2*CF327-1),"")) ->  | AW327: =IF(CG327="","",IF(COUNT(OFFSET($D327,0,2*CG327-1,1,2))=2,OFFSET($D327,0,2*CG327-1),"")) ->  | AX327: =IF(CH327="","",IF(COUNT(OFFSET($D327,0,2*CH327-1,1,2))=2,OFFSET($D327,0,2*CH327-1),"")) ->  | AY327: =IF(CI327="","",IF(COUNT(OFFSET($D327,0,2*CI327-1,1,2))=2,OFFSET($D327,0,2*CI327-1),"")) ->  | AZ327: =IF(CJ327="","",IF(COUNT(OFFSET($D327,0,2*CJ327-1,1,2))=2,OFFSET($D327,0,2*CJ327-1),"")) ->  | BA327: =IF(CK327="","",IF(COUNT(OFFSET($D327,0,2*CK327-1,1,2))=2,OFFSET($D327,0,2*CK327-1),"")) ->  | BB327: =IF(AND(E327<>"",F327<>""),F327,"") ->  | BC327: =IF(AND(G327<>"",H327<>""),H327,"") ->  | BD327: =IF(AND(I327<>"",J327<>""),J327,"") ->  | BE327: =IF(AND(K327<>"",L327<>""),L327,"") ->  | BF327: =IF(AND(M327<>"",N327<>""),N327,"") ->  | BG327: =IF(AND(O327<>"",P327<>""),P327,"") ->  | BH327: =IF(AND(Q327<>"",R327<>""),R327,"") ->  | BI327: =IF(AND(S327<>"",T327<>""),T327,"") ->  | BJ327: =IF(AND(U327<>"",V327<>""),V327,"") ->  | BK327: =IF(AND(W327<>"",X327<>""),X327,"") ->  | BL327: =IF(AND(Y327<>"",Z327<>""),Z327,"") ->  | BM327: =IF(AND(AA327<>"",AB327<>""),AB327,"") ->  | BN327: =IF(BB327<>"",RANK(BB327,$BB327:$BM327,1),"") ->  | BO327: =IF(BC327<>"",RANK(BC327,$BB327:$BM327,1),"") ->  | BP327: =IF(BD327<>"",RANK(BD327,$BB327:$BM327,1),"") ->  | BQ327: =IF(BE327<>"",RANK(BE327,$BB327:$BM327,1),"") ->  | BR327: =IF(BF327<>"",RANK(BF327,$BB327:$BM327,1),"") ->  | BS327: =IF(BG327<>"",RANK(BG327,$BB327:$BM327,1),"") ->  | BT327: =IF(BH327<>"",RANK(BH327,$BB327:$BM327,1),"") ->  | BU327: =IF(BI327<>"",RANK(BI327,$BB327:$BM327,1),"") ->  | BV327: =IF(BJ327<>"",RANK(BJ327,$BB327:$BM327,1),"") ->  | BW327: =IF(BK327<>"",RANK(BK327,$BB327:$BM327,1),"") ->  | BX327: =IF(BL327<>"",RANK(BL327,$BB327:$BM327,1),"") ->  | BY327: =IF(BM327<>"",RANK(BM327,$BB327:$BM327,1),"") ->  | BZ327: =IF(ISNA(MATCH(1,$BN327:$BY327,0)),"",MATCH(1,$BN327:$BY327,0)) ->  | CA327: =IF(COUNT($CL327:$CV327)<1,"",MATCH(VALUE(CX327),$BN327:$BY327,0)) ->  | CB327: =IF(COUNT($CL327:$CV327)<2,"",MATCH(VALUE(CY327),$BN327:$BY327,0)) ->  | CC327: =IF(COUNT($CL327:$CV327)<3,"",MATCH(VALUE(CZ327),$BN327:$BY327,0)) ->  | CD327: =IF(COUNT($CL327:$CV327)<4,"",MATCH(VALUE(DA327),$BN327:$BY327,0)) ->  | CE327: =IF(COUNT($CL327:$CV327)<5,"",MATCH(VALUE(DB327),$BN327:$BY327,0)) ->  | CF327: =IF(COUNT($CL327:$CV327)<6,"",MATCH(VALUE(DC327),$BN327:$BY327,0)) ->  | CG327: =IF(COUNT($CL327:$CV327)<7,"",MATCH(VALUE(DD327),$BN327:$BY327,0)) ->  | CH327: =IF(COUNT($CL327:$CV327)<8,"",MATCH(VALUE(DE327),$BN327:$BY327,0)) ->  | CI327: =IF(COUNT($CL327:$CV327)<9,"",MATCH(VALUE(DF327),$BN327:$BY327,0)) ->  | CJ327: =IF(COUNT($CL327:$CV327)<10,"",MATCH(VALUE(DG327),$BN327:$BY327,0)) ->  | CK327: =IF(COUNT($CL327:$CV327)<11,"",MATCH(VALUE(DH327),$BN327:$BY327,0)) ->  | CL327: =IF(AND(COUNT($BN327:$BY327)>1,NOT(ISNA(MATCH(2,$BN327:$BY327,0)))),0,"") ->  | CM327: =IF(AND(COUNT($BN327:$BY327)>2,NOT(ISNA(MATCH(3,$BN327:$BY327,0)))),1,"") ->  | CN327: =IF(AND(COUNT($BN327:$BY327)>3,NOT(ISNA(MATCH(4,$BN327:$BY327,0)))),2,"") ->  | CO327: =IF(AND(COUNT($BN327:$BY327)>4,NOT(ISNA(MATCH(5,$BN327:$BY327,0)))),3,"") ->  | CP327: =IF(AND(COUNT($BN327:$BY327)>5,NOT(ISNA(MATCH(6,$BN327:$BY327,0)))),4,"") ->  | CQ327: =IF(AND(COUNT($BN327:$BY327)>6,NOT(ISNA(MATCH(7,$BN327:$BY327,0)))),5,"") ->  | CR327: =IF(AND(COUNT($BN327:$BY327)>7,NOT(ISNA(MATCH(8,$BN327:$BY327,0)))),6,"") ->  | CS327: =IF(AND(COUNT($BN327:$BY327)>8,NOT(ISNA(MATCH(9,$BN327:$BY327,0)))),7,"") ->  | CT327: =IF(AND(COUNT($BN327:$BY327)>9,NOT(ISNA(MATCH(10,$BN327:$BY327,0)))),8,"") ->  | CU327: =IF(AND(COUNT($BN327:$BY327)>10,NOT(ISNA(MATCH(11,$BN327:$BY327,0)))),9,"") ->  | CV327: =IF(AND(COUNT($BN327:$BY327)>11,NOT(ISNA(MATCH(12,$BN327:$BY327,0)))),10,"") ->  | CW327: =CONCATENATE(CL327,CM327,CN327,CO327,CP327,CQ327,CR327,CS327,CT327,CU327,IF(CV327=10,"A","")) ->  | CX327: =IF(MID($CW327,1,1)="","",IF(MID($CW327,1,1)="A",12,MID($CW327,1,1)+2)) ->  | CY327: =IF(MID($CW327,2,1)="","",IF(MID($CW327,2,1)="A",12,MID($CW327,2,1)+2)) ->  | CZ327: =IF(MID($CW327,3,1)="","",IF(MID($CW327,3,1)="A",12,MID($CW327,3,1)+2)) ->  | DA327: =IF(MID($CW327,4,1)="","",IF(MID($CW327,4,1)="A",12,MID($CW327,4,1)+2)) ->  | DB327: =IF(MID($CW327,5,1)="","",IF(MID($CW327,5,1)="A",12,MID($CW327,5,1)+2)) ->  | DC327: =IF(MID($CW327,6,1)="","",IF(MID($CW327,6,1)="A",12,MID($CW327,6,1)+2)) ->  | DD327: =IF(MID($CW327,7,1)="","",IF(MID($CW327,7,1)="A",12,MID($CW327,7,1)+2)) ->  | DE327: =IF(MID($CW327,8,1)="","",IF(MID($CW327,8,1)="A",12,MID($CW327,8,1)+2)) ->  | DF327: =IF(MID($CW327,9,1)="","",IF(MID($CW327,9,1)="A",12,MID($CW327,9,1)+2)) ->  | DG327: =IF(MID($CW327,10,1)="","",IF(MID($CW327,10,1)="A",12,MID($CW327,10,1)+2)) ->  | DH327: =IF(MID($CW327,11,1)="","",IF(MID($CW327,11,1)="A",12,MID($CW327,11,1)+2)) -> 
AD391: =IF(BZ391="","",OFFSET($D391,0,2*BZ391)) ->  | AE391: =IF(CA391="","",OFFSET($D391,0,2*CA391)) ->  | AF391: =IF(CB391="","",OFFSET($D391,0,2*CB391)) ->  | AG391: =IF(CC391="","",OFFSET($D391,0,2*CC391)) ->  | AH391: =IF(CD391="","",OFFSET($D391,0,2*CD391)) ->  | AI391: =IF(CE391="","",OFFSET($D391,0,2*CE391)) ->  | AJ391: =IF(CF391="","",OFFSET($D391,0,2*CF391)) ->  | AK391: =IF(CG391="","",OFFSET($D391,0,2*CG391)) ->  | AL391: =IF(CH391="","",OFFSET($D391,0,2*CH391)) ->  | AM391: =IF(CI391="","",OFFSET($D391,0,2*CI391)) ->  | AN391: =IF(CJ391="","",OFFSET($D391,0,2*CJ391)) ->  | AO391: =IF(CK391="","",OFFSET($D391,0,2*CK391)) ->  | AP391: =IF(BZ391="","",IF(COUNT(OFFSET($D391,0,2*BZ391-1,1,2))=2,OFFSET($D391,0,2*BZ391-1),"")) ->  | AQ391: =IF(CA391="","",IF(COUNT(OFFSET($D391,0,2*CA391-1,1,2))=2,OFFSET($D391,0,2*CA391-1),"")) ->  | AR391: =IF(CB391="","",IF(COUNT(OFFSET($D391,0,2*CB391-1,1,2))=2,OFFSET($D391,0,2*CB391-1),"")) ->  | AS391: =IF(CC391="","",IF(COUNT(OFFSET($D391,0,2*CC391-1,1,2))=2,OFFSET($D391,0,2*CC391-1),"")) ->  | AT391: =IF(CD391="","",IF(COUNT(OFFSET($D391,0,2*CD391-1,1,2))=2,OFFSET($D391,0,2*CD391-1),"")) ->  | AU391: =IF(CE391="","",IF(COUNT(OFFSET($D391,0,2*CE391-1,1,2))=2,OFFSET($D391,0,2*CE391-1),"")) ->  | AV391: =IF(CF391="","",IF(COUNT(OFFSET($D391,0,2*CF391-1,1,2))=2,OFFSET($D391,0,2*CF391-1),"")) ->  | AW391: =IF(CG391="","",IF(COUNT(OFFSET($D391,0,2*CG391-1,1,2))=2,OFFSET($D391,0,2*CG391-1),"")) ->  | AX391: =IF(CH391="","",IF(COUNT(OFFSET($D391,0,2*CH391-1,1,2))=2,OFFSET($D391,0,2*CH391-1),"")) ->  | AY391: =IF(CI391="","",IF(COUNT(OFFSET($D391,0,2*CI391-1,1,2))=2,OFFSET($D391,0,2*CI391-1),"")) ->  | AZ391: =IF(CJ391="","",IF(COUNT(OFFSET($D391,0,2*CJ391-1,1,2))=2,OFFSET($D391,0,2*CJ391-1),"")) ->  | BA391: =IF(CK391="","",IF(COUNT(OFFSET($D391,0,2*CK391-1,1,2))=2,OFFSET($D391,0,2*CK391-1),"")) ->  | BB391: =IF(AND(E391<>"",F391<>""),F391,"") ->  | BC391: =IF(AND(G391<>"",H391<>""),H391,"") ->  | BD391: =IF(AND(I391<>"",J391<>""),J391,"") ->  | BE391: =IF(AND(K391<>"",L391<>""),L391,"") ->  | BF391: =IF(AND(M391<>"",N391<>""),N391,"") ->  | BG391: =IF(AND(O391<>"",P391<>""),P391,"") ->  | BH391: =IF(AND(Q391<>"",R391<>""),R391,"") ->  | BI391: =IF(AND(S391<>"",T391<>""),T391,"") ->  | BJ391: =IF(AND(U391<>"",V391<>""),V391,"") ->  | BK391: =IF(AND(W391<>"",X391<>""),X391,"") ->  | BL391: =IF(AND(Y391<>"",Z391<>""),Z391,"") ->  | BM391: =IF(AND(AA391<>"",AB391<>""),AB391,"") ->  | BN391: =IF(BB391<>"",RANK(BB391,$BB391:$BM391,1),"") ->  | BO391: =IF(BC391<>"",RANK(BC391,$BB391:$BM391,1),"") ->  | BP391: =IF(BD391<>"",RANK(BD391,$BB391:$BM391,1),"") ->  | BQ391: =IF(BE391<>"",RANK(BE391,$BB391:$BM391,1),"") ->  | BR391: =IF(BF391<>"",RANK(BF391,$BB391:$BM391,1),"") ->  | BS391: =IF(BG391<>"",RANK(BG391,$BB391:$BM391,1),"") ->  | BT391: =IF(BH391<>"",RANK(BH391,$BB391:$BM391,1),"") ->  | BU391: =IF(BI391<>"",RANK(BI391,$BB391:$BM391,1),"") ->  | BV391: =IF(BJ391<>"",RANK(BJ391,$BB391:$BM391,1),"") ->  | BW391: =IF(BK391<>"",RANK(BK391,$BB391:$BM391,1),"") ->  | BX391: =IF(BL391<>"",RANK(BL391,$BB391:$BM391,1),"") ->  | BY391: =IF(BM391<>"",RANK(BM391,$BB391:$BM391,1),"") ->  | BZ391: =IF(ISNA(MATCH(1,$BN391:$BY391,0)),"",MATCH(1,$BN391:$BY391,0)) ->  | CA391: =IF(COUNT($CL391:$CV391)<1,"",MATCH(VALUE(CX391),$BN391:$BY391,0)) ->  | CB391: =IF(COUNT($CL391:$CV391)<2,"",MATCH(VALUE(CY391),$BN391:$BY391,0)) ->  | CC391: =IF(COUNT($CL391:$CV391)<3,"",MATCH(VALUE(CZ391),$BN391:$BY391,0)) ->  | CD391: =IF(COUNT($CL391:$CV391)<4,"",MATCH(VALUE(DA391),$BN391:$BY391,0)) ->  | CE391: =IF(COUNT($CL391:$CV391)<5,"",MATCH(VALUE(DB391),$BN391:$BY391,0)) ->  | CF391: =IF(COUNT($CL391:$CV391)<6,"",MATCH(VALUE(DC391),$BN391:$BY391,0)) ->  | CG391: =IF(COUNT($CL391:$CV391)<7,"",MATCH(VALUE(DD391),$BN391:$BY391,0)) ->  | CH391: =IF(COUNT($CL391:$CV391)<8,"",MATCH(VALUE(DE391),$BN391:$BY391,0)) ->  | CI391: =IF(COUNT($CL391:$CV391)<9,"",MATCH(VALUE(DF391),$BN391:$BY391,0)) ->  | CJ391: =IF(COUNT($CL391:$CV391)<10,"",MATCH(VALUE(DG391),$BN391:$BY391,0)) ->  | CK391: =IF(COUNT($CL391:$CV391)<11,"",MATCH(VALUE(DH391),$BN391:$BY391,0)) ->  | CL391: =IF(AND(COUNT($BN391:$BY391)>1,NOT(ISNA(MATCH(2,$BN391:$BY391,0)))),0,"") ->  | CM391: =IF(AND(COUNT($BN391:$BY391)>2,NOT(ISNA(MATCH(3,$BN391:$BY391,0)))),1,"") ->  | CN391: =IF(AND(COUNT($BN391:$BY391)>3,NOT(ISNA(MATCH(4,$BN391:$BY391,0)))),2,"") ->  | CO391: =IF(AND(COUNT($BN391:$BY391)>4,NOT(ISNA(MATCH(5,$BN391:$BY391,0)))),3,"") ->  | CP391: =IF(AND(COUNT($BN391:$BY391)>5,NOT(ISNA(MATCH(6,$BN391:$BY391,0)))),4,"") ->  | CQ391: =IF(AND(COUNT($BN391:$BY391)>6,NOT(ISNA(MATCH(7,$BN391:$BY391,0)))),5,"") ->  | CR391: =IF(AND(COUNT($BN391:$BY391)>7,NOT(ISNA(MATCH(8,$BN391:$BY391,0)))),6,"") ->  | CS391: =IF(AND(COUNT($BN391:$BY391)>8,NOT(ISNA(MATCH(9,$BN391:$BY391,0)))),7,"") ->  | CT391: =IF(AND(COUNT($BN391:$BY391)>9,NOT(ISNA(MATCH(10,$BN391:$BY391,0)))),8,"") ->  | CU391: =IF(AND(COUNT($BN391:$BY391)>10,NOT(ISNA(MATCH(11,$BN391:$BY391,0)))),9,"") ->  | CV391: =IF(AND(COUNT($BN391:$BY391)>11,NOT(ISNA(MATCH(12,$BN391:$BY391,0)))),10,"") ->  | CW391: =CONCATENATE(CL391,CM391,CN391,CO391,CP391,CQ391,CR391,CS391,CT391,CU391,IF(CV391=10,"A","")) ->  | CX391: =IF(MID($CW391,1,1)="","",IF(MID($CW391,1,1)="A",12,MID($CW391,1,1)+2)) ->  | CY391: =IF(MID($CW391,2,1)="","",IF(MID($CW391,2,1)="A",12,MID($CW391,2,1)+2)) ->  | CZ391: =IF(MID($CW391,3,1)="","",IF(MID($CW391,3,1)="A",12,MID($CW391,3,1)+2)) ->  | DA391: =IF(MID($CW391,4,1)="","",IF(MID($CW391,4,1)="A",12,MID($CW391,4,1)+2)) ->  | DB391: =IF(MID($CW391,5,1)="","",IF(MID($CW391,5,1)="A",12,MID($CW391,5,1)+2)) ->  | DC391: =IF(MID($CW391,6,1)="","",IF(MID($CW391,6,1)="A",12,MID($CW391,6,1)+2)) ->  | DD391: =IF(MID($CW391,7,1)="","",IF(MID($CW391,7,1)="A",12,MID($CW391,7,1)+2)) ->  | DE391: =IF(MID($CW391,8,1)="","",IF(MID($CW391,8,1)="A",12,MID($CW391,8,1)+2)) ->  | DF391: =IF(MID($CW391,9,1)="","",IF(MID($CW391,9,1)="A",12,MID($CW391,9,1)+2)) ->  | DG391: =IF(MID($CW391,10,1)="","",IF(MID($CW391,10,1)="A",12,MID($CW391,10,1)+2)) ->  | DH391: =IF(MID($CW391,11,1)="","",IF(MID($CW391,11,1)="A",12,MID($CW391,11,1)+2)) -> 
AD455: =IF(BZ455="","",OFFSET($D455,0,2*BZ455)) ->  | AE455: =IF(CA455="","",OFFSET($D455,0,2*CA455)) ->  | AF455: =IF(CB455="","",OFFSET($D455,0,2*CB455)) ->  | AG455: =IF(CC455="","",OFFSET($D455,0,2*CC455)) ->  | AH455: =IF(CD455="","",OFFSET($D455,0,2*CD455)) ->  | AI455: =IF(CE455="","",OFFSET($D455,0,2*CE455)) ->  | AJ455: =IF(CF455="","",OFFSET($D455,0,2*CF455)) ->  | AK455: =IF(CG455="","",OFFSET($D455,0,2*CG455)) ->  | AL455: =IF(CH455="","",OFFSET($D455,0,2*CH455)) ->  | AM455: =IF(CI455="","",OFFSET($D455,0,2*CI455)) ->  | AN455: =IF(CJ455="","",OFFSET($D455,0,2*CJ455)) ->  | AO455: =IF(CK455="","",OFFSET($D455,0,2*CK455)) ->  | AP455: =IF(BZ455="","",IF(COUNT(OFFSET($D455,0,2*BZ455-1,1,2))=2,OFFSET($D455,0,2*BZ455-1),"")) ->  | AQ455: =IF(CA455="","",IF(COUNT(OFFSET($D455,0,2*CA455-1,1,2))=2,OFFSET($D455,0,2*CA455-1),"")) ->  | AR455: =IF(CB455="","",IF(COUNT(OFFSET($D455,0,2*CB455-1,1,2))=2,OFFSET($D455,0,2*CB455-1),"")) ->  | AS455: =IF(CC455="","",IF(COUNT(OFFSET($D455,0,2*CC455-1,1,2))=2,OFFSET($D455,0,2*CC455-1),"")) ->  | AT455: =IF(CD455="","",IF(COUNT(OFFSET($D455,0,2*CD455-1,1,2))=2,OFFSET($D455,0,2*CD455-1),"")) ->  | AU455: =IF(CE455="","",IF(COUNT(OFFSET($D455,0,2*CE455-1,1,2))=2,OFFSET($D455,0,2*CE455-1),"")) ->  | AV455: =IF(CF455="","",IF(COUNT(OFFSET($D455,0,2*CF455-1,1,2))=2,OFFSET($D455,0,2*CF455-1),"")) ->  | AW455: =IF(CG455="","",IF(COUNT(OFFSET($D455,0,2*CG455-1,1,2))=2,OFFSET($D455,0,2*CG455-1),"")) ->  | AX455: =IF(CH455="","",IF(COUNT(OFFSET($D455,0,2*CH455-1,1,2))=2,OFFSET($D455,0,2*CH455-1),"")) ->  | AY455: =IF(CI455="","",IF(COUNT(OFFSET($D455,0,2*CI455-1,1,2))=2,OFFSET($D455,0,2*CI455-1),"")) ->  | AZ455: =IF(CJ455="","",IF(COUNT(OFFSET($D455,0,2*CJ455-1,1,2))=2,OFFSET($D455,0,2*CJ455-1),"")) ->  | BA455: =IF(CK455="","",IF(COUNT(OFFSET($D455,0,2*CK455-1,1,2))=2,OFFSET($D455,0,2*CK455-1),"")) ->  | BB455: =IF(AND(E455<>"",F455<>""),F455,"") ->  | BC455: =IF(AND(G455<>"",H455<>""),H455,"") ->  | BD455: =IF(AND(I455<>"",J455<>""),J455,"") ->  | BE455: =IF(AND(K455<>"",L455<>""),L455,"") ->  | BF455: =IF(AND(M455<>"",N455<>""),N455,"") ->  | BG455: =IF(AND(O455<>"",P455<>""),P455,"") ->  | BH455: =IF(AND(Q455<>"",R455<>""),R455,"") ->  | BI455: =IF(AND(S455<>"",T455<>""),T455,"") ->  | BJ455: =IF(AND(U455<>"",V455<>""),V455,"") ->  | BK455: =IF(AND(W455<>"",X455<>""),X455,"") ->  | BL455: =IF(AND(Y455<>"",Z455<>""),Z455,"") ->  | BM455: =IF(AND(AA455<>"",AB455<>""),AB455,"") ->  | BN455: =IF(BB455<>"",RANK(BB455,$BB455:$BM455,1),"") ->  | BO455: =IF(BC455<>"",RANK(BC455,$BB455:$BM455,1),"") ->  | BP455: =IF(BD455<>"",RANK(BD455,$BB455:$BM455,1),"") ->  | BQ455: =IF(BE455<>"",RANK(BE455,$BB455:$BM455,1),"") ->  | BR455: =IF(BF455<>"",RANK(BF455,$BB455:$BM455,1),"") ->  | BS455: =IF(BG455<>"",RANK(BG455,$BB455:$BM455,1),"") ->  | BT455: =IF(BH455<>"",RANK(BH455,$BB455:$BM455,1),"") ->  | BU455: =IF(BI455<>"",RANK(BI455,$BB455:$BM455,1),"") ->  | BV455: =IF(BJ455<>"",RANK(BJ455,$BB455:$BM455,1),"") ->  | BW455: =IF(BK455<>"",RANK(BK455,$BB455:$BM455,1),"") ->  | BX455: =IF(BL455<>"",RANK(BL455,$BB455:$BM455,1),"") ->  | BY455: =IF(BM455<>"",RANK(BM455,$BB455:$BM455,1),"") ->  | BZ455: =IF(ISNA(MATCH(1,$BN455:$BY455,0)),"",MATCH(1,$BN455:$BY455,0)) ->  | CA455: =IF(COUNT($CL455:$CV455)<1,"",MATCH(VALUE(CX455),$BN455:$BY455,0)) ->  | CB455: =IF(COUNT($CL455:$CV455)<2,"",MATCH(VALUE(CY455),$BN455:$BY455,0)) ->  | CC455: =IF(COUNT($CL455:$CV455)<3,"",MATCH(VALUE(CZ455),$BN455:$BY455,0)) ->  | CD455: =IF(COUNT($CL455:$CV455)<4,"",MATCH(VALUE(DA455),$BN455:$BY455,0)) ->  | CE455: =IF(COUNT($CL455:$CV455)<5,"",MATCH(VALUE(DB455),$BN455:$BY455,0)) ->  | CF455: =IF(COUNT($CL455:$CV455)<6,"",MATCH(VALUE(DC455),$BN455:$BY455,0)) ->  | CG455: =IF(COUNT($CL455:$CV455)<7,"",MATCH(VALUE(DD455),$BN455:$BY455,0)) ->  | CH455: =IF(COUNT($CL455:$CV455)<8,"",MATCH(VALUE(DE455),$BN455:$BY455,0)) ->  | CI455: =IF(COUNT($CL455:$CV455)<9,"",MATCH(VALUE(DF455),$BN455:$BY455,0)) ->  | CJ455: =IF(COUNT($CL455:$CV455)<10,"",MATCH(VALUE(DG455),$BN455:$BY455,0)) ->  | CK455: =IF(COUNT($CL455:$CV455)<11,"",MATCH(VALUE(DH455),$BN455:$BY455,0)) ->  | CL455: =IF(AND(COUNT($BN455:$BY455)>1,NOT(ISNA(MATCH(2,$BN455:$BY455,0)))),0,"") ->  | CM455: =IF(AND(COUNT($BN455:$BY455)>2,NOT(ISNA(MATCH(3,$BN455:$BY455,0)))),1,"") ->  | CN455: =IF(AND(COUNT($BN455:$BY455)>3,NOT(ISNA(MATCH(4,$BN455:$BY455,0)))),2,"") ->  | CO455: =IF(AND(COUNT($BN455:$BY455)>4,NOT(ISNA(MATCH(5,$BN455:$BY455,0)))),3,"") ->  | CP455: =IF(AND(COUNT($BN455:$BY455)>5,NOT(ISNA(MATCH(6,$BN455:$BY455,0)))),4,"") ->  | CQ455: =IF(AND(COUNT($BN455:$BY455)>6,NOT(ISNA(MATCH(7,$BN455:$BY455,0)))),5,"") ->  | CR455: =IF(AND(COUNT($BN455:$BY455)>7,NOT(ISNA(MATCH(8,$BN455:$BY455,0)))),6,"") ->  | CS455: =IF(AND(COUNT($BN455:$BY455)>8,NOT(ISNA(MATCH(9,$BN455:$BY455,0)))),7,"") ->  | CT455: =IF(AND(COUNT($BN455:$BY455)>9,NOT(ISNA(MATCH(10,$BN455:$BY455,0)))),8,"") ->  | CU455: =IF(AND(COUNT($BN455:$BY455)>10,NOT(ISNA(MATCH(11,$BN455:$BY455,0)))),9,"") ->  | CV455: =IF(AND(COUNT($BN455:$BY455)>11,NOT(ISNA(MATCH(12,$BN455:$BY455,0)))),10,"") ->  | CW455: =CONCATENATE(CL455,CM455,CN455,CO455,CP455,CQ455,CR455,CS455,CT455,CU455,IF(CV455=10,"A","")) ->  | CX455: =IF(MID($CW455,1,1)="","",IF(MID($CW455,1,1)="A",12,MID($CW455,1,1)+2)) ->  | CY455: =IF(MID($CW455,2,1)="","",IF(MID($CW455,2,1)="A",12,MID($CW455,2,1)+2)) ->  | CZ455: =IF(MID($CW455,3,1)="","",IF(MID($CW455,3,1)="A",12,MID($CW455,3,1)+2)) ->  | DA455: =IF(MID($CW455,4,1)="","",IF(MID($CW455,4,1)="A",12,MID($CW455,4,1)+2)) ->  | DB455: =IF(MID($CW455,5,1)="","",IF(MID($CW455,5,1)="A",12,MID($CW455,5,1)+2)) ->  | DC455: =IF(MID($CW455,6,1)="","",IF(MID($CW455,6,1)="A",12,MID($CW455,6,1)+2)) ->  | DD455: =IF(MID($CW455,7,1)="","",IF(MID($CW455,7,1)="A",12,MID($CW455,7,1)+2)) ->  | DE455: =IF(MID($CW455,8,1)="","",IF(MID($CW455,8,1)="A",12,MID($CW455,8,1)+2)) ->  | DF455: =IF(MID($CW455,9,1)="","",IF(MID($CW455,9,1)="A",12,MID($CW455,9,1)+2)) ->  | DG455: =IF(MID($CW455,10,1)="","",IF(MID($CW455,10,1)="A",12,MID($CW455,10,1)+2)) ->  | DH455: =IF(MID($CW455,11,1)="","",IF(MID($CW455,11,1)="A",12,MID($CW455,11,1)+2)) -> 

Sheet Print-out
C1: Field Probe ID: | E1: 176194 | J1: =IF($E2="","",IF(ISNA(MATCH($E2,$Z$1:$Z$73,0)),"",SUM(OFFSET($Y1,0,0,MATCH($E2,$Z$1:$Z$73,0),1)))) -> 4 | K1: Observer: | L1: =IF($J$1="","",IF(INDEX('Temperature Checks'!$C$6:$C$500,$J$1,1)="","",INDEX('Temperature Checks'!$C$6:$C$500,$J$1,1))) -> MAM | Y1: =IF(ISNA(MATCH($E$1,'Temperature Checks'!$A$6:$A$500,0)),0,MATCH($E$1,'Temperature Checks'!$A$6:$A$500,0)) -> 1 | Z1: =IF($Y1=0,"",INDEX('Temperature Checks'!$B$6:$B$500,$Y1)) -> 12 12 2017
C2: Date of Check: | E2: 6 11 2018 | H2: NIST certified probe ID: | L2: =IF($J$1="","",IF(INDEX('Temperature Checks'!$D$6:$D$500,$J$1,1)="","",INDEX('Temperature Checks'!$D$6:$D$500,$J$1,1))) -> 11506500 | Y2: =IF(ISNA(MATCH($E$1,OFFSET('Temperature Checks'!$A$6,$Y1,0,495-$Y1,1),0)),0,MATCH($E$1,OFFSET('Temperature Checks'!$A$6,$Y1,0,495-$Y1,1),0)) -> 1 | Z2: =IF($Y2=0,"",INDEX('Temperature Checks'!$B$6:$B$500,SUM($Y$1:$Y2))) -> 03 27 2018
Y3: =IF(ISNA(MATCH($E$1,OFFSET('Temperature Checks'!$A$6,SUM($Y$1:$Y2),0,495-SUM($Y$1:$Y2),1),0)),0,MATCH($E$1,OFFSET('Temperature Checks'!$A$6,SUM($Y$1:$Y2),0,495-SUM($Y$1:$Y2),1),0)) -> 2 | Z3: =IF($Y3=0,"",INDEX('Temperature Checks'!$B$6:$B$500,SUM($Y$1:$Y3))) -> 6 11 2018
A4: Temperature Checks (°C) | Y4: =IF(ISNA(MATCH($E$1,OFFSET('Temperature Checks'!$A$6,SUM($Y$1:$Y3),0,495-SUM($Y$1:$Y3),1),0)),0,MATCH($E$1,OFFSET('Temperature Checks'!$A$6,SUM($Y$1:$Y3),0,495-SUM($Y$1:$Y3),1),0)) -> 0 | Z4: =IF($Y4=0,"",INDEX('Temperature Checks'!$B$6:$B$500,SUM($Y$1:$Y4))) -> 
A5: NIST | D5: Field | G5: Probe | K5: Field | L5: Corrected | O5: Field | P5: Corrected | S5: Field | T5: Corrected | W5: Field | X5: Corrected | Y5: =IF(ISNA(MATCH($E$1,OFFSET('Temperature Checks'!$A$6,SUM($Y$1:$Y4),0,495-SUM($Y$1:$Y4),1),0)),0,MATCH($E$1,OFFSET('Temperature Checks'!$A$6,SUM($Y$1:$Y4),0,495-SUM($Y$1:$Y4),1),0)) -> 0 | Z5: =IF($Y5=0,"",INDEX('Temperature Checks'!$B$6:$B$500,SUM($Y$1:$Y5))) -> 
A6: Thermometer | D6: Probe | G6: Error | K6: Probe | L6: NIST | O6: Probe | P6: NIST | S6: Probe | T6: NIST | W6: Probe | X6: NIST | Y6: =IF(ISNA(MATCH($E$1,OFFSET('Temperature Checks'!$A$6,SUM($Y$1:$Y5),0,495-SUM($Y$1:$Y5),1),0)),0,MATCH($E$1,OFFSET('Temperature Checks'!$A$6,SUM($Y$1:$Y5),0,495-SUM($Y$1:$Y5),1),0)) -> 0 | Z6: =IF($Y6=0,"",INDEX('Temperature Checks'!$B$6:$B$500,SUM($Y$1:$Y6))) -> 
A7: =IF($J$1="","",IF(INDEX('Temperature Checks'!$AP$6:$AP$500,$J$1,1)="","",INDEX('Temperature Checks'!$AP$6:$AP$500,$J$1,1))) -> 0.03 | D7: =IF($J$1="","",IF(INDEX('Temperature Checks'!$AD$6:$AD$500,$J$1,1)="","",INDEX('Temperature Checks'!$AD$6:$AD$500,$J$1,1))) -> 0.1 | G7: =IF(NOT(ISERR(D7-A7)),D7-A7,"") -> 0.07 | K7: Reading | L7: Reading | O7: Reading | P7: Reading | S7: Reading | T7: Reading | W7: Reading | X7: Reading | Y7: =IF(ISNA(MATCH($E$1,OFFSET('Temperature Checks'!$A$6,SUM($Y$1:$Y6),0,495-SUM($Y$1:$Y6),1),0)),0,MATCH($E$1,OFFSET('Temperature Checks'!$A$6,SUM($Y$1:$Y6),0,495-SUM($Y$1:$Y6),1),0)) -> 0 | Z7: =IF($Y7=0,"",INDEX('Temperature Checks'!$B$6:$B$500,SUM($Y$1:$Y7))) -> 
A8: =IF($J$1="","",IF(INDEX('Temperature Checks'!$AQ$6:$AQ$500,$J$1,1)="","",INDEX('Temperature Checks'!$AQ$6:$AQ$500,$J$1,1))) -> 4.98 | D8: =IF($J$1="","",IF(INDEX('Temperature Checks'!$AE$6:$AE$500,$J$1,1)="","",INDEX('Temperature Checks'!$AE$6:$AE$500,$J$1,1))) -> 5 | G8: 0.02 | K8: (°C) | L8: (°C) | O8: (°C) | P8: (°C) | S8: (°C) | T8: (°C) | W8: (°C) | X8: (°C) | Y8: =IF(ISNA(MATCH($E$1,OFFSET('Temperature Checks'!$A$6,SUM($Y$1:$Y7),0,495-SUM($Y$1:$Y7),1),0)),0,MATCH($E$1,OFFSET('Temperature Checks'!$A$6,SUM($Y$1:$Y7),0,495-SUM($Y$1:$Y7),1),0)) -> 0 | Z8: =IF($Y8=0,"",INDEX('Temperature Checks'!$B$6:$B$500,SUM($Y$1:$Y8))) -> 
A9: =IF($J$1="","",IF(INDEX('Temperature Checks'!$AR$6:$AR$500,$J$1,1)="","",INDEX('Temperature Checks'!$AR$6:$AR$500,$J$1,1))) -> 10 | D9: =IF($J$1="","",IF(INDEX('Temperature Checks'!$AF$6:$AF$500,$J$1,1)="","",INDEX('Temperature Checks'!$AF$6:$AF$500,$J$1,1))) -> 10 | G9: 0 | J9: =IF(COUNT($D$7:$D$18)=0,"",IF(ISNA(LOOKUP(K9,$D$7:$D$18,{1,2,3,4,5,6,7,8,9,10,11,12})),0,LOOKUP(K9,$D$7:$D$18,{1,2,3,4,5,6,7,8,9,10,11,12}))) -> 3 | K9: 10 | L9: =IF(COUNT($D$7:$D$18)=0,"",IF(J9=0,K9-$G$7,IF(J9=COUNT($D$7:$D$18),K9-INDEX($G$7:$G$18,COUNT($D$7:$D$18)),K9-(INDEX($G$7:$G$18,J9)+(INDEX($G$7:$G$18,J9+1)-INDEX($G$7:$G$18,J9))*(K9-INDEX($D$7:$D$18,J9))/(INDEX($D$7:$D$18,J9+1)-INDEX($D$7:$D$18,J9)))))) -> 10 | N9: =IF(COUNT($D$7:$D$18)=0,"",IF(ISNA(LOOKUP(O9,$D$7:$D$18,{1,2,3,4,5,6,7,8,9,10,11,12})),0,LOOKUP(O9,$D$7:$D$18,{1,2,3,4,5,6,7,8,9,10,11,12}))) -> 4 | O9: 16.5 | P9: =IF(COUNT($D$7:$D$18)=0,"",IF(N9=0,O9-$G$7,IF(N9=COUNT($D$7:$D$18),O9-INDEX($G$7:$G$18,COUNT($D$7:$D$18)),O9-(INDEX($G$7:$G$18,N9)+(INDEX($G$7:$G$18,N9+1)-INDEX($G$7:$G$18,N9))*(O9-INDEX($D$7:$D$18,N9))/(INDEX($D$7:$D$18,N9+1)-INDEX($D$7:$D$18,N9)))))) -> 16.516 | R9: =IF(COUNT($D$7:$D$18)=0,"",IF(ISNA(LOOKUP(S9,$D$7:$D$18,{1,2,3,4,5,6,7,8,9,10,11,12})),0,LOOKUP(S9,$D$7:$D$18,{1,2,3,4,5,6,7,8,9,10,11,12}))) -> 5 | S9: 23 | T9: =IF(COUNT($D$7:$D$18)=0,"",IF(R9=0,S9-$G$7,IF(R9=COUNT($D$7:$D$18),S9-INDEX($G$7:$G$18,COUNT($D$7:$D$18)),S9-(INDEX($G$7:$G$18,R9)+(INDEX($G$7:$G$18,R9+1)-INDEX($G$7:$G$18,R9))*(S9-INDEX($D$7:$D$18,R9))/(INDEX($D$7:$D$18,R9+1)-INDEX($D$7:$D$18,R9)))))) -> 22.955 | V9: =IF(COUNT($D$7:$D$18)=0,"",IF(ISNA(LOOKUP(W9,$D$7:$D$18,{1,2,3,4,5,6,7,8,9,10,11,12})),0,LOOKUP(W9,$D$7:$D$18,{1,2,3,4,5,6,7,8,9,10,11,12}))) -> 6 | W9: 29.5 | X9: =IF(COUNT($D$7:$D$18)=0,"",IF(V9=0,W9-$G$7,IF(V9=COUNT($D$7:$D$18),W9-INDEX($G$7:$G$18,COUNT($D$7:$D$18)),W9-(INDEX($G$7:$G$18,V9)+(INDEX($G$7:$G$18,V9+1)-INDEX($G$7:$G$18,V9))*(W9-INDEX($D$7:$D$18,V9))/(INDEX($D$7:$D$18,V9+1)-INDEX($D$7:$D$18,V9)))))) -> 29.4 | Y9: =IF(ISNA(MATCH($E$1,OFFSET('Temperature Checks'!$A$6,SUM($Y$1:$Y8),0,495-SUM($Y$1:$Y8),1),0)),0,MATCH($E$1,OFFSET('Temperature Checks'!$A$6,SUM($Y$1:$Y8),0,495-SUM($Y$1:$Y8),1),0)) -> 0 | Z9: =IF($Y9=0,"",INDEX('Temperature Checks'!$B$6:$B$500,SUM($Y$1:$Y9))) -> 
A10: =IF($J$1="","",IF(INDEX('Temperature Checks'!$AS$6:$AS$500,$J$1,1)="","",INDEX('Temperature Checks'!$AS$6:$AS$500,$J$1,1))) -> 15.01 | D10: =IF($J$1="","",IF(INDEX('Temperature Checks'!$AG$6:$AG$500,$J$1,1)="","",INDEX('Temperature Checks'!$AG$6:$AG$500,$J$1,1))) -> 15 | G10: -0.01 | J10: =IF(COUNT($D$7:$D$18)=0,"",IF(ISNA(LOOKUP(K10,$D$7:$D$18,{1,2,3,4,5,6,7,8,9,10,11,12})),0,LOOKUP(K10,$D$7:$D$18,{1,2,3,4,5,6,7,8,9,10,11,12}))) -> 3 | K10: 10.1 | L10: 10.1002 | N10: =IF(COUNT($D$7:$D$18)=0,"",IF(ISNA(LOOKUP(O10,$D$7:$D$18,{1,2,3,4,5,6,7,8,9,10,11,12})),0,LOOKUP(O10,$D$7:$D$18,{1,2,3,4,5,6,7,8,9,10,11,12}))) -> 4 | O10: 16.6 | P10: 16.6164 | R10: =IF(COUNT($D$7:$D$18)=0,"",IF(ISNA(LOOKUP(S10,$D$7:$D$18,{1,2,3,4,5,6,7,8,9,10,11,12})),0,LOOKUP(S10,$D$7:$D$18,{1,2,3,4,5,6,7,8,9,10,11,12}))) -> 5 | S10: 23.1 | T10: =IF(COUNT($D$7:$D$18)=0,"",IF(R10=0,S10-$G$7,IF(R10=COUNT($D$7:$D$18),S10-INDEX($G$7:$G$18,COUNT($D$7:$D$18)),S10-(INDEX($G$7:$G$18,R10)+(INDEX($G$7:$G$18,R10+1)-INDEX($G$7:$G$18,R10))*(S10-INDEX($D$7:$D$18,R10))/(INDEX($D$7:$D$18,R10+1)-INDEX($D$7:$D$18,R10)))))) -> 23.0525 | V10: =IF(COUNT($D$7:$D$18)=0,"",IF(ISNA(LOOKUP(W10,$D$7:$D$18,{1,2,3,4,5,6,7,8,9,10,11,12})),0,LOOKUP(W10,$D$7:$D$18,{1,2,3,4,5,6,7,8,9,10,11,12}))) -> 6 | W10: 29.6 | X10: =IF(COUNT($D$7:$D$18)=0,"",IF(V10=0,W10-$G$7,IF(V10=COUNT($D$7:$D$18),W10-INDEX($G$7:$G$18,COUNT($D$7:$D$18)),W10-(INDEX($G$7:$G$18,V10)+(INDEX($G$7:$G$18,V10+1)-INDEX($G$7:$G$18,V10))*(W10-INDEX($D$7:$D$18,V10))/(INDEX($D$7:$D$18,V10+1)-INDEX($D$7:$D$18,V10)))))) -> 29.5 | Y10: =IF(ISNA(MATCH($E$1,OFFSET('Temperature Checks'!$A$6,SUM($Y$1:$Y9),0,495-SUM($Y$1:$Y9),1),0)),0,MATCH($E$1,OFFSET('Temperature Checks'!$A$6,SUM($Y$1:$Y9),0,495-SUM($Y$1:$Y9),1),0)) -> 0 | Z10: =IF($Y10=0,"",INDEX('Temperature Checks'!$B$6:$B$500,SUM($Y$1:$Y10))) -> 
A11: =IF($J$1="","",IF(INDEX('Temperature Checks'!$AT$6:$AT$500,$J$1,1)="","",INDEX('Temperature Checks'!$AT$6:$AT$500,$J$1,1))) -> 20.03 | D11: =IF($J$1="","",IF(INDEX('Temperature Checks'!$AH$6:$AH$500,$J$1,1)="","",INDEX('Temperature Checks'!$AH$6:$AH$500,$J$1,1))) -> 20 | G11: -0.03 | J11: =IF(COUNT($D$7:$D$18)=0,"",IF(ISNA(LOOKUP(K11,$D$7:$D$18,{1,2,3,4,5,6,7,8,9,10,11,12})),0,LOOKUP(K11,$D$7:$D$18,{1,2,3,4,5,6,7,8,9,10,11,12}))) -> 3 | K11: 10.2 | L11: 10.2004 | N11: =IF(COUNT($D$7:$D$18)=0,"",IF(ISNA(LOOKUP(O11,$D$7:$D$18,{1,2,3,4,5,6,7,8,9,10,11,12})),0,LOOKUP(O11,$D$7:$D$18,{1,2,3,4,5,6,7,8,9,10,11,12}))) -> 4 | O11: 16.7 | P11: 16.7168 | R11: =IF(COUNT($D$7:$D$18)=0,"",IF(ISNA(LOOKUP(S11,$D$7:$D$18,{1,2,3,4,5,6,7,8,9,10,11,12})),0,LOOKUP(S11,$D$7:$D$18,{1,2,3,4,5,6,7,8,9,10,11,12}))) -> 5 | S11: 23.2 | T11: 23.15 | V11: =IF(COUNT($D$7:$D$18)=0,"",IF(ISNA(LOOKUP(W11,$D$7:$D$18,{1,2,3,4,5,6,7,8,9,10,11,12})),0,LOOKUP(W11,$D$7:$D$18,{1,2,3,4,5,6,7,8,9,10,11,12}))) -> 6 | W11: 29.7 | X11: 29.6 | Y11: =IF(ISNA(MATCH($E$1,OFFSET('Temperature Checks'!$A$6,SUM($Y$1:$Y10),0,495-SUM($Y$1:$Y10),1),0)),0,MATCH($E$1,OFFSET('Temperature Checks'!$A$6,SUM($Y$1:$Y10),0,495-SUM($Y$1:$Y10),1),0)) -> 0 | Z11: =IF($Y11=0,"",INDEX('Temperature Checks'!$B$6:$B$500,SUM($Y$1:$Y11))) -> 
A12: =IF($J$1="","",IF(INDEX('Temperature Checks'!$AU$6:$AU$500,$J$1,1)="","",INDEX('Temperature Checks'!$AU$6:$AU$500,$J$1,1))) -> 25.1 | D12: =IF($J$1="","",IF(INDEX('Temperature Checks'!$AI$6:$AI$500,$J$1,1)="","",INDEX('Temperature Checks'!$AI$6:$AI$500,$J$1,1))) -> 25.2 | G12: 0.1 | J12: =IF(COUNT($D$7:$D$18)=0,"",IF(ISNA(LOOKUP(K12,$D$7:$D$18,{1,2,3,4,5,6,7,8,9,10,11,12})),0,LOOKUP(K12,$D$7:$D$18,{1,2,3,4,5,6,7,8,9,10,11,12}))) -> 3 | K12: 10.3 | L12: 10.3006 | N12: =IF(COUNT($D$7:$D$18)=0,"",IF(ISNA(LOOKUP(O12,$D$7:$D$18,{1,2,3,4,5,6,7,8,9,10,11,12})),0,LOOKUP(O12,$D$7:$D$18,{1,2,3,4,5,6,7,8,9,10,11,12}))) -> 4 | O12: 16.8 | P12: 16.8172 | R12: =IF(COUNT($D$7:$D$18)=0,"",IF(ISNA(LOOKUP(S12,$D$7:$D$18,{1,2,3,4,5,6,7,8,9,10,11,12})),0,LOOKUP(S12,$D$7:$D$18,{1,2,3,4,5,6,7,8,9,10,11,12}))) -> 5 | S12: 23.3 | T12: 23.2475 | V12: =IF(COUNT($D$7:$D$18)=0,"",IF(ISNA(LOOKUP(W12,$D$7:$D$18,{1,2,3,4,5,6,7,8,9,10,11,12})),0,LOOKUP(W12,$D$7:$D$18,{1,2,3,4,5,6,7,8,9,10,11,12}))) -> 6 | W12: 29.8 | X12: 29.7 | Y12: =IF(ISNA(MATCH($E$1,OFFSET('Temperature Checks'!$A$6,SUM($Y$1:$Y11),0,495-SUM($Y$1:$Y11),1),0)),0,MATCH($E$1,OFFSET('Temperature Checks'!$A$6,SUM($Y$1:$Y11),0,495-SUM($Y$1:$Y11),1),0)) -> 0 | Z12: =IF($Y12=0,"",INDEX('Temperature Checks'!$B$6:$B$500,SUM($Y$1:$Y12))) -> 
A13: =IF($J$1="","",IF(INDEX('Temperature Checks'!$AV$6:$AV$500,$J$1,1)="","",INDEX('Temperature Checks'!$AV$6:$AV$500,$J$1,1))) ->  | D13: =IF($J$1="","",IF(INDEX('Temperature Checks'!$AJ$6:$AJ$500,$J$1,1)="","",INDEX('Temperature Checks'!$AJ$6:$AJ$500,$J$1,1))) ->  | J13: =IF(COUNT($D$7:$D$18)=0,"",IF(ISNA(LOOKUP(K13,$D$7:$D$18,{1,2,3,4,5,6,7,8,9,10,11,12})),0,LOOKUP(K13,$D$7:$D$18,{1,2,3,4,5,6,7,8,9,10,11,12}))) -> 3 | K13: 10.4 | L13: 10.4008 | N13: =IF(COUNT($D$7:$D$18)=0,"",IF(ISNA(LOOKUP(O13,$D$7:$D$18,{1,2,3,4,5,6,7,8,9,10,11,12})),0,LOOKUP(O13,$D$7:$D$18,{1,2,3,4,5,6,7,8,9,10,11,12}))) -> 4 | O13: 16.9 | P13: 16.9176 | R13: =IF(COUNT($D$7:$D$18)=0,"",IF(ISNA(LOOKUP(S13,$D$7:$D$18,{1,2,3,4,5,6,7,8,9,10,11,12})),0,LOOKUP(S13,$D$7:$D$18,{1,2,3,4,5,6,7,8,9,10,11,12}))) -> 5 | S13: 23.4 | T13: 23.345 | V13: =IF(COUNT($D$7:$D$18)=0,"",IF(ISNA(LOOKUP(W13,$D$7:$D$18,{1,2,3,4,5,6,7,8,9,10,11,12})),0,LOOKUP(W13,$D$7:$D$18,{1,2,3,4,5,6,7,8,9,10,11,12}))) -> 6 | W13: 29.9 | X13: 29.8 | Y13: =IF(ISNA(MATCH($E$1,OFFSET('Temperature Checks'!$A$6,SUM($Y$1:$Y12),0,495-SUM($Y$1:$Y12),1),0)),0,MATCH($E$1,OFFSET('Temperature Checks'!$A$6,SUM($Y$1:$Y12),0,495-SUM($Y$1:$Y12),1),0)) -> 0 | Z13: =IF($Y13=0,"",INDEX('Temperature Checks'!$B$6:$B$500,SUM($Y$1:$Y13))) -> 
A14: =IF($J$1="","",IF(INDEX('Temperature Checks'!$AW$6:$AW$500,$J$1,1)="","",INDEX('Temperature Checks'!$AW$6:$AW$500,$J$1,1))) ->  | D14: =IF($J$1="","",IF(INDEX('Temperature Checks'!$AK$6:$AK$500,$J$1,1)="","",INDEX('Temperature Checks'!$AK$6:$AK$500,$J$1,1))) ->  | J14: =IF(COUNT($D$7:$D$18)=0,"",IF(ISNA(LOOKUP(K14,$D$7:$D$18,{1,2,3,4,5,6,7,8,9,10,11,12})),0,LOOKUP(K14,$D$7:$D$18,{1,2,3,4,5,6,7,8,9,10,11,12}))) -> 3 | K14: 10.5 | L14: 10.501 | N14: =IF(COUNT($D$7:$D$18)=0,"",IF(ISNA(LOOKUP(O14,$D$7:$D$18,{1,2,3,4,5,6,7,8,9,10,11,12})),0,LOOKUP(O14,$D$7:$D$18,{1,2,3,4,5,6,7,8,9,10,11,12}))) -> 4 | O14: 17 | P14: 17.018 | R14: =IF(COUNT($D$7:$D$18)=0,"",IF(ISNA(LOOKUP(S14,$D$7:$D$18,{1,2,3,4,5,6,7,8,9,10,11,12})),0,LOOKUP(S14,$D$7:$D$18,{1,2,3,4,5,6,7,8,9,10,11,12}))) -> 5 | S14: 23.5 | T14: 23.4425 | V14: =IF(COUNT($D$7:$D$18)=0,"",IF(ISNA(LOOKUP(W14,$D$7:$D$18,{1,2,3,4,5,6,7,8,9,10,11,12})),0,LOOKUP(W14,$D$7:$D$18,{1,2,3,4,5,6,7,8,9,10,11,12}))) -> 6 | W14: 30 | X14: 29.9 | Y14: =IF(ISNA(MATCH($E$1,OFFSET('Temperature Checks'!$A$6,SUM($Y$1:$Y13),0,495-SUM($Y$1:$Y13),1),0)),0,MATCH($E$1,OFFSET('Temperature Checks'!$A$6,SUM($Y$1:$Y13),0,495-SUM($Y$1:$Y13),1),0)) -> 0 | Z14: =IF($Y14=0,"",INDEX('Temperature Checks'!$B$6:$B$500,SUM($Y$1:$Y14))) -> 
A15: =IF($J$1="","",IF(INDEX('Temperature Checks'!$AX$6:$AX$500,$J$1,1)="","",INDEX('Temperature Checks'!$AX$6:$AX$500,$J$1,1))) ->  | D15: =IF($J$1="","",IF(INDEX('Temperature Checks'!$AL$6:$AL$500,$J$1,1)="","",INDEX('Temperature Checks'!$AL$6:$AL$500,$J$1,1))) ->  | J15: =IF(COUNT($D$7:$D$18)=0,"",IF(ISNA(LOOKUP(K15,$D$7:$D$18,{1,2,3,4,5,6,7,8,9,10,11,12})),0,LOOKUP(K15,$D$7:$D$18,{1,2,3,4,5,6,7,8,9,10,11,12}))) -> 3 | K15: 10.6 | L15: 10.6012 | N15: =IF(COUNT($D$7:$D$18)=0,"",IF(ISNA(LOOKUP(O15,$D$7:$D$18,{1,2,3,4,5,6,7,8,9,10,11,12})),0,LOOKUP(O15,$D$7:$D$18,{1,2,3,4,5,6,7,8,9,10,11,12}))) -> 4 | O15: 17.1 | P15: 17.1184 | R15: =IF(COUNT($D$7:$D$18)=0,"",IF(ISNA(LOOKUP(S15,$D$7:$D$18,{1,2,3,4,5,6,7,8,9,10,11,12})),0,LOOKUP(S15,$D$7:$D$18,{1,2,3,4,5,6,7,8,9,10,11,12}))) -> 5 | S15: 23.6 | T15: 23.54 | V15: =IF(COUNT($D$7:$D$18)=0,"",IF(ISNA(LOOKUP(W15,$D$7:$D$18,{1,2,3,4,5,6,7,8,9,10,11,12})),0,LOOKUP(W15,$D$7:$D$18,{1,2,3,4,5,6,7,8,9,10,11,12}))) -> 6 | W15: 30.1 | X15: 30 | Y15: =IF(ISNA(MATCH($E$1,OFFSET('Temperature Checks'!$A$6,SUM($Y$1:$Y14),0,495-SUM($Y$1:$Y14),1),0)),0,MATCH($E$1,OFFSET('Temperature Checks'!$A$6,SUM($Y$1:$Y14),0,495-SUM($Y$1:$Y14),1),0)) -> 0 | Z15: =IF($Y15=0,"",INDEX('Temperature Checks'!$B$6:$B$500,SUM($Y$1:$Y15))) -> 
A16: =IF($J$1="","",IF(INDEX('Temperature Checks'!$AY$6:$AY$500,$J$1,1)="","",INDEX('Temperature Checks'!$AY$6:$AY$500,$J$1,1))) ->  | D16: =IF($J$1="","",IF(INDEX('Temperature Checks'!$AM$6:$AM$500,$J$1,1)="","",INDEX('Temperature Checks'!$AM$6:$AM$500,$J$1,1))) ->  | J16: =IF(COUNT($D$7:$D$18)=0,"",IF(ISNA(LOOKUP(K16,$D$7:$D$18,{1,2,3,4,5,6,7,8,9,10,11,12})),0,LOOKUP(K16,$D$7:$D$18,{1,2,3,4,5,6,7,8,9,10,11,12}))) -> 3 | K16: 10.7 | L16: 10.7014 | N16: =IF(COUNT($D$7:$D$18)=0,"",IF(ISNA(LOOKUP(O16,$D$7:$D$18,{1,2,3,4,5,6,7,8,9,10,11,12})),0,LOOKUP(O16,$D$7:$D$18,{1,2,3,4,5,6,7,8,9,10,11,12}))) -> 4 | O16: 17.2 | P16: 17.2188 | R16: =IF(COUNT($D$7:$D$18)=0,"",IF(ISNA(LOOKUP(S16,$D$7:$D$18,{1,2,3,4,5,6,7,8,9,10,11,12})),0,LOOKUP(S16,$D$7:$D$18,{1,2,3,4,5,6,7,8,9,10,11,12}))) -> 5 | S16: 23.7 | T16: 23.6375 | V16: =IF(COUNT($D$7:$D$18)=0,"",IF(ISNA(LOOKUP(W16,$D$7:$D$18,{1,2,3,4,5,6,7,8,9,10,11,12})),0,LOOKUP(W16,$D$7:$D$18,{1,2,3,4,5,6,7,8,9,10,11,12}))) -> 6 | W16: 30.2 | X16: 30.1 | Y16: =IF(ISNA(MATCH($E$1,OFFSET('Temperature Checks'!$A$6,SUM($Y$1:$Y15),0,495-SUM($Y$1:$Y15),1),0)),0,MATCH($E$1,OFFSET('Temperature Checks'!$A$6,SUM($Y$1:$Y15),0,495-SUM($Y$1:$Y15),1),0)) -> 0 | Z16: =IF($Y16=0,"",INDEX('Temperature Checks'!$B$6:$B$500,SUM($Y$1:$Y16))) -> 
A17: =IF($J$1="","",IF(INDEX('Temperature Checks'!$AZ$6:$AZ$500,$J$1,1)="","",INDEX('Temperature Checks'!$AZ$6:$AZ$500,$J$1,1))) ->  | D17: =IF($J$1="","",IF(INDEX('Temperature Checks'!$AN$6:$AN$500,$J$1,1)="","",INDEX('Temperature Checks'!$AN$6:$AN$500,$J$1,1))) ->  | J17: =IF(COUNT($D$7:$D$18)=0,"",IF(ISNA(LOOKUP(K17,$D$7:$D$18,{1,2,3,4,5,6,7,8,9,10,11,12})),0,LOOKUP(K17,$D$7:$D$18,{1,2,3,4,5,6,7,8,9,10,11,12}))) -> 3 | K17: 10.8 | L17: 10.8016 | N17: =IF(COUNT($D$7:$D$18)=0,"",IF(ISNA(LOOKUP(O17,$D$7:$D$18,{1,2,3,4,5,6,7,8,9,10,11,12})),0,LOOKUP(O17,$D$7:$D$18,{1,2,3,4,5,6,7,8,9,10,11,12}))) -> 4 | O17: 17.3 | P17: 17.3192 | R17: =IF(COUNT($D$7:$D$18)=0,"",IF(ISNA(LOOKUP(S17,$D$7:$D$18,{1,2,3,4,5,6,7,8,9,10,11,12})),0,LOOKUP(S17,$D$7:$D$18,{1,2,3,4,5,6,7,8,9,10,11,12}))) -> 5 | S17: 23.8 | T17: 23.735 | V17: =IF(COUNT($D$7:$D$18)=0,"",IF(ISNA(LOOKUP(W17,$D$7:$D$18,{1,2,3,4,5,6,7,8,9,10,11,12})),0,LOOKUP(W17,$D$7:$D$18,{1,2,3,4,5,6,7,8,9,10,11,12}))) -> 6 | W17: 30.3 | X17: 30.2 | Y17: =IF(ISNA(MATCH($E$1,OFFSET('Temperature Checks'!$A$6,SUM($Y$1:$Y16),0,495-SUM($Y$1:$Y16),1),0)),0,MATCH($E$1,OFFSET('Temperature Checks'!$A$6,SUM($Y$1:$Y16),0,495-SUM($Y$1:$Y16),1),0)) -> 0 | Z17: =IF($Y17=0,"",INDEX('Temperature Checks'!$B$6:$B$500,SUM($Y$1:$Y17))) -> 
A18: =IF($J$1="","",IF(INDEX('Temperature Checks'!$BA$6:$BA$500,$J$1,1)="","",INDEX('Temperature Checks'!$BA$6:$BA$500,$J$1,1))) ->  | D18: =IF($J$1="","",IF(INDEX('Temperature Checks'!$AO$6:$AO$500,$J$1,1)="","",INDEX('Temperature Checks'!$AO$6:$AO$500,$J$1,1))) ->  | J18: =IF(COUNT($D$7:$D$18)=0,"",IF(ISNA(LOOKUP(K18,$D$7:$D$18,{1,2,3,4,5,6,7,8,9,10,11,12})),0,LOOKUP(K18,$D$7:$D$18,{1,2,3,4,5,6,7,8,9,10,11,12}))) -> 3 | K18: 10.9 | L18: 10.9018 | N18: =IF(COUNT($D$7:$D$18)=0,"",IF(ISNA(LOOKUP(O18,$D$7:$D$18,{1,2,3,4,5,6,7,8,9,10,11,12})),0,LOOKUP(O18,$D$7:$D$18,{1,2,3,4,5,6,7,8,9,10,11,12}))) -> 4 | O18: 17.4 | P18: 17.4196 | R18: =IF(COUNT($D$7:$D$18)=0,"",IF(ISNA(LOOKUP(S18,$D$7:$D$18,{1,2,3,4,5,6,7,8,9,10,11,12})),0,LOOKUP(S18,$D$7:$D$18,{1,2,3,4,5,6,7,8,9,10,11,12}))) -> 5 | S18: 23.9 | T18: 23.8325 | V18: =IF(COUNT($D$7:$D$18)=0,"",IF(ISNA(LOOKUP(W18,$D$7:$D$18,{1,2,3,4,5,6,7,8,9,10,11,12})),0,LOOKUP(W18,$D$7:$D$18,{1,2,3,4,5,6,7,8,9,10,11,12}))) -> 6 | W18: 30.4 | X18: 30.3 | Y18: =IF(ISNA(MATCH($E$1,OFFSET('Temperature Checks'!$A$6,SUM($Y$1:$Y17),0,495-SUM($Y$1:$Y17),1),0)),0,MATCH($E$1,OFFSET('Temperature Checks'!$A$6,SUM($Y$1:$Y17),0,495-SUM($Y$1:$Y17),1),0)) -> 0 | Z18: =IF($Y18=0,"",INDEX('Temperature Checks'!$B$6:$B$500,SUM($Y$1:$Y18))) -> 
J19: =IF(COUNT($D$7:$D$18)=0,"",IF(ISNA(LOOKUP(K19,$D$7:$D$18,{1,2,3,4,5,6,7,8,9,10,11,12})),0,LOOKUP(K19,$D$7:$D$18,{1,2,3,4,5,6,7,8,9,10,11,12}))) -> 3 | K19: 11 | L19: 11.002 | N19: =IF(COUNT($D$7:$D$18)=0,"",IF(ISNA(LOOKUP(O19,$D$7:$D$18,{1,2,3,4,5,6,7,8,9,10,11,12})),0,LOOKUP(O19,$D$7:$D$18,{1,2,3,4,5,6,7,8,9,10,11,12}))) -> 4 | O19: 17.5 | P19: 17.52 | R19: =IF(COUNT($D$7:$D$18)=0,"",IF(ISNA(LOOKUP(S19,$D$7:$D$18,{1,2,3,4,5,6,7,8,9,10,11,12})),0,LOOKUP(S19,$D$7:$D$18,{1,2,3,4,5,6,7,8,9,10,11,12}))) -> 5 | S19: 24 | T19: 23.93 | V19: =IF(COUNT($D$7:$D$18)=0,"",IF(ISNA(LOOKUP(W19,$D$7:$D$18,{1,2,3,4,5,6,7,8,9,10,11,12})),0,LOOKUP(W19,$D$7:$D$18,{1,2,3,4,5,6,7,8,9,10,11,12}))) -> 6 | W19: 30.5 | X19: 30.4 | Y19: =IF(ISNA(MATCH($E$1,OFFSET('Temperature Checks'!$A$6,SUM($Y$1:$Y18),0,495-SUM($Y$1:$Y18),1),0)),0,MATCH($E$1,OFFSET('Temperature Checks'!$A$6,SUM($Y$1:$Y18),0,495-SUM($Y$1:$Y18),1),0)) -> 0 | Z19: =IF($Y19=0,"",INDEX('Temperature Checks'!$B$6:$B$500,SUM($Y$1:$Y19))) -> 
C20: Field | D20: Corrected | G20: Field | H20: Corrected | J20: =IF(COUNT($D$7:$D$18)=0,"",IF(ISNA(LOOKUP(K20,$D$7:$D$18,{1,2,3,4,5,6,7,8,9,10,11,12})),0,LOOKUP(K20,$D$7:$D$18,{1,2,3,4,5,6,7,8,9,10,11,12}))) -> 3 | K20: 11.1 | L20: 11.1022 | N20: =IF(COUNT($D$7:$D$18)=0,"",IF(ISNA(LOOKUP(O20,$D$7:$D$18,{1,2,3,4,5,6,7,8,9,10,11,12})),0,LOOKUP(O20,$D$7:$D$18,{1,2,3,4,5,6,7,8,9,10,11,12}))) -> 4 | O20: 17.6 | P20: 17.6204 | R20: =IF(COUNT($D$7:$D$18)=0,"",IF(ISNA(LOOKUP(S20,$D$7:$D$18,{1,2,3,4,5,6,7,8,9,10,11,12})),0,LOOKUP(S20,$D$7:$D$18,{1,2,3,4,5,6,7,8,9,10,11,12}))) -> 5 | S20: 24.1 | T20: 24.0275 | V20: =IF(COUNT($D$7:$D$18)=0,"",IF(ISNA(LOOKUP(W20,$D$7:$D$18,{1,2,3,4,5,6,7,8,9,10,11,12})),0,LOOKUP(W20,$D$7:$D$18,{1,2,3,4,5,6,7,8,9,10,11,12}))) -> 6 | W20: 30.6 | X20: 30.5 | Y20: =IF(ISNA(MATCH($E$1,OFFSET('Temperature Checks'!$A$6,SUM($Y$1:$Y19),0,495-SUM($Y$1:$Y19),1),0)),0,MATCH($E$1,OFFSET('Temperature Checks'!$A$6,SUM($Y$1:$Y19),0,495-SUM($Y$1:$Y19),1),0)) -> 0 | Z20: =IF($Y20=0,"",INDEX('Temperature Checks'!$B$6:$B$500,SUM($Y$1:$Y20))) -> 
C21: Probe | D21: NIST | G21: Probe | H21: NIST | J21: =IF(COUNT($D$7:$D$18)=0,"",IF(ISNA(LOOKUP(K21,$D$7:$D$18,{1,2,3,4,5,6,7,8,9,10,11,12})),0,LOOKUP(K21,$D$7:$D$18,{1,2,3,4,5,6,7,8,9,10,11,12}))) -> 3 | K21: 11.2 | L21: 11.2024 | N21: =IF(COUNT($D$7:$D$18)=0,"",IF(ISNA(LOOKUP(O21,$D$7:$D$18,{1,2,3,4,5,6,7,8,9,10,11,12})),0,LOOKUP(O21,$D$7:$D$18,{1,2,3,4,5,6,7,8,9,10,11,12}))) -> 4 | O21: 17.7 | P21: 17.7208 | R21: =IF(COUNT($D$7:$D$18)=0,"",IF(ISNA(LOOKUP(S21,$D$7:$D$18,{1,2,3,4,5,6,7,8,9,10,11,12})),0,LOOKUP(S21,$D$7:$D$18,{1,2,3,4,5,6,7,8,9,10,11,12}))) -> 5 | S21: 24.2 | T21: 24.125 | V21: =IF(COUNT($D$7:$D$18)=0,"",IF(ISNA(LOOKUP(W21,$D$7:$D$18,{1,2,3,4,5,6,7,8,9,10,11,12})),0,LOOKUP(W21,$D$7:$D$18,{1,2,3,4,5,6,7,8,9,10,11,12}))) -> 6 | W21: 30.7 | X21: 30.6 | Y21: =IF(ISNA(MATCH($E$1,OFFSET('Temperature Checks'!$A$6,SUM($Y$1:$Y20),0,495-SUM($Y$1:$Y20),1),0)),0,MATCH($E$1,OFFSET('Temperature Checks'!$A$6,SUM($Y$1:$Y20),0,495-SUM($Y$1:$Y20),1),0)) -> 0 | Z21: =IF($Y21=0,"",INDEX('Temperature Checks'!$B$6:$B$500,SUM($Y$1:$Y21))) -> 
C22: Reading | D22: Reading | G22: Reading | H22: Reading | J22: =IF(COUNT($D$7:$D$18)=0,"",IF(ISNA(LOOKUP(K22,$D$7:$D$18,{1,2,3,4,5,6,7,8,9,10,11,12})),0,LOOKUP(K22,$D$7:$D$18,{1,2,3,4,5,6,7,8,9,10,11,12}))) -> 3 | K22: 11.3 | L22: 11.3026 | N22: =IF(COUNT($D$7:$D$18)=0,"",IF(ISNA(LOOKUP(O22,$D$7:$D$18,{1,2,3,4,5,6,7,8,9,10,11,12})),0,LOOKUP(O22,$D$7:$D$18,{1,2,3,4,5,6,7,8,9,10,11,12}))) -> 4 | O22: 17.8 | P22: 17.8212 | R22: =IF(COUNT($D$7:$D$18)=0,"",IF(ISNA(LOOKUP(S22,$D$7:$D$18,{1,2,3,4,5,6,7,8,9,10,11,12})),0,LOOKUP(S22,$D$7:$D$18,{1,2,3,4,5,6,7,8,9,10,11,12}))) -> 5 | S22: 24.3 | T22: 24.2225 | V22: =IF(COUNT($D$7:$D$18)=0,"",IF(ISNA(LOOKUP(W22,$D$7:$D$18,{1,2,3,4,5,6,7,8,9,10,11,12})),0,LOOKUP(W22,$D$7:$D$18,{1,2,3,4,5,6,7,8,9,10,11,12}))) -> 6 | W22: 30.8 | X22: 30.7 | Y22: =IF(ISNA(MATCH($E$1,OFFSET('Temperature Checks'!$A$6,SUM($Y$1:$Y21),0,495-SUM($Y$1:$Y21),1),0)),0,MATCH($E$1,OFFSET('Temperature Checks'!$A$6,SUM($Y$1:$Y21),0,495-SUM($Y$1:$Y21),1),0)) -> 0 | Z22: =IF($Y22=0,"",INDEX('Temperature Checks'!$B$6:$B$500,SUM($Y$1:$Y22))) -> 
C23: (°C) | D23: (°C) | G23: (°C) | H23: (°C) | J23: =IF(COUNT($D$7:$D$18)=0,"",IF(ISNA(LOOKUP(K23,$D$7:$D$18,{1,2,3,4,5,6,7,8,9,10,11,12})),0,LOOKUP(K23,$D$7:$D$18,{1,2,3,4,5,6,7,8,9,10,11,12}))) -> 3 | K23: 11.4 | L23: 11.4028 | N23: =IF(COUNT($D$7:$D$18)=0,"",IF(ISNA(LOOKUP(O23,$D$7:$D$18,{1,2,3,4,5,6,7,8,9,10,11,12})),0,LOOKUP(O23,$D$7:$D$18,{1,2,3,4,5,6,7,8,9,10,11,12}))) -> 4 | O23: 17.9 | P23: 17.9216 | R23: =IF(COUNT($D$7:$D$18)=0,"",IF(ISNA(LOOKUP(S23,$D$7:$D$18,{1,2,3,4,5,6,7,8,9,10,11,12})),0,LOOKUP(S23,$D$7:$D$18,{1,2,3,4,5,6,7,8,9,10,11,12}))) -> 5 | S23: 24.4 | T23: 24.32 | V23: =IF(COUNT($D$7:$D$18)=0,"",IF(ISNA(LOOKUP(W23,$D$7:$D$18,{1,2,3,4,5,6,7,8,9,10,11,12})),0,LOOKUP(W23,$D$7:$D$18,{1,2,3,4,5,6,7,8,9,10,11,12}))) -> 6 | W23: 30.9 | X23: 30.8 | Y23: =IF(ISNA(MATCH($E$1,OFFSET('Temperature Checks'!$A$6,SUM($Y$1:$Y22),0,495-SUM($Y$1:$Y22),1),0)),0,MATCH($E$1,OFFSET('Temperature Checks'!$A$6,SUM($Y$1:$Y22),0,495-SUM($Y$1:$Y22),1),0)) -> 0 | Z23: =IF($Y23=0,"",INDEX('Temperature Checks'!$B$6:$B$500,SUM($Y$1:$Y23))) -> 
B24: =IF(COUNT($D$7:$D$18)=0,"",IF(ISNA(LOOKUP(C24,$D$7:$D$18,{1,2,3,4,5,6,7,8,9,10,11,12})),0,LOOKUP(C24,$D$7:$D$18,{1,2,3,4,5,6,7,8,9,10,11,12}))) -> 0 | C24: 0 | D24: =IF(COUNT($D$7:$D$18)=0,"",IF(B24=0,C24-$G$7,IF(B24=COUNT($D$7:$D$18),C24-INDEX($G$7:$G$18,COUNT($D$7:$D$18)),C24-(INDEX($G$7:$G$18,B24)+(INDEX($G$7:$G$18,B24+1)-INDEX($G$7:$G$18,B24))*(C24-INDEX($D$7:$D$18,B24))/(INDEX($D$7:$D$18,B24+1)-INDEX($D$7:$D$18,B24)))))) -> -0.07 | F24: =IF(COUNT($D$7:$D$18)=0,"",IF(ISNA(LOOKUP(G24,$D$7:$D$18,{1,2,3,4,5,6,7,8,9,10,11,12})),0,LOOKUP(G24,$D$7:$D$18,{1,2,3,4,5,6,7,8,9,10,11,12}))) -> 2 | G24: 5 | H24: =IF(COUNT($D$7:$D$18)=0,"",IF(F24=0,G24-$G$7,IF(F24=COUNT($D$7:$D$18),G24-INDEX($G$7:$G$18,COUNT($D$7:$D$18)),G24-(INDEX($G$7:$G$18,F24)+(INDEX($G$7:$G$18,F24+1)-INDEX($G$7:$G$18,F24))*(G24-INDEX($D$7:$D$18,F24))/(INDEX($D$7:$D$18,F24+1)-INDEX($D$7:$D$18,F24)))))) -> 4.98 | J24: =IF(COUNT($D$7:$D$18)=0,"",IF(ISNA(LOOKUP(K24,$D$7:$D$18,{1,2,3,4,5,6,7,8,9,10,11,12})),0,LOOKUP(K24,$D$7:$D$18,{1,2,3,4,5,6,7,8,9,10,11,12}))) -> 3 | K24: 11.5 | L24: 11.503 | N24: =IF(COUNT($D$7:$D$18)=0,"",IF(ISNA(LOOKUP(O24,$D$7:$D$18,{1,2,3,4,5,6,7,8,9,10,11,12})),0,LOOKUP(O24,$D$7:$D$18,{1,2,3,4,5,6,7,8,9,10,11,12}))) -> 4 | O24: 18 | P24: 18.022 | R24: =IF(COUNT($D$7:$D$18)=0,"",IF(ISNA(LOOKUP(S24,$D$7:$D$18,{1,2,3,4,5,6,7,8,9,10,11,12})),0,LOOKUP(S24,$D$7:$D$18,{1,2,3,4,5,6,7,8,9,10,11,12}))) -> 5 | S24: 24.5 | T24: 24.4175 | V24: =IF(COUNT($D$7:$D$18)=0,"",IF(ISNA(LOOKUP(W24,$D$7:$D$18,{1,2,3,4,5,6,7,8,9,10,11,12})),0,LOOKUP(W24,$D$7:$D$18,{1,2,3,4,5,6,7,8,9,10,11,12}))) -> 6 | W24: 31 | X24: 30.9 | Y24: =IF(ISNA(MATCH($E$1,OFFSET('Temperature Checks'!$A$6,SUM($Y$1:$Y23),0,495-SUM($Y$1:$Y23),1),0)),0,MATCH($E$1,OFFSET('Temperature Checks'!$A$6,SUM($Y$1:$Y23),0,495-SUM($Y$1:$Y23),1),0)) -> 0 | Z24: =IF($Y24=0,"",INDEX('Temperature Checks'!$B$6:$B$500,SUM($Y$1:$Y24))) -> 
B25: =IF(COUNT($D$7:$D$18)=0,"",IF(ISNA(LOOKUP(C25,$D$7:$D$18,{1,2,3,4,5,6,7,8,9,10,11,12})),0,LOOKUP(C25,$D$7:$D$18,{1,2,3,4,5,6,7,8,9,10,11,12}))) -> 1 | C25: 0.1 | D25: 0.03 | F25: =IF(COUNT($D$7:$D$18)=0,"",IF(ISNA(LOOKUP(G25,$D$7:$D$18,{1,2,3,4,5,6,7,8,9,10,11,12})),0,LOOKUP(G25,$D$7:$D$18,{1,2,3,4,5,6,7,8,9,10,11,12}))) -> 2 | G25: 5.1 | H25: 5.0804 | J25: =IF(COUNT($D$7:$D$18)=0,"",IF(ISNA(LOOKUP(K25,$D$7:$D$18,{1,2,3,4,5,6,7,8,9,10,11,12})),0,LOOKUP(K25,$D$7:$D$18,{1,2,3,4,5,6,7,8,9,10,11,12}))) -> 3 | K25: 11.6 | L25: 11.6032 | N25: =IF(COUNT($D$7:$D$18)=0,"",IF(ISNA(LOOKUP(O25,$D$7:$D$18,{1,2,3,4,5,6,7,8,9,10,11,12})),0,LOOKUP(O25,$D$7:$D$18,{1,2,3,4,5,6,7,8,9,10,11,12}))) -> 4 | O25: 18.1 | P25: 18.1224 | R25: =IF(COUNT($D$7:$D$18)=0,"",IF(ISNA(LOOKUP(S25,$D$7:$D$18,{1,2,3,4,5,6,7,8,9,10,11,12})),0,LOOKUP(S25,$D$7:$D$18,{1,2,3,4,5,6,7,8,9,10,11,12}))) -> 5 | S25: 24.6 | T25: 24.515 | V25: =IF(COUNT($D$7:$D$18)=0,"",IF(ISNA(LOOKUP(W25,$D$7:$D$18,{1,2,3,4,5,6,7,8,9,10,11,12})),0,LOOKUP(W25,$D$7:$D$18,{1,2,3,4,5,6,7,8,9,10,11,12}))) -> 6 | W25: 31.1 | X25: 31 | Y25: =IF(ISNA(MATCH($E$1,OFFSET('Temperature Checks'!$A$6,SUM($Y$1:$Y24),0,495-SUM($Y$1:$Y24),1),0)),0,MATCH($E$1,OFFSET('Temperature Checks'!$A$6,SUM($Y$1:$Y24),0,495-SUM($Y$1:$Y24),1),0)) -> 0 | Z25: =IF($Y25=0,"",INDEX('Temperature Checks'!$B$6:$B$500,SUM($Y$1:$Y25))) -> 
B26: =IF(COUNT($D$7:$D$18)=0,"",IF(ISNA(LOOKUP(C26,$D$7:$D$18,{1,2,3,4,5,6,7,8,9,10,11,12})),0,LOOKUP(C26,$D$7:$D$18,{1,2,3,4,5,6,7,8,9,10,11,12}))) -> 1 | C26: 0.2 | D26: 0.1310204082 | F26: =IF(COUNT($D$7:$D$18)=0,"",IF(ISNA(LOOKUP(G26,$D$7:$D$18,{1,2,3,4,5,6,7,8,9,10,11,12})),0,LOOKUP(G26,$D$7:$D$18,{1,2,3,4,5,6,7,8,9,10,11,12}))) -> 2 | G26: 5.2 | H26: 5.1808 | J26: =IF(COUNT($D$7:$D$18)=0,"",IF(ISNA(LOOKUP(K26,$D$7:$D$18,{1,2,3,4,5,6,7,8,9,10,11,12})),0,LOOKUP(K26,$D$7:$D$18,{1,2,3,4,5,6,7,8,9,10,11,12}))) -> 3 | K26: 11.7 | L26: 11.7034 | N26: =IF(COUNT($D$7:$D$18)=0,"",IF(ISNA(LOOKUP(O26,$D$7:$D$18,{1,2,3,4,5,6,7,8,9,10,11,12})),0,LOOKUP(O26,$D$7:$D$18,{1,2,3,4,5,6,7,8,9,10,11,12}))) -> 4 | O26: 18.2 | P26: 18.2228 | R26: =IF(COUNT($D$7:$D$18)=0,"",IF(ISNA(LOOKUP(S26,$D$7:$D$18,{1,2,3,4,5,6,7,8,9,10,11,12})),0,LOOKUP(S26,$D$7:$D$18,{1,2,3,4,5,6,7,8,9,10,11,12}))) -> 5 | S26: 24.7 | T26: 24.6125 | V26: =IF(COUNT($D$7:$D$18)=0,"",IF(ISNA(LOOKUP(W26,$D$7:$D$18,{1,2,3,4,5,6,7,8,9,10,11,12})),0,LOOKUP(W26,$D$7:$D$18,{1,2,3,4,5,6,7,8,9,10,11,12}))) -> 6 | W26: 31.2 | X26: 31.1 | Y26: =IF(ISNA(MATCH($E$1,OFFSET('Temperature Checks'!$A$6,SUM($Y$1:$Y25),0,495-SUM($Y$1:$Y25),1),0)),0,MATCH($E$1,OFFSET('Temperature Checks'!$A$6,SUM($Y$1:$Y25),0,495-SUM($Y$1:$Y25),1),0)) -> 0 | Z26: =IF($Y26=0,"",INDEX('Temperature Checks'!$B$6:$B$500,SUM($Y$1:$Y26))) -> 
B27: =IF(COUNT($D$7:$D$18)=0,"",IF(ISNA(LOOKUP(C27,$D$7:$D$18,{1,2,3,4,5,6,7,8,9,10,11,12})),0,LOOKUP(C27,$D$7:$D$18,{1,2,3,4,5,6,7,8,9,10,11,12}))) -> 1 | C27: 0.3 | D27: 0.2320408163 | F27: =IF(COUNT($D$7:$D$18)=0,"",IF(ISNA(LOOKUP(G27,$D$7:$D$18,{1,2,3,4,5,6,7,8,9,10,11,12})),0,LOOKUP(G27,$D$7:$D$18,{1,2,3,4,5,6,7,8,9,10,11,12}))) -> 2 | G27: 5.3 | H27: 5.2812 | J27: =IF(COUNT($D$7:$D$18)=0,"",IF(ISNA(LOOKUP(K27,$D$7:$D$18,{1,2,3,4,5,6,7,8,9,10,11,12})),0,LOOKUP(K27,$D$7:$D$18,{1,2,3,4,5,6,7,8,9,10,11,12}))) -> 3 | K27: 11.8 | L27: 11.8036 | N27: =IF(COUNT($D$7:$D$18)=0,"",IF(ISNA(LOOKUP(O27,$D$7:$D$18,{1,2,3,4,5,6,7,8,9,10,11,12})),0,LOOKUP(O27,$D$7:$D$18,{1,2,3,4,5,6,7,8,9,10,11,12}))) -> 4 | O27: 18.3 | P27: 18.3232 | R27: =IF(COUNT($D$7:$D$18)=0,"",IF(ISNA(LOOKUP(S27,$D$7:$D$18,{1,2,3,4,5,6,7,8,9,10,11,12})),0,LOOKUP(S27,$D$7:$D$18,{1,2,3,4,5,6,7,8,9,10,11,12}))) -> 5 | S27: 24.8 | T27: 24.71 | V27: =IF(COUNT($D$7:$D$18)=0,"",IF(ISNA(LOOKUP(W27,$D$7:$D$18,{1,2,3,4,5,6,7,8,9,10,11,12})),0,LOOKUP(W27,$D$7:$D$18,{1,2,3,4,5,6,7,8,9,10,11,12}))) -> 6 | W27: 31.3 | X27: 31.2 | Y27: =IF(ISNA(MATCH($E$1,OFFSET('Temperature Checks'!$A$6,SUM($Y$1:$Y26),0,495-SUM($Y$1:$Y26),1),0)),0,MATCH($E$1,OFFSET('Temperature Checks'!$A$6,SUM($Y$1:$Y26),0,495-SUM($Y$1:$Y26),1),0)) -> 0 | Z27: =IF($Y27=0,"",INDEX('Temperature Checks'!$B$6:$B$500,SUM($Y$1:$Y27))) -> 
B28: =IF(COUNT($D$7:$D$18)=0,"",IF(ISNA(LOOKUP(C28,$D$7:$D$18,{1,2,3,4,5,6,7,8,9,10,11,12})),0,LOOKUP(C28,$D$7:$D$18,{1,2,3,4,5,6,7,8,9,10,11,12}))) -> 1 | C28: 0.4 | D28: 0.3330612245 | F28: =IF(COUNT($D$7:$D$18)=0,"",IF(ISNA(LOOKUP(G28,$D$7:$D$18,{1,2,3,4,5,6,7,8,9,10,11,12})),0,LOOKUP(G28,$D$7:$D$18,{1,2,3,4,5,6,7,8,9,10,11,12}))) -> 2 | G28: 5.4 | H28: 5.3816 | J28: =IF(COUNT($D$7:$D$18)=0,"",IF(ISNA(LOOKUP(K28,$D$7:$D$18,{1,2,3,4,5,6,7,8,9,10,11,12})),0,LOOKUP(K28,$D$7:$D$18,{1,2,3,4,5,6,7,8,9,10,11,12}))) -> 3 | K28: 11.9 | L28: 11.9038 | N28: =IF(COUNT($D$7:$D$18)=0,"",IF(ISNA(LOOKUP(O28,$D$7:$D$18,{1,2,3,4,5,6,7,8,9,10,11,12})),0,LOOKUP(O28,$D$7:$D$18,{1,2,3,4,5,6,7,8,9,10,11,12}))) -> 4 | O28: 18.4 | P28: 18.4236 | R28: =IF(COUNT($D$7:$D$18)=0,"",IF(ISNA(LOOKUP(S28,$D$7:$D$18,{1,2,3,4,5,6,7,8,9,10,11,12})),0,LOOKUP(S28,$D$7:$D$18,{1,2,3,4,5,6,7,8,9,10,11,12}))) -> 5 | S28: 24.9 | T28: 24.8075 | V28: =IF(COUNT($D$7:$D$18)=0,"",IF(ISNA(LOOKUP(W28,$D$7:$D$18,{1,2,3,4,5,6,7,8,9,10,11,12})),0,LOOKUP(W28,$D$7:$D$18,{1,2,3,4,5,6,7,8,9,10,11,12}))) -> 6 | W28: 31.4 | X28: 31.3 | Y28: =IF(ISNA(MATCH($E$1,OFFSET('Temperature Checks'!$A$6,SUM($Y$1:$Y27),0,495-SUM($Y$1:$Y27),1),0)),0,MATCH($E$1,OFFSET('Temperature Checks'!$A$6,SUM($Y$1:$Y27),0,495-SUM($Y$1:$Y27),1),0)) -> 0 | Z28: =IF($Y28=0,"",INDEX('Temperature Checks'!$B$6:$B$500,SUM($Y$1:$Y28))) -> 
B29: =IF(COUNT($D$7:$D$18)=0,"",IF(ISNA(LOOKUP(C29,$D$7:$D$18,{1,2,3,4,5,6,7,8,9,10,11,12})),0,LOOKUP(C29,$D$7:$D$18,{1,2,3,4,5,6,7,8,9,10,11,12}))) -> 1 | C29: 0.5 | D29: 0.4340816327 | F29: =IF(COUNT($D$7:$D$18)=0,"",IF(ISNA(LOOKUP(G29,$D$7:$D$18,{1,2,3,4,5,6,7,8,9,10,11,12})),0,LOOKUP(G29,$D$7:$D$18,{1,2,3,4,5,6,7,8,9,10,11,12}))) -> 2 | G29: 5.5 | H29: 5.482 | J29: =IF(COUNT($D$7:$D$18)=0,"",IF(ISNA(LOOKUP(K29,$D$7:$D$18,{1,2,3,4,5,6,7,8,9,10,11,12})),0,LOOKUP(K29,$D$7:$D$18,{1,2,3,4,5,6,7,8,9,10,11,12}))) -> 3 | K29: 12 | L29: 12.004 | N29: =IF(COUNT($D$7:$D$18)=0,"",IF(ISNA(LOOKUP(O29,$D$7:$D$18,{1,2,3,4,5,6,7,8,9,10,11,12})),0,LOOKUP(O29,$D$7:$D$18,{1,2,3,4,5,6,7,8,9,10,11,12}))) -> 4 | O29: 18.5 | P29: 18.524 | R29: =IF(COUNT($D$7:$D$18)=0,"",IF(ISNA(LOOKUP(S29,$D$7:$D$18,{1,2,3,4,5,6,7,8,9,10,11,12})),0,LOOKUP(S29,$D$7:$D$18,{1,2,3,4,5,6,7,8,9,10,11,12}))) -> 5 | S29: 25 | T29: 24.905 | V29: =IF(COUNT($D$7:$D$18)=0,"",IF(ISNA(LOOKUP(W29,$D$7:$D$18,{1,2,3,4,5,6,7,8,9,10,11,12})),0,LOOKUP(W29,$D$7:$D$18,{1,2,3,4,5,6,7,8,9,10,11,12}))) -> 6 | W29: 31.5 | X29: 31.4 | Y29: =IF(ISNA(MATCH($E$1,OFFSET('Temperature Checks'!$A$6,SUM($Y$1:$Y28),0,495-SUM($Y$1:$Y28),1),0)),0,MATCH($E$1,OFFSET('Temperature Checks'!$A$6,SUM($Y$1:$Y28),0,495-SUM($Y$1:$Y28),1),0)) -> 0 | Z29: =IF($Y29=0,"",INDEX('Temperature Checks'!$B$6:$B$500,SUM($Y$1:$Y29))) -> 
B30: =IF(COUNT($D$7:$D$18)=0,"",IF(ISNA(LOOKUP(C30,$D$7:$D$18,{1,2,3,4,5,6,7,8,9,10,11,12})),0,LOOKUP(C30,$D$7:$D$18,{1,2,3,4,5,6,7,8,9,10,11,12}))) -> 1 | C30: 0.6 | D30: 0.5351020408 | F30: =IF(COUNT($D$7:$D$18)=0,"",IF(ISNA(LOOKUP(G30,$D$7:$D$18,{1,2,3,4,5,6,7,8,9,10,11,12})),0,LOOKUP(G30,$D$7:$D$18,{1,2,3,4,5,6,7,8,9,10,11,12}))) -> 2 | G30: 5.6 | H30: 5.5824 | J30: =IF(COUNT($D$7:$D$18)=0,"",IF(ISNA(LOOKUP(K30,$D$7:$D$18,{1,2,3,4,5,6,7,8,9,10,11,12})),0,LOOKUP(K30,$D$7:$D$18,{1,2,3,4,5,6,7,8,9,10,11,12}))) -> 3 | K30: 12.1 | L30: 12.1042 | N30: =IF(COUNT($D$7:$D$18)=0,"",IF(ISNA(LOOKUP(O30,$D$7:$D$18,{1,2,3,4,5,6,7,8,9,10,11,12})),0,LOOKUP(O30,$D$7:$D$18,{1,2,3,4,5,6,7,8,9,10,11,12}))) -> 4 | O30: 18.6 | P30: 18.6244 | R30: =IF(COUNT($D$7:$D$18)=0,"",IF(ISNA(LOOKUP(S30,$D$7:$D$18,{1,2,3,4,5,6,7,8,9,10,11,12})),0,LOOKUP(S30,$D$7:$D$18,{1,2,3,4,5,6,7,8,9,10,11,12}))) -> 5 | S30: 25.1 | T30: 25.0025 | V30: =IF(COUNT($D$7:$D$18)=0,"",IF(ISNA(LOOKUP(W30,$D$7:$D$18,{1,2,3,4,5,6,7,8,9,10,11,12})),0,LOOKUP(W30,$D$7:$D$18,{1,2,3,4,5,6,7,8,9,10,11,12}))) -> 6 | W30: 31.6 | X30: 31.5 | Y30: =IF(ISNA(MATCH($E$1,OFFSET('Temperature Checks'!$A$6,SUM($Y$1:$Y29),0,495-SUM($Y$1:$Y29),1),0)),0,MATCH($E$1,OFFSET('Temperature Checks'!$A$6,SUM($Y$1:$Y29),0,495-SUM($Y$1:$Y29),1),0)) -> 0 | Z30: =IF($Y30=0,"",INDEX('Temperature Checks'!$B$6:$B$500,SUM($Y$1:$Y30))) -> 
B31: =IF(COUNT($D$7:$D$18)=0,"",IF(ISNA(LOOKUP(C31,$D$7:$D$18,{1,2,3,4,5,6,7,8,9,10,11,12})),0,LOOKUP(C31,$D$7:$D$18,{1,2,3,4,5,6,7,8,9,10,11,12}))) -> 1 | C31: 0.7 | D31: 0.636122449 | F31: =IF(COUNT($D$7:$D$18)=0,"",IF(ISNA(LOOKUP(G31,$D$7:$D$18,{1,2,3,4,5,6,7,8,9,10,11,12})),0,LOOKUP(G31,$D$7:$D$18,{1,2,3,4,5,6,7,8,9,10,11,12}))) -> 2 | G31: 5.7 | H31: 5.6828 | J31: =IF(COUNT($D$7:$D$18)=0,"",IF(ISNA(LOOKUP(K31,$D$7:$D$18,{1,2,3,4,5,6,7,8,9,10,11,12})),0,LOOKUP(K31,$D$7:$D$18,{1,2,3,4,5,6,7,8,9,10,11,12}))) -> 3 | K31: 12.2 | L31: 12.2044 | N31: =IF(COUNT($D$7:$D$18)=0,"",IF(ISNA(LOOKUP(O31,$D$7:$D$18,{1,2,3,4,5,6,7,8,9,10,11,12})),0,LOOKUP(O31,$D$7:$D$18,{1,2,3,4,5,6,7,8,9,10,11,12}))) -> 4 | O31: 18.7 | P31: 18.7248 | R31: =IF(COUNT($D$7:$D$18)=0,"",IF(ISNA(LOOKUP(S31,$D$7:$D$18,{1,2,3,4,5,6,7,8,9,10,11,12})),0,LOOKUP(S31,$D$7:$D$18,{1,2,3,4,5,6,7,8,9,10,11,12}))) -> 6 | S31: 25.2 | T31: 25.1 | V31: =IF(COUNT($D$7:$D$18)=0,"",IF(ISNA(LOOKUP(W31,$D$7:$D$18,{1,2,3,4,5,6,7,8,9,10,11,12})),0,LOOKUP(W31,$D$7:$D$18,{1,2,3,4,5,6,7,8,9,10,11,12}))) -> 6 | W31: 31.7 | X31: 31.6 | Y31: =IF(ISNA(MATCH($E$1,OFFSET('Temperature Checks'!$A$6,SUM($Y$1:$Y30),0,495-SUM($Y$1:$Y30),1),0)),0,MATCH($E$1,OFFSET('Temperature Checks'!$A$6,SUM($Y$1:$Y30),0,495-SUM($Y$1:$Y30),1),0)) -> 0 | Z31: =IF($Y31=0,"",INDEX('Temperature Checks'!$B$6:$B$500,SUM($Y$1:$Y31))) -> 
B32: =IF(COUNT($D$7:$D$18)=0,"",IF(ISNA(LOOKUP(C32,$D$7:$D$18,{1,2,3,4,5,6,7,8,9,10,11,12})),0,LOOKUP(C32,$D$7:$D$18,{1,2,3,4,5,6,7,8,9,10,11,12}))) -> 1 | C32: 0.8 | D32: 0.7371428571 | F32: =IF(COUNT($D$7:$D$18)=0,"",IF(ISNA(LOOKUP(G32,$D$7:$D$18,{1,2,3,4,5,6,7,8,9,10,11,12})),0,LOOKUP(G32,$D$7:$D$18,{1,2,3,4,5,6,7,8,9,10,11,12}))) -> 2 | G32: 5.8 | H32: 5.7832 | J32: =IF(COUNT($D$7:$D$18)=0,"",IF(ISNA(LOOKUP(K32,$D$7:$D$18,{1,2,3,4,5,6,7,8,9,10,11,12})),0,LOOKUP(K32,$D$7:$D$18,{1,2,3,4,5,6,7,8,9,10,11,12}))) -> 3 | K32: 12.3 | L32: 12.3046 | N32: =IF(COUNT($D$7:$D$18)=0,"",IF(ISNA(LOOKUP(O32,$D$7:$D$18,{1,2,3,4,5,6,7,8,9,10,11,12})),0,LOOKUP(O32,$D$7:$D$18,{1,2,3,4,5,6,7,8,9,10,11,12}))) -> 4 | O32: 18.8 | P32: 18.8252 | R32: =IF(COUNT($D$7:$D$18)=0,"",IF(ISNA(LOOKUP(S32,$D$7:$D$18,{1,2,3,4,5,6,7,8,9,10,11,12})),0,LOOKUP(S32,$D$7:$D$18,{1,2,3,4,5,6,7,8,9,10,11,12}))) -> 6 | S32: 25.3 | T32: 25.2 | V32: =IF(COUNT($D$7:$D$18)=0,"",IF(ISNA(LOOKUP(W32,$D$7:$D$18,{1,2,3,4,5,6,7,8,9,10,11,12})),0,LOOKUP(W32,$D$7:$D$18,{1,2,3,4,5,6,7,8,9,10,11,12}))) -> 6 | W32: 31.8 | X32: 31.7 | Y32: =IF(ISNA(MATCH($E$1,OFFSET('Temperature Checks'!$A$6,SUM($Y$1:$Y31),0,495-SUM($Y$1:$Y31),1),0)),0,MATCH($E$1,OFFSET('Temperature Checks'!$A$6,SUM($Y$1:$Y31),0,495-SUM($Y$1:$Y31),1),0)) -> 0 | Z32: =IF($Y32=0,"",INDEX('Temperature Checks'!$B$6:$B$500,SUM($Y$1:$Y32))) -> 
B33: =IF(COUNT($D$7:$D$18)=0,"",IF(ISNA(LOOKUP(C33,$D$7:$D$18,{1,2,3,4,5,6,7,8,9,10,11,12})),0,LOOKUP(C33,$D$7:$D$18,{1,2,3,4,5,6,7,8,9,10,11,12}))) -> 1 | C33: 0.9 | D33: 0.8381632653 | F33: =IF(COUNT($D$7:$D$18)=0,"",IF(ISNA(LOOKUP(G33,$D$7:$D$18,{1,2,3,4,5,6,7,8,9,10,11,12})),0,LOOKUP(G33,$D$7:$D$18,{1,2,3,4,5,6,7,8,9,10,11,12}))) -> 2 | G33: 5.9 | H33: 5.8836 | J33: =IF(COUNT($D$7:$D$18)=0,"",IF(ISNA(LOOKUP(K33,$D$7:$D$18,{1,2,3,4,5,6,7,8,9,10,11,12})),0,LOOKUP(K33,$D$7:$D$18,{1,2,3,4,5,6,7,8,9,10,11,12}))) -> 3 | K33: 12.4 | L33: 12.4048 | N33: =IF(COUNT($D$7:$D$18)=0,"",IF(ISNA(LOOKUP(O33,$D$7:$D$18,{1,2,3,4,5,6,7,8,9,10,11,12})),0,LOOKUP(O33,$D$7:$D$18,{1,2,3,4,5,6,7,8,9,10,11,12}))) -> 4 | O33: 18.9 | P33: 18.9256 | R33: =IF(COUNT($D$7:$D$18)=0,"",IF(ISNA(LOOKUP(S33,$D$7:$D$18,{1,2,3,4,5,6,7,8,9,10,11,12})),0,LOOKUP(S33,$D$7:$D$18,{1,2,3,4,5,6,7,8,9,10,11,12}))) -> 6 | S33: 25.4 | T33: 25.3 | V33: =IF(COUNT($D$7:$D$18)=0,"",IF(ISNA(LOOKUP(W33,$D$7:$D$18,{1,2,3,4,5,6,7,8,9,10,11,12})),0,LOOKUP(W33,$D$7:$D$18,{1,2,3,4,5,6,7,8,9,10,11,12}))) -> 6 | W33: 31.9 | X33: 31.8 | Y33: =IF(ISNA(MATCH($E$1,OFFSET('Temperature Checks'!$A$6,SUM($Y$1:$Y32),0,495-SUM($Y$1:$Y32),1),0)),0,MATCH($E$1,OFFSET('Temperature Checks'!$A$6,SUM($Y$1:$Y32),0,495-SUM($Y$1:$Y32),1),0)) -> 0 | Z33: =IF($Y33=0,"",INDEX('Temperature Checks'!$B$6:$B$500,SUM($Y$1:$Y33))) -> 
B34: =IF(COUNT($D$7:$D$18)=0,"",IF(ISNA(LOOKUP(C34,$D$7:$D$18,{1,2,3,4,5,6,7,8,9,10,11,12})),0,LOOKUP(C34,$D$7:$D$18,{1,2,3,4,5,6,7,8,9,10,11,12}))) -> 1 | C34: 1 | D34: 0.9391836735 | F34: =IF(COUNT($D$7:$D$18)=0,"",IF(ISNA(LOOKUP(G34,$D$7:$D$18,{1,2,3,4,5,6,7,8,9,10,11,12})),0,LOOKUP(G34,$D$7:$D$18,{1,2,3,4,5,6,7,8,9,10,11,12}))) -> 2 | G34: 6 | H34: 5.984 | J34: =IF(COUNT($D$7:$D$18)=0,"",IF(ISNA(LOOKUP(K34,$D$7:$D$18,{1,2,3,4,5,6,7,8,9,10,11,12})),0,LOOKUP(K34,$D$7:$D$18,{1,2,3,4,5,6,7,8,9,10,11,12}))) -> 3 | K34: 12.5 | L34: 12.505 | N34: =IF(COUNT($D$7:$D$18)=0,"",IF(ISNA(LOOKUP(O34,$D$7:$D$18,{1,2,3,4,5,6,7,8,9,10,11,12})),0,LOOKUP(O34,$D$7:$D$18,{1,2,3,4,5,6,7,8,9,10,11,12}))) -> 4 | O34: 19 | P34: 19.026 | R34: =IF(COUNT($D$7:$D$18)=0,"",IF(ISNA(LOOKUP(S34,$D$7:$D$18,{1,2,3,4,5,6,7,8,9,10,11,12})),0,LOOKUP(S34,$D$7:$D$18,{1,2,3,4,5,6,7,8,9,10,11,12}))) -> 6 | S34: 25.5 | T34: 25.4 | V34: =IF(COUNT($D$7:$D$18)=0,"",IF(ISNA(LOOKUP(W34,$D$7:$D$18,{1,2,3,4,5,6,7,8,9,10,11,12})),0,LOOKUP(W34,$D$7:$D$18,{1,2,3,4,5,6,7,8,9,10,11,12}))) -> 6 | W34: 32 | X34: 31.9 | Y34: =IF(ISNA(MATCH($E$1,OFFSET('Temperature Checks'!$A$6,SUM($Y$1:$Y33),0,495-SUM($Y$1:$Y33),1),0)),0,MATCH($E$1,OFFSET('Temperature Checks'!$A$6,SUM($Y$1:$Y33),0,495-SUM($Y$1:$Y33),1),0)) -> 0 | Z34: =IF($Y34=0,"",INDEX('Temperature Checks'!$B$6:$B$500,SUM($Y$1:$Y34))) -> 
B35: =IF(COUNT($D$7:$D$18)=0,"",IF(ISNA(LOOKUP(C35,$D$7:$D$18,{1,2,3,4,5,6,7,8,9,10,11,12})),0,LOOKUP(C35,$D$7:$D$18,{1,2,3,4,5,6,7,8,9,10,11,12}))) -> 1 | C35: 1.1 | D35: 1.040204082 | F35: =IF(COUNT($D$7:$D$18)=0,"",IF(ISNA(LOOKUP(G35,$D$7:$D$18,{1,2,3,4,5,6,7,8,9,10,11,12})),0,LOOKUP(G35,$D$7:$D$18,{1,2,3,4,5,6,7,8,9,10,11,12}))) -> 2 | G35: 6.1 | H35: 6.0844 | J35: =IF(COUNT($D$7:$D$18)=0,"",IF(ISNA(LOOKUP(K35,$D$7:$D$18,{1,2,3,4,5,6,7,8,9,10,11,12})),0,LOOKUP(K35,$D$7:$D$18,{1,2,3,4,5,6,7,8,9,10,11,12}))) -> 3 | K35: 12.6 | L35: 12.6052 | N35: =IF(COUNT($D$7:$D$18)=0,"",IF(ISNA(LOOKUP(O35,$D$7:$D$18,{1,2,3,4,5,6,7,8,9,10,11,12})),0,LOOKUP(O35,$D$7:$D$18,{1,2,3,4,5,6,7,8,9,10,11,12}))) -> 4 | O35: 19.1 | P35: 19.1264 | R35: =IF(COUNT($D$7:$D$18)=0,"",IF(ISNA(LOOKUP(S35,$D$7:$D$18,{1,2,3,4,5,6,7,8,9,10,11,12})),0,LOOKUP(S35,$D$7:$D$18,{1,2,3,4,5,6,7,8,9,10,11,12}))) -> 6 | S35: 25.6 | T35: 25.5 | V35: =IF(COUNT($D$7:$D$18)=0,"",IF(ISNA(LOOKUP(W35,$D$7:$D$18,{1,2,3,4,5,6,7,8,9,10,11,12})),0,LOOKUP(W35,$D$7:$D$18,{1,2,3,4,5,6,7,8,9,10,11,12}))) -> 6 | W35: 32.1 | X35: 32 | Y35: =IF(ISNA(MATCH($E$1,OFFSET('Temperature Checks'!$A$6,SUM($Y$1:$Y34),0,495-SUM($Y$1:$Y34),1),0)),0,MATCH($E$1,OFFSET('Temperature Checks'!$A$6,SUM($Y$1:$Y34),0,495-SUM($Y$1:$Y34),1),0)) -> 0 | Z35: =IF($Y35=0,"",INDEX('Temperature Checks'!$B$6:$B$500,SUM($Y$1:$Y35))) -> 
B36: =IF(COUNT($D$7:$D$18)=0,"",IF(ISNA(LOOKUP(C36,$D$7:$D$18,{1,2,3,4,5,6,7,8,9,10,11,12})),0,LOOKUP(C36,$D$7:$D$18,{1,2,3,4,5,6,7,8,9,10,11,12}))) -> 1 | C36: 1.2 | D36: 1.14122449 | F36: =IF(COUNT($D$7:$D$18)=0,"",IF(ISNA(LOOKUP(G36,$D$7:$D$18,{1,2,3,4,5,6,7,8,9,10,11,12})),0,LOOKUP(G36,$D$7:$D$18,{1,2,3,4,5,6,7,8,9,10,11,12}))) -> 2 | G36: 6.2 | H36: 6.1848 | J36: =IF(COUNT($D$7:$D$18)=0,"",IF(ISNA(LOOKUP(K36,$D$7:$D$18,{1,2,3,4,5,6,7,8,9,10,11,12})),0,LOOKUP(K36,$D$7:$D$18,{1,2,3,4,5,6,7,8,9,10,11,12}))) -> 3 | K36: 12.7 | L36: 12.7054 | N36: =IF(COUNT($D$7:$D$18)=0,"",IF(ISNA(LOOKUP(O36,$D$7:$D$18,{1,2,3,4,5,6,7,8,9,10,11,12})),0,LOOKUP(O36,$D$7:$D$18,{1,2,3,4,5,6,7,8,9,10,11,12}))) -> 4 | O36: 19.2 | P36: 19.2268 | R36: =IF(COUNT($D$7:$D$18)=0,"",IF(ISNA(LOOKUP(S36,$D$7:$D$18,{1,2,3,4,5,6,7,8,9,10,11,12})),0,LOOKUP(S36,$D$7:$D$18,{1,2,3,4,5,6,7,8,9,10,11,12}))) -> 6 | S36: 25.7 | T36: 25.6 | V36: =IF(COUNT($D$7:$D$18)=0,"",IF(ISNA(LOOKUP(W36,$D$7:$D$18,{1,2,3,4,5,6,7,8,9,10,11,12})),0,LOOKUP(W36,$D$7:$D$18,{1,2,3,4,5,6,7,8,9,10,11,12}))) -> 6 | W36: 32.2 | X36: 32.1 | Y36: =IF(ISNA(MATCH($E$1,OFFSET('Temperature Checks'!$A$6,SUM($Y$1:$Y35),0,495-SUM($Y$1:$Y35),1),0)),0,MATCH($E$1,OFFSET('Temperature Checks'!$A$6,SUM($Y$1:$Y35),0,495-SUM($Y$1:$Y35),1),0)) -> 0 | Z36: =IF($Y36=0,"",INDEX('Temperature Checks'!$B$6:$B$500,SUM($Y$1:$Y36))) -> 
B37: =IF(COUNT($D$7:$D$18)=0,"",IF(ISNA(LOOKUP(C37,$D$7:$D$18,{1,2,3,4,5,6,7,8,9,10,11,12})),0,LOOKUP(C37,$D$7:$D$18,{1,2,3,4,5,6,7,8,9,10,11,12}))) -> 1 | C37: 1.3 | D37: 1.242244898 | F37: =IF(COUNT($D$7:$D$18)=0,"",IF(ISNA(LOOKUP(G37,$D$7:$D$18,{1,2,3,4,5,6,7,8,9,10,11,12})),0,LOOKUP(G37,$D$7:$D$18,{1,2,3,4,5,6,7,8,9,10,11,12}))) -> 2 | G37: 6.3 | H37: 6.2852 | J37: =IF(COUNT($D$7:$D$18)=0,"",IF(ISNA(LOOKUP(K37,$D$7:$D$18,{1,2,3,4,5,6,7,8,9,10,11,12})),0,LOOKUP(K37,$D$7:$D$18,{1,2,3,4,5,6,7,8,9,10,11,12}))) -> 3 | K37: 12.8 | L37: 12.8056 | N37: =IF(COUNT($D$7:$D$18)=0,"",IF(ISNA(LOOKUP(O37,$D$7:$D$18,{1,2,3,4,5,6,7,8,9,10,11,12})),0,LOOKUP(O37,$D$7:$D$18,{1,2,3,4,5,6,7,8,9,10,11,12}))) -> 4 | O37: 19.3 | P37: 19.3272 | R37: =IF(COUNT($D$7:$D$18)=0,"",IF(ISNA(LOOKUP(S37,$D$7:$D$18,{1,2,3,4,5,6,7,8,9,10,11,12})),0,LOOKUP(S37,$D$7:$D$18,{1,2,3,4,5,6,7,8,9,10,11,12}))) -> 6 | S37: 25.8 | T37: 25.7 | V37: =IF(COUNT($D$7:$D$18)=0,"",IF(ISNA(LOOKUP(W37,$D$7:$D$18,{1,2,3,4,5,6,7,8,9,10,11,12})),0,LOOKUP(W37,$D$7:$D$18,{1,2,3,4,5,6,7,8,9,10,11,12}))) -> 6 | W37: 32.3 | X37: 32.2 | Y37: =IF(ISNA(MATCH($E$1,OFFSET('Temperature Checks'!$A$6,SUM($Y$1:$Y36),0,495-SUM($Y$1:$Y36),1),0)),0,MATCH($E$1,OFFSET('Temperature Checks'!$A$6,SUM($Y$1:$Y36),0,495-SUM($Y$1:$Y36),1),0)) -> 0 | Z37: =IF($Y37=0,"",INDEX('Temperature Checks'!$B$6:$B$500,SUM($Y$1:$Y37))) -> 
B38: =IF(COUNT($D$7:$D$18)=0,"",IF(ISNA(LOOKUP(C38,$D$7:$D$18,{1,2,3,4,5,6,7,8,9,10,11,12})),0,LOOKUP(C38,$D$7:$D$18,{1,2,3,4,5,6,7,8,9,10,11,12}))) -> 1 | C38: 1.4 | D38: 1.343265306 | F38: =IF(COUNT($D$7:$D$18)=0,"",IF(ISNA(LOOKUP(G38,$D$7:$D$18,{1,2,3,4,5,6,7,8,9,10,11,12})),0,LOOKUP(G38,$D$7:$D$18,{1,2,3,4,5,6,7,8,9,10,11,12}))) -> 2 | G38: 6.4 | H38: 6.3856 | J38: =IF(COUNT($D$7:$D$18)=0,"",IF(ISNA(LOOKUP(K38,$D$7:$D$18,{1,2,3,4,5,6,7,8,9,10,11,12})),0,LOOKUP(K38,$D$7:$D$18,{1,2,3,4,5,6,7,8,9,10,11,12}))) -> 3 | K38: 12.9 | L38: 12.9058 | N38: =IF(COUNT($D$7:$D$18)=0,"",IF(ISNA(LOOKUP(O38,$D$7:$D$18,{1,2,3,4,5,6,7,8,9,10,11,12})),0,LOOKUP(O38,$D$7:$D$18,{1,2,3,4,5,6,7,8,9,10,11,12}))) -> 4 | O38: 19.4 | P38: 19.4276 | R38: =IF(COUNT($D$7:$D$18)=0,"",IF(ISNA(LOOKUP(S38,$D$7:$D$18,{1,2,3,4,5,6,7,8,9,10,11,12})),0,LOOKUP(S38,$D$7:$D$18,{1,2,3,4,5,6,7,8,9,10,11,12}))) -> 6 | S38: 25.9 | T38: 25.8 | V38: =IF(COUNT($D$7:$D$18)=0,"",IF(ISNA(LOOKUP(W38,$D$7:$D$18,{1,2,3,4,5,6,7,8,9,10,11,12})),0,LOOKUP(W38,$D$7:$D$18,{1,2,3,4,5,6,7,8,9,10,11,12}))) -> 6 | W38: 32.4 | X38: 32.3 | Y38: =IF(ISNA(MATCH($E$1,OFFSET('Temperature Checks'!$A$6,SUM($Y$1:$Y37),0,495-SUM($Y$1:$Y37),1),0)),0,MATCH($E$1,OFFSET('Temperature Checks'!$A$6,SUM($Y$1:$Y37),0,495-SUM($Y$1:$Y37),1),0)) -> 0 | Z38: =IF($Y38=0,"",INDEX('Temperature Checks'!$B$6:$B$500,SUM($Y$1:$Y38))) -> 
B39: =IF(COUNT($D$7:$D$18)=0,"",IF(ISNA(LOOKUP(C39,$D$7:$D$18,{1,2,3,4,5,6,7,8,9,10,11,12})),0,LOOKUP(C39,$D$7:$D$18,{1,2,3,4,5,6,7,8,9,10,11,12}))) -> 1 | C39: 1.5 | D39: 1.444285714 | F39: =IF(COUNT($D$7:$D$18)=0,"",IF(ISNA(LOOKUP(G39,$D$7:$D$18,{1,2,3,4,5,6,7,8,9,10,11,12})),0,LOOKUP(G39,$D$7:$D$18,{1,2,3,4,5,6,7,8,9,10,11,12}))) -> 2 | G39: 6.5 | H39: 6.486 | J39: =IF(COUNT($D$7:$D$18)=0,"",IF(ISNA(LOOKUP(K39,$D$7:$D$18,{1,2,3,4,5,6,7,8,9,10,11,12})),0,LOOKUP(K39,$D$7:$D$18,{1,2,3,4,5,6,7,8,9,10,11,12}))) -> 3 | K39: 13 | L39: 13.006 | N39: =IF(COUNT($D$7:$D$18)=0,"",IF(ISNA(LOOKUP(O39,$D$7:$D$18,{1,2,3,4,5,6,7,8,9,10,11,12})),0,LOOKUP(O39,$D$7:$D$18,{1,2,3,4,5,6,7,8,9,10,11,12}))) -> 4 | O39: 19.5 | P39: 19.528 | R39: =IF(COUNT($D$7:$D$18)=0,"",IF(ISNA(LOOKUP(S39,$D$7:$D$18,{1,2,3,4,5,6,7,8,9,10,11,12})),0,LOOKUP(S39,$D$7:$D$18,{1,2,3,4,5,6,7,8,9,10,11,12}))) -> 6 | S39: 26 | T39: 25.9 | V39: =IF(COUNT($D$7:$D$18)=0,"",IF(ISNA(LOOKUP(W39,$D$7:$D$18,{1,2,3,4,5,6,7,8,9,10,11,12})),0,LOOKUP(W39,$D$7:$D$18,{1,2,3,4,5,6,7,8,9,10,11,12}))) -> 6 | W39: 32.5 | X39: 32.4 | Y39: =IF(ISNA(MATCH($E$1,OFFSET('Temperature Checks'!$A$6,SUM($Y$1:$Y38),0,495-SUM($Y$1:$Y38),1),0)),0,MATCH($E$1,OFFSET('Temperature Checks'!$A$6,SUM($Y$1:$Y38),0,495-SUM($Y$1:$Y38),1),0)) -> 0 | Z39: =IF($Y39=0,"",INDEX('Temperature Checks'!$B$6:$B$500,SUM($Y$1:$Y39))) -> 
B40: =IF(COUNT($D$7:$D$18)=0,"",IF(ISNA(LOOKUP(C40,$D$7:$D$18,{1,2,3,4,5,6,7,8,9,10,11,12})),0,LOOKUP(C40,$D$7:$D$18,{1,2,3,4,5,6,7,8,9,10,11,12}))) -> 1 | C40: 1.6 | D40: 1.545306122 | F40: =IF(COUNT($D$7:$D$18)=0,"",IF(ISNA(LOOKUP(G40,$D$7:$D$18,{1,2,3,4,5,6,7,8,9,10,11,12})),0,LOOKUP(G40,$D$7:$D$18,{1,2,3,4,5,6,7,8,9,10,11,12}))) -> 2 | G40: 6.6 | H40: 6.5864 | J40: =IF(COUNT($D$7:$D$18)=0,"",IF(ISNA(LOOKUP(K40,$D$7:$D$18,{1,2,3,4,5,6,7,8,9,10,11,12})),0,LOOKUP(K40,$D$7:$D$18,{1,2,3,4,5,6,7,8,9,10,11,12}))) -> 3 | K40: 13.1 | L40: 13.1062 | N40: =IF(COUNT($D$7:$D$18)=0,"",IF(ISNA(LOOKUP(O40,$D$7:$D$18,{1,2,3,4,5,6,7,8,9,10,11,12})),0,LOOKUP(O40,$D$7:$D$18,{1,2,3,4,5,6,7,8,9,10,11,12}))) -> 4 | O40: 19.6 | P40: 19.6284 | R40: =IF(COUNT($D$7:$D$18)=0,"",IF(ISNA(LOOKUP(S40,$D$7:$D$18,{1,2,3,4,5,6,7,8,9,10,11,12})),0,LOOKUP(S40,$D$7:$D$18,{1,2,3,4,5,6,7,8,9,10,11,12}))) -> 6 | S40: 26.1 | T40: 26 | V40: =IF(COUNT($D$7:$D$18)=0,"",IF(ISNA(LOOKUP(W40,$D$7:$D$18,{1,2,3,4,5,6,7,8,9,10,11,12})),0,LOOKUP(W40,$D$7:$D$18,{1,2,3,4,5,6,7,8,9,10,11,12}))) -> 6 | W40: 32.6 | X40: 32.5 | Y40: =IF(ISNA(MATCH($E$1,OFFSET('Temperature Checks'!$A$6,SUM($Y$1:$Y39),0,495-SUM($Y$1:$Y39),1),0)),0,MATCH($E$1,OFFSET('Temperature Checks'!$A$6,SUM($Y$1:$Y39),0,495-SUM($Y$1:$Y39),1),0)) -> 0 | Z40: =IF($Y40=0,"",INDEX('Temperature Checks'!$B$6:$B$500,SUM($Y$1:$Y40))) -> 
B41: =IF(COUNT($D$7:$D$18)=0,"",IF(ISNA(LOOKUP(C41,$D$7:$D$18,{1,2,3,4,5,6,7,8,9,10,11,12})),0,LOOKUP(C41,$D$7:$D$18,{1,2,3,4,5,6,7,8,9,10,11,12}))) -> 1 | C41: 1.7 | D41: 1.646326531 | F41: =IF(COUNT($D$7:$D$18)=0,"",IF(ISNA(LOOKUP(G41,$D$7:$D$18,{1,2,3,4,5,6,7,8,9,10,11,12})),0,LOOKUP(G41,$D$7:$D$18,{1,2,3,4,5,6,7,8,9,10,11,12}))) -> 2 | G41: 6.7 | H41: 6.6868 | J41: =IF(COUNT($D$7:$D$18)=0,"",IF(ISNA(LOOKUP(K41,$D$7:$D$18,{1,2,3,4,5,6,7,8,9,10,11,12})),0,LOOKUP(K41,$D$7:$D$18,{1,2,3,4,5,6,7,8,9,10,11,12}))) -> 3 | K41: 13.2 | L41: 13.2064 | N41: =IF(COUNT($D$7:$D$18)=0,"",IF(ISNA(LOOKUP(O41,$D$7:$D$18,{1,2,3,4,5,6,7,8,9,10,11,12})),0,LOOKUP(O41,$D$7:$D$18,{1,2,3,4,5,6,7,8,9,10,11,12}))) -> 4 | O41: 19.7 | P41: 19.7288 | R41: =IF(COUNT($D$7:$D$18)=0,"",IF(ISNA(LOOKUP(S41,$D$7:$D$18,{1,2,3,4,5,6,7,8,9,10,11,12})),0,LOOKUP(S41,$D$7:$D$18,{1,2,3,4,5,6,7,8,9,10,11,12}))) -> 6 | S41: 26.2 | T41: 26.1 | V41: =IF(COUNT($D$7:$D$18)=0,"",IF(ISNA(LOOKUP(W41,$D$7:$D$18,{1,2,3,4,5,6,7,8,9,10,11,12})),0,LOOKUP(W41,$D$7:$D$18,{1,2,3,4,5,6,7,8,9,10,11,12}))) -> 6 | W41: 32.7 | X41: 32.6 | Y41: =IF(ISNA(MATCH($E$1,OFFSET('Temperature Checks'!$A$6,SUM($Y$1:$Y40),0,495-SUM($Y$1:$Y40),1),0)),0,MATCH($E$1,OFFSET('Temperature Checks'!$A$6,SUM($Y$1:$Y40),0,495-SUM($Y$1:$Y40),1),0)) -> 0 | Z41: =IF($Y41=0,"",INDEX('Temperature Checks'!$B$6:$B$500,SUM($Y$1:$Y41))) -> 
B42: =IF(COUNT($D$7:$D$18)=0,"",IF(ISNA(LOOKUP(C42,$D$7:$D$18,{1,2,3,4,5,6,7,8,9,10,11,12})),0,LOOKUP(C42,$D$7:$D$18,{1,2,3,4,5,6,7,8,9,10,11,12}))) -> 1 | C42: 1.8 | D42: 1.747346939 | F42: =IF(COUNT($D$7:$D$18)=0,"",IF(ISNA(LOOKUP(G42,$D$7:$D$18,{1,2,3,4,5,6,7,8,9,10,11,12})),0,LOOKUP(G42,$D$7:$D$18,{1,2,3,4,5,6,7,8,9,10,11,12}))) -> 2 | G42: 6.8 | H42: 6.7872 | J42: =IF(COUNT($D$7:$D$18)=0,"",IF(ISNA(LOOKUP(K42,$D$7:$D$18,{1,2,3,4,5,6,7,8,9,10,11,12})),0,LOOKUP(K42,$D$7:$D$18,{1,2,3,4,5,6,7,8,9,10,11,12}))) -> 3 | K42: 13.3 | L42: 13.3066 | N42: =IF(COUNT($D$7:$D$18)=0,"",IF(ISNA(LOOKUP(O42,$D$7:$D$18,{1,2,3,4,5,6,7,8,9,10,11,12})),0,LOOKUP(O42,$D$7:$D$18,{1,2,3,4,5,6,7,8,9,10,11,12}))) -> 4 | O42: 19.8 | P42: 19.8292 | R42: =IF(COUNT($D$7:$D$18)=0,"",IF(ISNA(LOOKUP(S42,$D$7:$D$18,{1,2,3,4,5,6,7,8,9,10,11,12})),0,LOOKUP(S42,$D$7:$D$18,{1,2,3,4,5,6,7,8,9,10,11,12}))) -> 6 | S42: 26.3 | T42: 26.2 | V42: =IF(COUNT($D$7:$D$18)=0,"",IF(ISNA(LOOKUP(W42,$D$7:$D$18,{1,2,3,4,5,6,7,8,9,10,11,12})),0,LOOKUP(W42,$D$7:$D$18,{1,2,3,4,5,6,7,8,9,10,11,12}))) -> 6 | W42: 32.8 | X42: 32.7 | Y42: =IF(ISNA(MATCH($E$1,OFFSET('Temperature Checks'!$A$6,SUM($Y$1:$Y41),0,495-SUM($Y$1:$Y41),1),0)),0,MATCH($E$1,OFFSET('Temperature Checks'!$A$6,SUM($Y$1:$Y41),0,495-SUM($Y$1:$Y41),1),0)) -> 0 | Z42: =IF($Y42=0,"",INDEX('Temperature Checks'!$B$6:$B$500,SUM($Y$1:$Y42))) -> 
B43: =IF(COUNT($D$7:$D$18)=0,"",IF(ISNA(LOOKUP(C43,$D$7:$D$18,{1,2,3,4,5,6,7,8,9,10,11,12})),0,LOOKUP(C43,$D$7:$D$18,{1,2,3,4,5,6,7,8,9,10,11,12}))) -> 1 | C43: 1.9 | D43: 1.848367347 | F43: =IF(COUNT($D$7:$D$18)=0,"",IF(ISNA(LOOKUP(G43,$D$7:$D$18,{1,2,3,4,5,6,7,8,9,10,11,12})),0,LOOKUP(G43,$D$7:$D$18,{1,2,3,4,5,6,7,8,9,10,11,12}))) -> 2 | G43: 6.9 | H43: 6.8876 | J43: =IF(COUNT($D$7:$D$18)=0,"",IF(ISNA(LOOKUP(K43,$D$7:$D$18,{1,2,3,4,5,6,7,8,9,10,11,12})),0,LOOKUP(K43,$D$7:$D$18,{1,2,3,4,5,6,7,8,9,10,11,12}))) -> 3 | K43: 13.4 | L43: 13.4068 | N43: =IF(COUNT($D$7:$D$18)=0,"",IF(ISNA(LOOKUP(O43,$D$7:$D$18,{1,2,3,4,5,6,7,8,9,10,11,12})),0,LOOKUP(O43,$D$7:$D$18,{1,2,3,4,5,6,7,8,9,10,11,12}))) -> 4 | O43: 19.9 | P43: 19.9296 | R43: =IF(COUNT($D$7:$D$18)=0,"",IF(ISNA(LOOKUP(S43,$D$7:$D$18,{1,2,3,4,5,6,7,8,9,10,11,12})),0,LOOKUP(S43,$D$7:$D$18,{1,2,3,4,5,6,7,8,9,10,11,12}))) -> 6 | S43: 26.4 | T43: 26.3 | V43: =IF(COUNT($D$7:$D$18)=0,"",IF(ISNA(LOOKUP(W43,$D$7:$D$18,{1,2,3,4,5,6,7,8,9,10,11,12})),0,LOOKUP(W43,$D$7:$D$18,{1,2,3,4,5,6,7,8,9,10,11,12}))) -> 6 | W43: 32.9 | X43: 32.8 | Y43: =IF(ISNA(MATCH($E$1,OFFSET('Temperature Checks'!$A$6,SUM($Y$1:$Y42),0,495-SUM($Y$1:$Y42),1),0)),0,MATCH($E$1,OFFSET('Temperature Checks'!$A$6,SUM($Y$1:$Y42),0,495-SUM($Y$1:$Y42),1),0)) -> 0 | Z43: =IF($Y43=0,"",INDEX('Temperature Checks'!$B$6:$B$500,SUM($Y$1:$Y43))) -> 
B44: =IF(COUNT($D$7:$D$18)=0,"",IF(ISNA(LOOKUP(C44,$D$7:$D$18,{1,2,3,4,5,6,7,8,9,10,11,12})),0,LOOKUP(C44,$D$7:$D$18,{1,2,3,4,5,6,7,8,9,10,11,12}))) -> 1 | C44: 2 | D44: 1.949387755 | F44: =IF(COUNT($D$7:$D$18)=0,"",IF(ISNA(LOOKUP(G44,$D$7:$D$18,{1,2,3,4,5,6,7,8,9,10,11,12})),0,LOOKUP(G44,$D$7:$D$18,{1,2,3,4,5,6,7,8,9,10,11,12}))) -> 2 | G44: 7 | H44: 6.988 | J44: =IF(COUNT($D$7:$D$18)=0,"",IF(ISNA(LOOKUP(K44,$D$7:$D$18,{1,2,3,4,5,6,7,8,9,10,11,12})),0,LOOKUP(K44,$D$7:$D$18,{1,2,3,4,5,6,7,8,9,10,11,12}))) -> 3 | K44: 13.5 | L44: 13.507 | N44: =IF(COUNT($D$7:$D$18)=0,"",IF(ISNA(LOOKUP(O44,$D$7:$D$18,{1,2,3,4,5,6,7,8,9,10,11,12})),0,LOOKUP(O44,$D$7:$D$18,{1,2,3,4,5,6,7,8,9,10,11,12}))) -> 5 | O44: 20 | P44: 20.03 | R44: =IF(COUNT($D$7:$D$18)=0,"",IF(ISNA(LOOKUP(S44,$D$7:$D$18,{1,2,3,4,5,6,7,8,9,10,11,12})),0,LOOKUP(S44,$D$7:$D$18,{1,2,3,4,5,6,7,8,9,10,11,12}))) -> 6 | S44: 26.5 | T44: 26.4 | V44: =IF(COUNT($D$7:$D$18)=0,"",IF(ISNA(LOOKUP(W44,$D$7:$D$18,{1,2,3,4,5,6,7,8,9,10,11,12})),0,LOOKUP(W44,$D$7:$D$18,{1,2,3,4,5,6,7,8,9,10,11,12}))) -> 6 | W44: 33 | X44: 32.9 | Y44: =IF(ISNA(MATCH($E$1,OFFSET('Temperature Checks'!$A$6,SUM($Y$1:$Y43),0,495-SUM($Y$1:$Y43),1),0)),0,MATCH($E$1,OFFSET('Temperature Checks'!$A$6,SUM($Y$1:$Y43),0,495-SUM($Y$1:$Y43),1),0)) -> 0 | Z44: =IF($Y44=0,"",INDEX('Temperature Checks'!$B$6:$B$500,SUM($Y$1:$Y44))) -> 
B45: =IF(COUNT($D$7:$D$18)=0,"",IF(ISNA(LOOKUP(C45,$D$7:$D$18,{1,2,3,4,5,6,7,8,9,10,11,12})),0,LOOKUP(C45,$D$7:$D$18,{1,2,3,4,5,6,7,8,9,10,11,12}))) -> 1 | C45: 2.1 | D45: 2.050408163 | F45: =IF(COUNT($D$7:$D$18)=0,"",IF(ISNA(LOOKUP(G45,$D$7:$D$18,{1,2,3,4,5,6,7,8,9,10,11,12})),0,LOOKUP(G45,$D$7:$D$18,{1,2,3,4,5,6,7,8,9,10,11,12}))) -> 2 | G45: 7.1 | H45: 7.0884 | J45: =IF(COUNT($D$7:$D$18)=0,"",IF(ISNA(LOOKUP(K45,$D$7:$D$18,{1,2,3,4,5,6,7,8,9,10,11,12})),0,LOOKUP(K45,$D$7:$D$18,{1,2,3,4,5,6,7,8,9,10,11,12}))) -> 3 | K45: 13.6 | L45: 13.6072 | N45: =IF(COUNT($D$7:$D$18)=0,"",IF(ISNA(LOOKUP(O45,$D$7:$D$18,{1,2,3,4,5,6,7,8,9,10,11,12})),0,LOOKUP(O45,$D$7:$D$18,{1,2,3,4,5,6,7,8,9,10,11,12}))) -> 5 | O45: 20.1 | P45: 20.1275 | R45: =IF(COUNT($D$7:$D$18)=0,"",IF(ISNA(LOOKUP(S45,$D$7:$D$18,{1,2,3,4,5,6,7,8,9,10,11,12})),0,LOOKUP(S45,$D$7:$D$18,{1,2,3,4,5,6,7,8,9,10,11,12}))) -> 6 | S45: 26.6 | T45: 26.5 | V45: =IF(COUNT($D$7:$D$18)=0,"",IF(ISNA(LOOKUP(W45,$D$7:$D$18,{1,2,3,4,5,6,7,8,9,10,11,12})),0,LOOKUP(W45,$D$7:$D$18,{1,2,3,4,5,6,7,8,9,10,11,12}))) -> 6 | W45: 33.1 | X45: 33 | Y45: =IF(ISNA(MATCH($E$1,OFFSET('Temperature Checks'!$A$6,SUM($Y$1:$Y44),0,495-SUM($Y$1:$Y44),1),0)),0,MATCH($E$1,OFFSET('Temperature Checks'!$A$6,SUM($Y$1:$Y44),0,495-SUM($Y$1:$Y44),1),0)) -> 0 | Z45: =IF($Y45=0,"",INDEX('Temperature Checks'!$B$6:$B$500,SUM($Y$1:$Y45))) -> 
B46: =IF(COUNT($D$7:$D$18)=0,"",IF(ISNA(LOOKUP(C46,$D$7:$D$18,{1,2,3,4,5,6,7,8,9,10,11,12})),0,LOOKUP(C46,$D$7:$D$18,{1,2,3,4,5,6,7,8,9,10,11,12}))) -> 1 | C46: 2.2 | D46: 2.151428571 | F46: =IF(COUNT($D$7:$D$18)=0,"",IF(ISNA(LOOKUP(G46,$D$7:$D$18,{1,2,3,4,5,6,7,8,9,10,11,12})),0,LOOKUP(G46,$D$7:$D$18,{1,2,3,4,5,6,7,8,9,10,11,12}))) -> 2 | G46: 7.2 | H46: 7.1888 | J46: =IF(COUNT($D$7:$D$18)=0,"",IF(ISNA(LOOKUP(K46,$D$7:$D$18,{1,2,3,4,5,6,7,8,9,10,11,12})),0,LOOKUP(K46,$D$7:$D$18,{1,2,3,4,5,6,7,8,9,10,11,12}))) -> 3 | K46: 13.7 | L46: 13.7074 | N46: =IF(COUNT($D$7:$D$18)=0,"",IF(ISNA(LOOKUP(O46,$D$7:$D$18,{1,2,3,4,5,6,7,8,9,10,11,12})),0,LOOKUP(O46,$D$7:$D$18,{1,2,3,4,5,6,7,8,9,10,11,12}))) -> 5 | O46: 20.2 | P46: 20.225 | R46: =IF(COUNT($D$7:$D$18)=0,"",IF(ISNA(LOOKUP(S46,$D$7:$D$18,{1,2,3,4,5,6,7,8,9,10,11,12})),0,LOOKUP(S46,$D$7:$D$18,{1,2,3,4,5,6,7,8,9,10,11,12}))) -> 6 | S46: 26.7 | T46: 26.6 | V46: =IF(COUNT($D$7:$D$18)=0,"",IF(ISNA(LOOKUP(W46,$D$7:$D$18,{1,2,3,4,5,6,7,8,9,10,11,12})),0,LOOKUP(W46,$D$7:$D$18,{1,2,3,4,5,6,7,8,9,10,11,12}))) -> 6 | W46: 33.2 | X46: 33.1 | Y46: =IF(ISNA(MATCH($E$1,OFFSET('Temperature Checks'!$A$6,SUM($Y$1:$Y45),0,495-SUM($Y$1:$Y45),1),0)),0,MATCH($E$1,OFFSET('Temperature Checks'!$A$6,SUM($Y$1:$Y45),0,495-SUM($Y$1:$Y45),1),0)) -> 0 | Z46: =IF($Y46=0,"",INDEX('Temperature Checks'!$B$6:$B$500,SUM($Y$1:$Y46))) -> 
B47: =IF(COUNT($D$7:$D$18)=0,"",IF(ISNA(LOOKUP(C47,$D$7:$D$18,{1,2,3,4,5,6,7,8,9,10,11,12})),0,LOOKUP(C47,$D$7:$D$18,{1,2,3,4,5,6,7,8,9,10,11,12}))) -> 1 | C47: 2.3 | D47: 2.25244898 | F47: =IF(COUNT($D$7:$D$18)=0,"",IF(ISNA(LOOKUP(G47,$D$7:$D$18,{1,2,3,4,5,6,7,8,9,10,11,12})),0,LOOKUP(G47,$D$7:$D$18,{1,2,3,4,5,6,7,8,9,10,11,12}))) -> 2 | G47: 7.3 | H47: 7.2892 | J47: =IF(COUNT($D$7:$D$18)=0,"",IF(ISNA(LOOKUP(K47,$D$7:$D$18,{1,2,3,4,5,6,7,8,9,10,11,12})),0,LOOKUP(K47,$D$7:$D$18,{1,2,3,4,5,6,7,8,9,10,11,12}))) -> 3 | K47: 13.8 | L47: 13.8076 | N47: =IF(COUNT($D$7:$D$18)=0,"",IF(ISNA(LOOKUP(O47,$D$7:$D$18,{1,2,3,4,5,6,7,8,9,10,11,12})),0,LOOKUP(O47,$D$7:$D$18,{1,2,3,4,5,6,7,8,9,10,11,12}))) -> 5 | O47: 20.3 | P47: 20.3225 | R47: =IF(COUNT($D$7:$D$18)=0,"",IF(ISNA(LOOKUP(S47,$D$7:$D$18,{1,2,3,4,5,6,7,8,9,10,11,12})),0,LOOKUP(S47,$D$7:$D$18,{1,2,3,4,5,6,7,8,9,10,11,12}))) -> 6 | S47: 26.8 | T47: 26.7 | V47: =IF(COUNT($D$7:$D$18)=0,"",IF(ISNA(LOOKUP(W47,$D$7:$D$18,{1,2,3,4,5,6,7,8,9,10,11,12})),0,LOOKUP(W47,$D$7:$D$18,{1,2,3,4,5,6,7,8,9,10,11,12}))) -> 6 | W47: 33.3 | X47: 33.2 | Y47: =IF(ISNA(MATCH($E$1,OFFSET('Temperature Checks'!$A$6,SUM($Y$1:$Y46),0,495-SUM($Y$1:$Y46),1),0)),0,MATCH($E$1,OFFSET('Temperature Checks'!$A$6,SUM($Y$1:$Y46),0,495-SUM($Y$1:$Y46),1),0)) -> 0 | Z47: =IF($Y47=0,"",INDEX('Temperature Checks'!$B$6:$B$500,SUM($Y$1:$Y47))) -> 
B48: =IF(COUNT($D$7:$D$18)=0,"",IF(ISNA(LOOKUP(C48,$D$7:$D$18,{1,2,3,4,5,6,7,8,9,10,11,12})),0,LOOKUP(C48,$D$7:$D$18,{1,2,3,4,5,6,7,8,9,10,11,12}))) -> 1 | C48: 2.4 | D48: 2.353469388 | F48: =IF(COUNT($D$7:$D$18)=0,"",IF(ISNA(LOOKUP(G48,$D$7:$D$18,{1,2,3,4,5,6,7,8,9,10,11,12})),0,LOOKUP(G48,$D$7:$D$18,{1,2,3,4,5,6,7,8,9,10,11,12}))) -> 2 | G48: 7.4 | H48: 7.3896 | J48: =IF(COUNT($D$7:$D$18)=0,"",IF(ISNA(LOOKUP(K48,$D$7:$D$18,{1,2,3,4,5,6,7,8,9,10,11,12})),0,LOOKUP(K48,$D$7:$D$18,{1,2,3,4,5,6,7,8,9,10,11,12}))) -> 3 | K48: 13.9 | L48: 13.9078 | N48: =IF(COUNT($D$7:$D$18)=0,"",IF(ISNA(LOOKUP(O48,$D$7:$D$18,{1,2,3,4,5,6,7,8,9,10,11,12})),0,LOOKUP(O48,$D$7:$D$18,{1,2,3,4,5,6,7,8,9,10,11,12}))) -> 5 | O48: 20.4 | P48: 20.42 | R48: =IF(COUNT($D$7:$D$18)=0,"",IF(ISNA(LOOKUP(S48,$D$7:$D$18,{1,2,3,4,5,6,7,8,9,10,11,12})),0,LOOKUP(S48,$D$7:$D$18,{1,2,3,4,5,6,7,8,9,10,11,12}))) -> 6 | S48: 26.9 | T48: 26.8 | V48: =IF(COUNT($D$7:$D$18)=0,"",IF(ISNA(LOOKUP(W48,$D$7:$D$18,{1,2,3,4,5,6,7,8,9,10,11,12})),0,LOOKUP(W48,$D$7:$D$18,{1,2,3,4,5,6,7,8,9,10,11,12}))) -> 6 | W48: 33.4 | X48: 33.3 | Y48: =IF(ISNA(MATCH($E$1,OFFSET('Temperature Checks'!$A$6,SUM($Y$1:$Y47),0,495-SUM($Y$1:$Y47),1),0)),0,MATCH($E$1,OFFSET('Temperature Checks'!$A$6,SUM($Y$1:$Y47),0,495-SUM($Y$1:$Y47),1),0)) -> 0 | Z48: =IF($Y48=0,"",INDEX('Temperature Checks'!$B$6:$B$500,SUM($Y$1:$Y48))) -> 
B49: =IF(COUNT($D$7:$D$18)=0,"",IF(ISNA(LOOKUP(C49,$D$7:$D$18,{1,2,3,4,5,6,7,8,9,10,11,12})),0,LOOKUP(C49,$D$7:$D$18,{1,2,3,4,5,6,7,8,9,10,11,12}))) -> 1 | C49: 2.5 | D49: 2.454489796 | F49: =IF(COUNT($D$7:$D$18)=0,"",IF(ISNA(LOOKUP(G49,$D$7:$D$18,{1,2,3,4,5,6,7,8,9,10,11,12})),0,LOOKUP(G49,$D$7:$D$18,{1,2,3,4,5,6,7,8,9,10,11,12}))) -> 2 | G49: 7.5 | H49: 7.49 | J49: =IF(COUNT($D$7:$D$18)=0,"",IF(ISNA(LOOKUP(K49,$D$7:$D$18,{1,2,3,4,5,6,7,8,9,10,11,12})),0,LOOKUP(K49,$D$7:$D$18,{1,2,3,4,5,6,7,8,9,10,11,12}))) -> 3 | K49: 14 | L49: 14.008 | N49: =IF(COUNT($D$7:$D$18)=0,"",IF(ISNA(LOOKUP(O49,$D$7:$D$18,{1,2,3,4,5,6,7,8,9,10,11,12})),0,LOOKUP(O49,$D$7:$D$18,{1,2,3,4,5,6,7,8,9,10,11,12}))) -> 5 | O49: 20.5 | P49: 20.5175 | R49: =IF(COUNT($D$7:$D$18)=0,"",IF(ISNA(LOOKUP(S49,$D$7:$D$18,{1,2,3,4,5,6,7,8,9,10,11,12})),0,LOOKUP(S49,$D$7:$D$18,{1,2,3,4,5,6,7,8,9,10,11,12}))) -> 6 | S49: 27 | T49: 26.9 | V49: =IF(COUNT($D$7:$D$18)=0,"",IF(ISNA(LOOKUP(W49,$D$7:$D$18,{1,2,3,4,5,6,7,8,9,10,11,12})),0,LOOKUP(W49,$D$7:$D$18,{1,2,3,4,5,6,7,8,9,10,11,12}))) -> 6 | W49: 33.5 | X49: 33.4 | Y49: =IF(ISNA(MATCH($E$1,OFFSET('Temperature Checks'!$A$6,SUM($Y$1:$Y48),0,495-SUM($Y$1:$Y48),1),0)),0,MATCH($E$1,OFFSET('Temperature Checks'!$A$6,SUM($Y$1:$Y48),0,495-SUM($Y$1:$Y48),1),0)) -> 0 | Z49: =IF($Y49=0,"",INDEX('Temperature Checks'!$B$6:$B$500,SUM($Y$1:$Y49))) -> 
B50: =IF(COUNT($D$7:$D$18)=0,"",IF(ISNA(LOOKUP(C50,$D$7:$D$18,{1,2,3,4,5,6,7,8,9,10,11,12})),0,LOOKUP(C50,$D$7:$D$18,{1,2,3,4,5,6,7,8,9,10,11,12}))) -> 1 | C50: 2.6 | D50: 2.555510204 | F50: =IF(COUNT($D$7:$D$18)=0,"",IF(ISNA(LOOKUP(G50,$D$7:$D$18,{1,2,3,4,5,6,7,8,9,10,11,12})),0,LOOKUP(G50,$D$7:$D$18,{1,2,3,4,5,6,7,8,9,10,11,12}))) -> 2 | G50: 7.6 | H50: 7.5904 | J50: =IF(COUNT($D$7:$D$18)=0,"",IF(ISNA(LOOKUP(K50,$D$7:$D$18,{1,2,3,4,5,6,7,8,9,10,11,12})),0,LOOKUP(K50,$D$7:$D$18,{1,2,3,4,5,6,7,8,9,10,11,12}))) -> 3 | K50: 14.1 | L50: 14.1082 | N50: =IF(COUNT($D$7:$D$18)=0,"",IF(ISNA(LOOKUP(O50,$D$7:$D$18,{1,2,3,4,5,6,7,8,9,10,11,12})),0,LOOKUP(O50,$D$7:$D$18,{1,2,3,4,5,6,7,8,9,10,11,12}))) -> 5 | O50: 20.6 | P50: 20.615 | R50: =IF(COUNT($D$7:$D$18)=0,"",IF(ISNA(LOOKUP(S50,$D$7:$D$18,{1,2,3,4,5,6,7,8,9,10,11,12})),0,LOOKUP(S50,$D$7:$D$18,{1,2,3,4,5,6,7,8,9,10,11,12}))) -> 6 | S50: 27.1 | T50: 27 | V50: =IF(COUNT($D$7:$D$18)=0,"",IF(ISNA(LOOKUP(W50,$D$7:$D$18,{1,2,3,4,5,6,7,8,9,10,11,12})),0,LOOKUP(W50,$D$7:$D$18,{1,2,3,4,5,6,7,8,9,10,11,12}))) -> 6 | W50: 33.6 | X50: 33.5 | Y50: =IF(ISNA(MATCH($E$1,OFFSET('Temperature Checks'!$A$6,SUM($Y$1:$Y49),0,495-SUM($Y$1:$Y49),1),0)),0,MATCH($E$1,OFFSET('Temperature Checks'!$A$6,SUM($Y$1:$Y49),0,495-SUM($Y$1:$Y49),1),0)) -> 0 | Z50: =IF($Y50=0,"",INDEX('Temperature Checks'!$B$6:$B$500,SUM($Y$1:$Y50))) -> 
B51: =IF(COUNT($D$7:$D$18)=0,"",IF(ISNA(LOOKUP(C51,$D$7:$D$18,{1,2,3,4,5,6,7,8,9,10,11,12})),0,LOOKUP(C51,$D$7:$D$18,{1,2,3,4,5,6,7,8,9,10,11,12}))) -> 1 | C51: 2.7 | D51: 2.656530612 | F51: =IF(COUNT($D$7:$D$18)=0,"",IF(ISNA(LOOKUP(G51,$D$7:$D$18,{1,2,3,4,5,6,7,8,9,10,11,12})),0,LOOKUP(G51,$D$7:$D$18,{1,2,3,4,5,6,7,8,9,10,11,12}))) -> 2 | G51: 7.7 | H51: 7.6908 | J51: =IF(COUNT($D$7:$D$18)=0,"",IF(ISNA(LOOKUP(K51,$D$7:$D$18,{1,2,3,4,5,6,7,8,9,10,11,12})),0,LOOKUP(K51,$D$7:$D$18,{1,2,3,4,5,6,7,8,9,10,11,12}))) -> 3 | K51: 14.2 | L51: 14.2084 | N51: =IF(COUNT($D$7:$D$18)=0,"",IF(ISNA(LOOKUP(O51,$D$7:$D$18,{1,2,3,4,5,6,7,8,9,10,11,12})),0,LOOKUP(O51,$D$7:$D$18,{1,2,3,4,5,6,7,8,9,10,11,12}))) -> 5 | O51: 20.7 | P51: 20.7125 | R51: =IF(COUNT($D$7:$D$18)=0,"",IF(ISNA(LOOKUP(S51,$D$7:$D$18,{1,2,3,4,5,6,7,8,9,10,11,12})),0,LOOKUP(S51,$D$7:$D$18,{1,2,3,4,5,6,7,8,9,10,11,12}))) -> 6 | S51: 27.2 | T51: 27.1 | V51: =IF(COUNT($D$7:$D$18)=0,"",IF(ISNA(LOOKUP(W51,$D$7:$D$18,{1,2,3,4,5,6,7,8,9,10,11,12})),0,LOOKUP(W51,$D$7:$D$18,{1,2,3,4,5,6,7,8,9,10,11,12}))) -> 6 | W51: 33.7 | X51: 33.6 | Y51: =IF(ISNA(MATCH($E$1,OFFSET('Temperature Checks'!$A$6,SUM($Y$1:$Y50),0,495-SUM($Y$1:$Y50),1),0)),0,MATCH($E$1,OFFSET('Temperature Checks'!$A$6,SUM($Y$1:$Y50),0,495-SUM($Y$1:$Y50),1),0)) -> 0 | Z51: =IF($Y51=0,"",INDEX('Temperature Checks'!$B$6:$B$500,SUM($Y$1:$Y51))) -> 
B52: =IF(COUNT($D$7:$D$18)=0,"",IF(ISNA(LOOKUP(C52,$D$7:$D$18,{1,2,3,4,5,6,7,8,9,10,11,12})),0,LOOKUP(C52,$D$7:$D$18,{1,2,3,4,5,6,7,8,9,10,11,12}))) -> 1 | C52: 2.8 | D52: 2.75755102 | F52: =IF(COUNT($D$7:$D$18)=0,"",IF(ISNA(LOOKUP(G52,$D$7:$D$18,{1,2,3,4,5,6,7,8,9,10,11,12})),0,LOOKUP(G52,$D$7:$D$18,{1,2,3,4,5,6,7,8,9,10,11,12}))) -> 2 | G52: 7.8 | H52: 7.7912 | J52: =IF(COUNT($D$7:$D$18)=0,"",IF(ISNA(LOOKUP(K52,$D$7:$D$18,{1,2,3,4,5,6,7,8,9,10,11,12})),0,LOOKUP(K52,$D$7:$D$18,{1,2,3,4,5,6,7,8,9,10,11,12}))) -> 3 | K52: 14.3 | L52: 14.3086 | N52: =IF(COUNT($D$7:$D$18)=0,"",IF(ISNA(LOOKUP(O52,$D$7:$D$18,{1,2,3,4,5,6,7,8,9,10,11,12})),0,LOOKUP(O52,$D$7:$D$18,{1,2,3,4,5,6,7,8,9,10,11,12}))) -> 5 | O52: 20.8 | P52: 20.81 | R52: =IF(COUNT($D$7:$D$18)=0,"",IF(ISNA(LOOKUP(S52,$D$7:$D$18,{1,2,3,4,5,6,7,8,9,10,11,12})),0,LOOKUP(S52,$D$7:$D$18,{1,2,3,4,5,6,7,8,9,10,11,12}))) -> 6 | S52: 27.3 | T52: 27.2 | V52: =IF(COUNT($D$7:$D$18)=0,"",IF(ISNA(LOOKUP(W52,$D$7:$D$18,{1,2,3,4,5,6,7,8,9,10,11,12})),0,LOOKUP(W52,$D$7:$D$18,{1,2,3,4,5,6,7,8,9,10,11,12}))) -> 6 | W52: 33.8 | X52: 33.7 | Y52: =IF(ISNA(MATCH($E$1,OFFSET('Temperature Checks'!$A$6,SUM($Y$1:$Y51),0,495-SUM($Y$1:$Y51),1),0)),0,MATCH($E$1,OFFSET('Temperature Checks'!$A$6,SUM($Y$1:$Y51),0,495-SUM($Y$1:$Y51),1),0)) -> 0 | Z52: =IF($Y52=0,"",INDEX('Temperature Checks'!$B$6:$B$500,SUM($Y$1:$Y52))) -> 
B53: =IF(COUNT($D$7:$D$18)=0,"",IF(ISNA(LOOKUP(C53,$D$7:$D$18,{1,2,3,4,5,6,7,8,9,10,11,12})),0,LOOKUP(C53,$D$7:$D$18,{1,2,3,4,5,6,7,8,9,10,11,12}))) -> 1 | C53: 2.9 | D53: 2.858571429 | F53: =IF(COUNT($D$7:$D$18)=0,"",IF(ISNA(LOOKUP(G53,$D$7:$D$18,{1,2,3,4,5,6,7,8,9,10,11,12})),0,LOOKUP(G53,$D$7:$D$18,{1,2,3,4,5,6,7,8,9,10,11,12}))) -> 2 | G53: 7.9 | H53: 7.8916 | J53: =IF(COUNT($D$7:$D$18)=0,"",IF(ISNA(LOOKUP(K53,$D$7:$D$18,{1,2,3,4,5,6,7,8,9,10,11,12})),0,LOOKUP(K53,$D$7:$D$18,{1,2,3,4,5,6,7,8,9,10,11,12}))) -> 3 | K53: 14.4 | L53: 14.4088 | N53: =IF(COUNT($D$7:$D$18)=0,"",IF(ISNA(LOOKUP(O53,$D$7:$D$18,{1,2,3,4,5,6,7,8,9,10,11,12})),0,LOOKUP(O53,$D$7:$D$18,{1,2,3,4,5,6,7,8,9,10,11,12}))) -> 5 | O53: 20.9 | P53: 20.9075 | R53: =IF(COUNT($D$7:$D$18)=0,"",IF(ISNA(LOOKUP(S53,$D$7:$D$18,{1,2,3,4,5,6,7,8,9,10,11,12})),0,LOOKUP(S53,$D$7:$D$18,{1,2,3,4,5,6,7,8,9,10,11,12}))) -> 6 | S53: 27.4 | T53: 27.3 | V53: =IF(COUNT($D$7:$D$18)=0,"",IF(ISNA(LOOKUP(W53,$D$7:$D$18,{1,2,3,4,5,6,7,8,9,10,11,12})),0,LOOKUP(W53,$D$7:$D$18,{1,2,3,4,5,6,7,8,9,10,11,12}))) -> 6 | W53: 33.9 | X53: 33.8 | Y53: =IF(ISNA(MATCH($E$1,OFFSET('Temperature Checks'!$A$6,SUM($Y$1:$Y52),0,495-SUM($Y$1:$Y52),1),0)),0,MATCH($E$1,OFFSET('Temperature Checks'!$A$6,SUM($Y$1:$Y52),0,495-SUM($Y$1:$Y52),1),0)) -> 0 | Z53: =IF($Y53=0,"",INDEX('Temperature Checks'!$B$6:$B$500,SUM($Y$1:$Y53))) -> 
B54: =IF(COUNT($D$7:$D$18)=0,"",IF(ISNA(LOOKUP(C54,$D$7:$D$18,{1,2,3,4,5,6,7,8,9,10,11,12})),0,LOOKUP(C54,$D$7:$D$18,{1,2,3,4,5,6,7,8,9,10,11,12}))) -> 1 | C54: 3 | D54: 2.959591837 | F54: =IF(COUNT($D$7:$D$18)=0,"",IF(ISNA(LOOKUP(G54,$D$7:$D$18,{1,2,3,4,5,6,7,8,9,10,11,12})),0,LOOKUP(G54,$D$7:$D$18,{1,2,3,4,5,6,7,8,9,10,11,12}))) -> 2 | G54: 8 | H54: 7.992 | J54: =IF(COUNT($D$7:$D$18)=0,"",IF(ISNA(LOOKUP(K54,$D$7:$D$18,{1,2,3,4,5,6,7,8,9,10,11,12})),0,LOOKUP(K54,$D$7:$D$18,{1,2,3,4,5,6,7,8,9,10,11,12}))) -> 3 | K54: 14.5 | L54: 14.509 | N54: =IF(COUNT($D$7:$D$18)=0,"",IF(ISNA(LOOKUP(O54,$D$7:$D$18,{1,2,3,4,5,6,7,8,9,10,11,12})),0,LOOKUP(O54,$D$7:$D$18,{1,2,3,4,5,6,7,8,9,10,11,12}))) -> 5 | O54: 21 | P54: 21.005 | R54: =IF(COUNT($D$7:$D$18)=0,"",IF(ISNA(LOOKUP(S54,$D$7:$D$18,{1,2,3,4,5,6,7,8,9,10,11,12})),0,LOOKUP(S54,$D$7:$D$18,{1,2,3,4,5,6,7,8,9,10,11,12}))) -> 6 | S54: 27.5 | T54: 27.4 | V54: =IF(COUNT($D$7:$D$18)=0,"",IF(ISNA(LOOKUP(W54,$D$7:$D$18,{1,2,3,4,5,6,7,8,9,10,11,12})),0,LOOKUP(W54,$D$7:$D$18,{1,2,3,4,5,6,7,8,9,10,11,12}))) -> 6 | W54: 34 | X54: 33.9 | Y54: =IF(ISNA(MATCH($E$1,OFFSET('Temperature Checks'!$A$6,SUM($Y$1:$Y53),0,495-SUM($Y$1:$Y53),1),0)),0,MATCH($E$1,OFFSET('Temperature Checks'!$A$6,SUM($Y$1:$Y53),0,495-SUM($Y$1:$Y53),1),0)) -> 0 | Z54: =IF($Y54=0,"",INDEX('Temperature Checks'!$B$6:$B$500,SUM($Y$1:$Y54))) -> 
B55: =IF(COUNT($D$7:$D$18)=0,"",IF(ISNA(LOOKUP(C55,$D$7:$D$18,{1,2,3,4,5,6,7,8,9,10,11,12})),0,LOOKUP(C55,$D$7:$D$18,{1,2,3,4,5,6,7,8,9,10,11,12}))) -> 1 | C55: 3.1 | D55: 3.060612245 | F55: =IF(COUNT($D$7:$D$18)=0,"",IF(ISNA(LOOKUP(G55,$D$7:$D$18,{1,2,3,4,5,6,7,8,9,10,11,12})),0,LOOKUP(G55,$D$7:$D$18,{1,2,3,4,5,6,7,8,9,10,11,12}))) -> 2 | G55: 8.1 | H55: 8.0924 | J55: =IF(COUNT($D$7:$D$18)=0,"",IF(ISNA(LOOKUP(K55,$D$7:$D$18,{1,2,3,4,5,6,7,8,9,10,11,12})),0,LOOKUP(K55,$D$7:$D$18,{1,2,3,4,5,6,7,8,9,10,11,12}))) -> 3 | K55: 14.6 | L55: 14.6092 | N55: =IF(COUNT($D$7:$D$18)=0,"",IF(ISNA(LOOKUP(O55,$D$7:$D$18,{1,2,3,4,5,6,7,8,9,10,11,12})),0,LOOKUP(O55,$D$7:$D$18,{1,2,3,4,5,6,7,8,9,10,11,12}))) -> 5 | O55: 21.1 | P55: 21.1025 | R55: =IF(COUNT($D$7:$D$18)=0,"",IF(ISNA(LOOKUP(S55,$D$7:$D$18,{1,2,3,4,5,6,7,8,9,10,11,12})),0,LOOKUP(S55,$D$7:$D$18,{1,2,3,4,5,6,7,8,9,10,11,12}))) -> 6 | S55: 27.6 | T55: 27.5 | V55: =IF(COUNT($D$7:$D$18)=0,"",IF(ISNA(LOOKUP(W55,$D$7:$D$18,{1,2,3,4,5,6,7,8,9,10,11,12})),0,LOOKUP(W55,$D$7:$D$18,{1,2,3,4,5,6,7,8,9,10,11,12}))) -> 6 | W55: 34.1 | X55: 34 | Y55: =IF(ISNA(MATCH($E$1,OFFSET('Temperature Checks'!$A$6,SUM($Y$1:$Y54),0,495-SUM($Y$1:$Y54),1),0)),0,MATCH($E$1,OFFSET('Temperature Checks'!$A$6,SUM($Y$1:$Y54),0,495-SUM($Y$1:$Y54),1),0)) -> 0 | Z55: =IF($Y55=0,"",INDEX('Temperature Checks'!$B$6:$B$500,SUM($Y$1:$Y55))) -> 
B56: =IF(COUNT($D$7:$D$18)=0,"",IF(ISNA(LOOKUP(C56,$D$7:$D$18,{1,2,3,4,5,6,7,8,9,10,11,12})),0,LOOKUP(C56,$D$7:$D$18,{1,2,3,4,5,6,7,8,9,10,11,12}))) -> 1 | C56: 3.2 | D56: 3.161632653 | F56: =IF(COUNT($D$7:$D$18)=0,"",IF(ISNA(LOOKUP(G56,$D$7:$D$18,{1,2,3,4,5,6,7,8,9,10,11,12})),0,LOOKUP(G56,$D$7:$D$18,{1,2,3,4,5,6,7,8,9,10,11,12}))) -> 2 | G56: 8.2 | H56: 8.1928 | J56: =IF(COUNT($D$7:$D$18)=0,"",IF(ISNA(LOOKUP(K56,$D$7:$D$18,{1,2,3,4,5,6,7,8,9,10,11,12})),0,LOOKUP(K56,$D$7:$D$18,{1,2,3,4,5,6,7,8,9,10,11,12}))) -> 3 | K56: 14.7 | L56: 14.7094 | N56: =IF(COUNT($D$7:$D$18)=0,"",IF(ISNA(LOOKUP(O56,$D$7:$D$18,{1,2,3,4,5,6,7,8,9,10,11,12})),0,LOOKUP(O56,$D$7:$D$18,{1,2,3,4,5,6,7,8,9,10,11,12}))) -> 5 | O56: 21.2 | P56: 21.2 | R56: =IF(COUNT($D$7:$D$18)=0,"",IF(ISNA(LOOKUP(S56,$D$7:$D$18,{1,2,3,4,5,6,7,8,9,10,11,12})),0,LOOKUP(S56,$D$7:$D$18,{1,2,3,4,5,6,7,8,9,10,11,12}))) -> 6 | S56: 27.7 | T56: 27.6 | V56: =IF(COUNT($D$7:$D$18)=0,"",IF(ISNA(LOOKUP(W56,$D$7:$D$18,{1,2,3,4,5,6,7,8,9,10,11,12})),0,LOOKUP(W56,$D$7:$D$18,{1,2,3,4,5,6,7,8,9,10,11,12}))) -> 6 | W56: 34.2 | X56: 34.1 | Y56: =IF(ISNA(MATCH($E$1,OFFSET('Temperature Checks'!$A$6,SUM($Y$1:$Y55),0,495-SUM($Y$1:$Y55),1),0)),0,MATCH($E$1,OFFSET('Temperature Checks'!$A$6,SUM($Y$1:$Y55),0,495-SUM($Y$1:$Y55),1),0)) -> 0 | Z56: =IF($Y56=0,"",INDEX('Temperature Checks'!$B$6:$B$500,SUM($Y$1:$Y56))) -> 
B57: =IF(COUNT($D$7:$D$18)=0,"",IF(ISNA(LOOKUP(C57,$D$7:$D$18,{1,2,3,4,5,6,7,8,9,10,11,12})),0,LOOKUP(C57,$D$7:$D$18,{1,2,3,4,5,6,7,8,9,10,11,12}))) -> 1 | C57: 3.3 | D57: 3.262653061 | F57: =IF(COUNT($D$7:$D$18)=0,"",IF(ISNA(LOOKUP(G57,$D$7:$D$18,{1,2,3,4,5,6,7,8,9,10,11,12})),0,LOOKUP(G57,$D$7:$D$18,{1,2,3,4,5,6,7,8,9,10,11,12}))) -> 2 | G57: 8.3 | H57: 8.2932 | J57: =IF(COUNT($D$7:$D$18)=0,"",IF(ISNA(LOOKUP(K57,$D$7:$D$18,{1,2,3,4,5,6,7,8,9,10,11,12})),0,LOOKUP(K57,$D$7:$D$18,{1,2,3,4,5,6,7,8,9,10,11,12}))) -> 3 | K57: 14.8 | L57: 14.8096 | N57: =IF(COUNT($D$7:$D$18)=0,"",IF(ISNA(LOOKUP(O57,$D$7:$D$18,{1,2,3,4,5,6,7,8,9,10,11,12})),0,LOOKUP(O57,$D$7:$D$18,{1,2,3,4,5,6,7,8,9,10,11,12}))) -> 5 | O57: 21.3 | P57: 21.2975 | R57: =IF(COUNT($D$7:$D$18)=0,"",IF(ISNA(LOOKUP(S57,$D$7:$D$18,{1,2,3,4,5,6,7,8,9,10,11,12})),0,LOOKUP(S57,$D$7:$D$18,{1,2,3,4,5,6,7,8,9,10,11,12}))) -> 6 | S57: 27.8 | T57: 27.7 | V57: =IF(COUNT($D$7:$D$18)=0,"",IF(ISNA(LOOKUP(W57,$D$7:$D$18,{1,2,3,4,5,6,7,8,9,10,11,12})),0,LOOKUP(W57,$D$7:$D$18,{1,2,3,4,5,6,7,8,9,10,11,12}))) -> 6 | W57: 34.3 | X57: 34.2 | Y57: =IF(ISNA(MATCH($E$1,OFFSET('Temperature Checks'!$A$6,SUM($Y$1:$Y56),0,495-SUM($Y$1:$Y56),1),0)),0,MATCH($E$1,OFFSET('Temperature Checks'!$A$6,SUM($Y$1:$Y56),0,495-SUM($Y$1:$Y56),1),0)) -> 0 | Z57: =IF($Y57=0,"",INDEX('Temperature Checks'!$B$6:$B$500,SUM($Y$1:$Y57))) -> 
B58: =IF(COUNT($D$7:$D$18)=0,"",IF(ISNA(LOOKUP(C58,$D$7:$D$18,{1,2,3,4,5,6,7,8,9,10,11,12})),0,LOOKUP(C58,$D$7:$D$18,{1,2,3,4,5,6,7,8,9,10,11,12}))) -> 1 | C58: 3.4 | D58: 3.363673469 | F58: =IF(COUNT($D$7:$D$18)=0,"",IF(ISNA(LOOKUP(G58,$D$7:$D$18,{1,2,3,4,5,6,7,8,9,10,11,12})),0,LOOKUP(G58,$D$7:$D$18,{1,2,3,4,5,6,7,8,9,10,11,12}))) -> 2 | G58: 8.4 | H58: 8.3936 | J58: =IF(COUNT($D$7:$D$18)=0,"",IF(ISNA(LOOKUP(K58,$D$7:$D$18,{1,2,3,4,5,6,7,8,9,10,11,12})),0,LOOKUP(K58,$D$7:$D$18,{1,2,3,4,5,6,7,8,9,10,11,12}))) -> 3 | K58: 14.9 | L58: 14.9098 | N58: =IF(COUNT($D$7:$D$18)=0,"",IF(ISNA(LOOKUP(O58,$D$7:$D$18,{1,2,3,4,5,6,7,8,9,10,11,12})),0,LOOKUP(O58,$D$7:$D$18,{1,2,3,4,5,6,7,8,9,10,11,12}))) -> 5 | O58: 21.4 | P58: 21.395 | R58: =IF(COUNT($D$7:$D$18)=0,"",IF(ISNA(LOOKUP(S58,$D$7:$D$18,{1,2,3,4,5,6,7,8,9,10,11,12})),0,LOOKUP(S58,$D$7:$D$18,{1,2,3,4,5,6,7,8,9,10,11,12}))) -> 6 | S58: 27.9 | T58: 27.8 | V58: =IF(COUNT($D$7:$D$18)=0,"",IF(ISNA(LOOKUP(W58,$D$7:$D$18,{1,2,3,4,5,6,7,8,9,10,11,12})),0,LOOKUP(W58,$D$7:$D$18,{1,2,3,4,5,6,7,8,9,10,11,12}))) -> 6 | W58: 34.4 | X58: 34.3 | Y58: =IF(ISNA(MATCH($E$1,OFFSET('Temperature Checks'!$A$6,SUM($Y$1:$Y57),0,495-SUM($Y$1:$Y57),1),0)),0,MATCH($E$1,OFFSET('Temperature Checks'!$A$6,SUM($Y$1:$Y57),0,495-SUM($Y$1:$Y57),1),0)) -> 0 | Z58: =IF($Y58=0,"",INDEX('Temperature Checks'!$B$6:$B$500,SUM($Y$1:$Y58))) -> 
B59: =IF(COUNT($D$7:$D$18)=0,"",IF(ISNA(LOOKUP(C59,$D$7:$D$18,{1,2,3,4,5,6,7,8,9,10,11,12})),0,LOOKUP(C59,$D$7:$D$18,{1,2,3,4,5,6,7,8,9,10,11,12}))) -> 1 | C59: 3.5 | D59: 3.464693878 | F59: =IF(COUNT($D$7:$D$18)=0,"",IF(ISNA(LOOKUP(G59,$D$7:$D$18,{1,2,3,4,5,6,7,8,9,10,11,12})),0,LOOKUP(G59,$D$7:$D$18,{1,2,3,4,5,6,7,8,9,10,11,12}))) -> 2 | G59: 8.5 | H59: 8.494 | J59: =IF(COUNT($D$7:$D$18)=0,"",IF(ISNA(LOOKUP(K59,$D$7:$D$18,{1,2,3,4,5,6,7,8,9,10,11,12})),0,LOOKUP(K59,$D$7:$D$18,{1,2,3,4,5,6,7,8,9,10,11,12}))) -> 4 | K59: 15 | L59: 15.01 | N59: =IF(COUNT($D$7:$D$18)=0,"",IF(ISNA(LOOKUP(O59,$D$7:$D$18,{1,2,3,4,5,6,7,8,9,10,11,12})),0,LOOKUP(O59,$D$7:$D$18,{1,2,3,4,5,6,7,8,9,10,11,12}))) -> 5 | O59: 21.5 | P59: 21.4925 | R59: =IF(COUNT($D$7:$D$18)=0,"",IF(ISNA(LOOKUP(S59,$D$7:$D$18,{1,2,3,4,5,6,7,8,9,10,11,12})),0,LOOKUP(S59,$D$7:$D$18,{1,2,3,4,5,6,7,8,9,10,11,12}))) -> 6 | S59: 28 | T59: 27.9 | V59: =IF(COUNT($D$7:$D$18)=0,"",IF(ISNA(LOOKUP(W59,$D$7:$D$18,{1,2,3,4,5,6,7,8,9,10,11,12})),0,LOOKUP(W59,$D$7:$D$18,{1,2,3,4,5,6,7,8,9,10,11,12}))) -> 6 | W59: 34.5 | X59: 34.4 | Y59: =IF(ISNA(MATCH($E$1,OFFSET('Temperature Checks'!$A$6,SUM($Y$1:$Y58),0,495-SUM($Y$1:$Y58),1),0)),0,MATCH($E$1,OFFSET('Temperature Checks'!$A$6,SUM($Y$1:$Y58),0,495-SUM($Y$1:$Y58),1),0)) -> 0 | Z59: =IF($Y59=0,"",INDEX('Temperature Checks'!$B$6:$B$500,SUM($Y$1:$Y59))) -> 
B60: =IF(COUNT($D$7:$D$18)=0,"",IF(ISNA(LOOKUP(C60,$D$7:$D$18,{1,2,3,4,5,6,7,8,9,10,11,12})),0,LOOKUP(C60,$D$7:$D$18,{1,2,3,4,5,6,7,8,9,10,11,12}))) -> 1 | C60: 3.6 | D60: 3.565714286 | F60: =IF(COUNT($D$7:$D$18)=0,"",IF(ISNA(LOOKUP(G60,$D$7:$D$18,{1,2,3,4,5,6,7,8,9,10,11,12})),0,LOOKUP(G60,$D$7:$D$18,{1,2,3,4,5,6,7,8,9,10,11,12}))) -> 2 | G60: 8.6 | H60: 8.5944 | J60: =IF(COUNT($D$7:$D$18)=0,"",IF(ISNA(LOOKUP(K60,$D$7:$D$18,{1,2,3,4,5,6,7,8,9,10,11,12})),0,LOOKUP(K60,$D$7:$D$18,{1,2,3,4,5,6,7,8,9,10,11,12}))) -> 4 | K60: 15.1 | L60: 15.1104 | N60: =IF(COUNT($D$7:$D$18)=0,"",IF(ISNA(LOOKUP(O60,$D$7:$D$18,{1,2,3,4,5,6,7,8,9,10,11,12})),0,LOOKUP(O60,$D$7:$D$18,{1,2,3,4,5,6,7,8,9,10,11,12}))) -> 5 | O60: 21.6 | P60: 21.59 | R60: =IF(COUNT($D$7:$D$18)=0,"",IF(ISNA(LOOKUP(S60,$D$7:$D$18,{1,2,3,4,5,6,7,8,9,10,11,12})),0,LOOKUP(S60,$D$7:$D$18,{1,2,3,4,5,6,7,8,9,10,11,12}))) -> 6 | S60: 28.1 | T60: 28 | V60: =IF(COUNT($D$7:$D$18)=0,"",IF(ISNA(LOOKUP(W60,$D$7:$D$18,{1,2,3,4,5,6,7,8,9,10,11,12})),0,LOOKUP(W60,$D$7:$D$18,{1,2,3,4,5,6,7,8,9,10,11,12}))) -> 6 | W60: 34.6 | X60: 34.5 | Y60: =IF(ISNA(MATCH($E$1,OFFSET('Temperature Checks'!$A$6,SUM($Y$1:$Y59),0,495-SUM($Y$1:$Y59),1),0)),0,MATCH($E$1,OFFSET('Temperature Checks'!$A$6,SUM($Y$1:$Y59),0,495-SUM($Y$1:$Y59),1),0)) -> 0 | Z60: =IF($Y60=0,"",INDEX('Temperature Checks'!$B$6:$B$500,SUM($Y$1:$Y60))) -> 
B61: =IF(COUNT($D$7:$D$18)=0,"",IF(ISNA(LOOKUP(C61,$D$7:$D$18,{1,2,3,4,5,6,7,8,9,10,11,12})),0,LOOKUP(C61,$D$7:$D$18,{1,2,3,4,5,6,7,8,9,10,11,12}))) -> 1 | C61: 3.7 | D61: 3.666734694 | F61: =IF(COUNT($D$7:$D$18)=0,"",IF(ISNA(LOOKUP(G61,$D$7:$D$18,{1,2,3,4,5,6,7,8,9,10,11,12})),0,LOOKUP(G61,$D$7:$D$18,{1,2,3,4,5,6,7,8,9,10,11,12}))) -> 2 | G61: 8.7 | H61: 8.6948 | J61: =IF(COUNT($D$7:$D$18)=0,"",IF(ISNA(LOOKUP(K61,$D$7:$D$18,{1,2,3,4,5,6,7,8,9,10,11,12})),0,LOOKUP(K61,$D$7:$D$18,{1,2,3,4,5,6,7,8,9,10,11,12}))) -> 4 | K61: 15.2 | L61: 15.2108 | N61: =IF(COUNT($D$7:$D$18)=0,"",IF(ISNA(LOOKUP(O61,$D$7:$D$18,{1,2,3,4,5,6,7,8,9,10,11,12})),0,LOOKUP(O61,$D$7:$D$18,{1,2,3,4,5,6,7,8,9,10,11,12}))) -> 5 | O61: 21.7 | P61: 21.6875 | R61: =IF(COUNT($D$7:$D$18)=0,"",IF(ISNA(LOOKUP(S61,$D$7:$D$18,{1,2,3,4,5,6,7,8,9,10,11,12})),0,LOOKUP(S61,$D$7:$D$18,{1,2,3,4,5,6,7,8,9,10,11,12}))) -> 6 | S61: 28.2 | T61: 28.1 | V61: =IF(COUNT($D$7:$D$18)=0,"",IF(ISNA(LOOKUP(W61,$D$7:$D$18,{1,2,3,4,5,6,7,8,9,10,11,12})),0,LOOKUP(W61,$D$7:$D$18,{1,2,3,4,5,6,7,8,9,10,11,12}))) -> 6 | W61: 34.7 | X61: 34.6 | Y61: =IF(ISNA(MATCH($E$1,OFFSET('Temperature Checks'!$A$6,SUM($Y$1:$Y60),0,495-SUM($Y$1:$Y60),1),0)),0,MATCH($E$1,OFFSET('Temperature Checks'!$A$6,SUM($Y$1:$Y60),0,495-SUM($Y$1:$Y60),1),0)) -> 0 | Z61: =IF($Y61=0,"",INDEX('Temperature Checks'!$B$6:$B$500,SUM($Y$1:$Y61))) -> 
B62: =IF(COUNT($D$7:$D$18)=0,"",IF(ISNA(LOOKUP(C62,$D$7:$D$18,{1,2,3,4,5,6,7,8,9,10,11,12})),0,LOOKUP(C62,$D$7:$D$18,{1,2,3,4,5,6,7,8,9,10,11,12}))) -> 1 | C62: 3.8 | D62: 3.767755102 | F62: =IF(COUNT($D$7:$D$18)=0,"",IF(ISNA(LOOKUP(G62,$D$7:$D$18,{1,2,3,4,5,6,7,8,9,10,11,12})),0,LOOKUP(G62,$D$7:$D$18,{1,2,3,4,5,6,7,8,9,10,11,12}))) -> 2 | G62: 8.8 | H62: 8.7952 | J62: =IF(COUNT($D$7:$D$18)=0,"",IF(ISNA(LOOKUP(K62,$D$7:$D$18,{1,2,3,4,5,6,7,8,9,10,11,12})),0,LOOKUP(K62,$D$7:$D$18,{1,2,3,4,5,6,7,8,9,10,11,12}))) -> 4 | K62: 15.3 | L62: 15.3112 | N62: =IF(COUNT($D$7:$D$18)=0,"",IF(ISNA(LOOKUP(O62,$D$7:$D$18,{1,2,3,4,5,6,7,8,9,10,11,12})),0,LOOKUP(O62,$D$7:$D$18,{1,2,3,4,5,6,7,8,9,10,11,12}))) -> 5 | O62: 21.8 | P62: 21.785 | R62: =IF(COUNT($D$7:$D$18)=0,"",IF(ISNA(LOOKUP(S62,$D$7:$D$18,{1,2,3,4,5,6,7,8,9,10,11,12})),0,LOOKUP(S62,$D$7:$D$18,{1,2,3,4,5,6,7,8,9,10,11,12}))) -> 6 | S62: 28.3 | T62: 28.2 | V62: =IF(COUNT($D$7:$D$18)=0,"",IF(ISNA(LOOKUP(W62,$D$7:$D$18,{1,2,3,4,5,6,7,8,9,10,11,12})),0,LOOKUP(W62,$D$7:$D$18,{1,2,3,4,5,6,7,8,9,10,11,12}))) -> 6 | W62: 34.8 | X62: 34.7 | Y62: =IF(ISNA(MATCH($E$1,OFFSET('Temperature Checks'!$A$6,SUM($Y$1:$Y61),0,495-SUM($Y$1:$Y61),1),0)),0,MATCH($E$1,OFFSET('Temperature Checks'!$A$6,SUM($Y$1:$Y61),0,495-SUM($Y$1:$Y61),1),0)) -> 0 | Z62: =IF($Y62=0,"",INDEX('Temperature Checks'!$B$6:$B$500,SUM($Y$1:$Y62))) -> 
B63: =IF(COUNT($D$7:$D$18)=0,"",IF(ISNA(LOOKUP(C63,$D$7:$D$18,{1,2,3,4,5,6,7,8,9,10,11,12})),0,LOOKUP(C63,$D$7:$D$18,{1,2,3,4,5,6,7,8,9,10,11,12}))) -> 1 | C63: 3.9 | D63: 3.86877551 | F63: =IF(COUNT($D$7:$D$18)=0,"",IF(ISNA(LOOKUP(G63,$D$7:$D$18,{1,2,3,4,5,6,7,8,9,10,11,12})),0,LOOKUP(G63,$D$7:$D$18,{1,2,3,4,5,6,7,8,9,10,11,12}))) -> 2 | G63: 8.9 | H63: 8.8956 | J63: =IF(COUNT($D$7:$D$18)=0,"",IF(ISNA(LOOKUP(K63,$D$7:$D$18,{1,2,3,4,5,6,7,8,9,10,11,12})),0,LOOKUP(K63,$D$7:$D$18,{1,2,3,4,5,6,7,8,9,10,11,12}))) -> 4 | K63: 15.4 | L63: 15.4116 | N63: =IF(COUNT($D$7:$D$18)=0,"",IF(ISNA(LOOKUP(O63,$D$7:$D$18,{1,2,3,4,5,6,7,8,9,10,11,12})),0,LOOKUP(O63,$D$7:$D$18,{1,2,3,4,5,6,7,8,9,10,11,12}))) -> 5 | O63: 21.9 | P63: 21.8825 | R63: =IF(COUNT($D$7:$D$18)=0,"",IF(ISNA(LOOKUP(S63,$D$7:$D$18,{1,2,3,4,5,6,7,8,9,10,11,12})),0,LOOKUP(S63,$D$7:$D$18,{1,2,3,4,5,6,7,8,9,10,11,12}))) -> 6 | S63: 28.4 | T63: 28.3 | V63: =IF(COUNT($D$7:$D$18)=0,"",IF(ISNA(LOOKUP(W63,$D$7:$D$18,{1,2,3,4,5,6,7,8,9,10,11,12})),0,LOOKUP(W63,$D$7:$D$18,{1,2,3,4,5,6,7,8,9,10,11,12}))) -> 6 | W63: 34.9 | X63: 34.8 | Y63: =IF(ISNA(MATCH($E$1,OFFSET('Temperature Checks'!$A$6,SUM($Y$1:$Y62),0,495-SUM($Y$1:$Y62),1),0)),0,MATCH($E$1,OFFSET('Temperature Checks'!$A$6,SUM($Y$1:$Y62),0,495-SUM($Y$1:$Y62),1),0)) -> 0 | Z63: =IF($Y63=0,"",INDEX('Temperature Checks'!$B$6:$B$500,SUM($Y$1:$Y63))) -> 
B64: =IF(COUNT($D$7:$D$18)=0,"",IF(ISNA(LOOKUP(C64,$D$7:$D$18,{1,2,3,4,5,6,7,8,9,10,11,12})),0,LOOKUP(C64,$D$7:$D$18,{1,2,3,4,5,6,7,8,9,10,11,12}))) -> 1 | C64: 4 | D64: 3.969795918 | F64: =IF(COUNT($D$7:$D$18)=0,"",IF(ISNA(LOOKUP(G64,$D$7:$D$18,{1,2,3,4,5,6,7,8,9,10,11,12})),0,LOOKUP(G64,$D$7:$D$18,{1,2,3,4,5,6,7,8,9,10,11,12}))) -> 2 | G64: 9 | H64: 8.996 | J64: =IF(COUNT($D$7:$D$18)=0,"",IF(ISNA(LOOKUP(K64,$D$7:$D$18,{1,2,3,4,5,6,7,8,9,10,11,12})),0,LOOKUP(K64,$D$7:$D$18,{1,2,3,4,5,6,7,8,9,10,11,12}))) -> 4 | K64: 15.5 | L64: 15.512 | N64: =IF(COUNT($D$7:$D$18)=0,"",IF(ISNA(LOOKUP(O64,$D$7:$D$18,{1,2,3,4,5,6,7,8,9,10,11,12})),0,LOOKUP(O64,$D$7:$D$18,{1,2,3,4,5,6,7,8,9,10,11,12}))) -> 5 | O64: 22 | P64: 21.98 | R64: =IF(COUNT($D$7:$D$18)=0,"",IF(ISNA(LOOKUP(S64,$D$7:$D$18,{1,2,3,4,5,6,7,8,9,10,11,12})),0,LOOKUP(S64,$D$7:$D$18,{1,2,3,4,5,6,7,8,9,10,11,12}))) -> 6 | S64: 28.5 | T64: 28.4 | V64: =IF(COUNT($D$7:$D$18)=0,"",IF(ISNA(LOOKUP(W64,$D$7:$D$18,{1,2,3,4,5,6,7,8,9,10,11,12})),0,LOOKUP(W64,$D$7:$D$18,{1,2,3,4,5,6,7,8,9,10,11,12}))) -> 6 | W64: 35 | X64: 34.9 | Y64: =IF(ISNA(MATCH($E$1,OFFSET('Temperature Checks'!$A$6,SUM($Y$1:$Y63),0,495-SUM($Y$1:$Y63),1),0)),0,MATCH($E$1,OFFSET('Temperature Checks'!$A$6,SUM($Y$1:$Y63),0,495-SUM($Y$1:$Y63),1),0)) -> 0 | Z64: =IF($Y64=0,"",INDEX('Temperature Checks'!$B$6:$B$500,SUM($Y$1:$Y64))) -> 
B65: =IF(COUNT($D$7:$D$18)=0,"",IF(ISNA(LOOKUP(C65,$D$7:$D$18,{1,2,3,4,5,6,7,8,9,10,11,12})),0,LOOKUP(C65,$D$7:$D$18,{1,2,3,4,5,6,7,8,9,10,11,12}))) -> 1 | C65: 4.1 | D65: 4.070816327 | F65: =IF(COUNT($D$7:$D$18)=0,"",IF(ISNA(LOOKUP(G65,$D$7:$D$18,{1,2,3,4,5,6,7,8,9,10,11,12})),0,LOOKUP(G65,$D$7:$D$18,{1,2,3,4,5,6,7,8,9,10,11,12}))) -> 2 | G65: 9.1 | H65: 9.0964 | J65: =IF(COUNT($D$7:$D$18)=0,"",IF(ISNA(LOOKUP(K65,$D$7:$D$18,{1,2,3,4,5,6,7,8,9,10,11,12})),0,LOOKUP(K65,$D$7:$D$18,{1,2,3,4,5,6,7,8,9,10,11,12}))) -> 4 | K65: 15.6 | L65: 15.6124 | N65: =IF(COUNT($D$7:$D$18)=0,"",IF(ISNA(LOOKUP(O65,$D$7:$D$18,{1,2,3,4,5,6,7,8,9,10,11,12})),0,LOOKUP(O65,$D$7:$D$18,{1,2,3,4,5,6,7,8,9,10,11,12}))) -> 5 | O65: 22.1 | P65: 22.0775 | R65: =IF(COUNT($D$7:$D$18)=0,"",IF(ISNA(LOOKUP(S65,$D$7:$D$18,{1,2,3,4,5,6,7,8,9,10,11,12})),0,LOOKUP(S65,$D$7:$D$18,{1,2,3,4,5,6,7,8,9,10,11,12}))) -> 6 | S65: 28.6 | T65: 28.5 | V65: =IF(COUNT($D$7:$D$18)=0,"",IF(ISNA(LOOKUP(W65,$D$7:$D$18,{1,2,3,4,5,6,7,8,9,10,11,12})),0,LOOKUP(W65,$D$7:$D$18,{1,2,3,4,5,6,7,8,9,10,11,12}))) -> 6 | W65: 35.1 | X65: 35 | Y65: =IF(ISNA(MATCH($E$1,OFFSET('Temperature Checks'!$A$6,SUM($Y$1:$Y64),0,495-SUM($Y$1:$Y64),1),0)),0,MATCH($E$1,OFFSET('Temperature Checks'!$A$6,SUM($Y$1:$Y64),0,495-SUM($Y$1:$Y64),1),0)) -> 0 | Z65: =IF($Y65=0,"",INDEX('Temperature Checks'!$B$6:$B$500,SUM($Y$1:$Y65))) -> 
B66: =IF(COUNT($D$7:$D$18)=0,"",IF(ISNA(LOOKUP(C66,$D$7:$D$18,{1,2,3,4,5,6,7,8,9,10,11,12})),0,LOOKUP(C66,$D$7:$D$18,{1,2,3,4,5,6,7,8,9,10,11,12}))) -> 1 | C66: 4.2 | D66: 4.171836735 | F66: =IF(COUNT($D$7:$D$18)=0,"",IF(ISNA(LOOKUP(G66,$D$7:$D$18,{1,2,3,4,5,6,7,8,9,10,11,12})),0,LOOKUP(G66,$D$7:$D$18,{1,2,3,4,5,6,7,8,9,10,11,12}))) -> 2 | G66: 9.2 | H66: 9.1968 | J66: =IF(COUNT($D$7:$D$18)=0,"",IF(ISNA(LOOKUP(K66,$D$7:$D$18,{1,2,3,4,5,6,7,8,9,10,11,12})),0,LOOKUP(K66,$D$7:$D$18,{1,2,3,4,5,6,7,8,9,10,11,12}))) -> 4 | K66: 15.7 | L66: 15.7128 | N66: =IF(COUNT($D$7:$D$18)=0,"",IF(ISNA(LOOKUP(O66,$D$7:$D$18,{1,2,3,4,5,6,7,8,9,10,11,12})),0,LOOKUP(O66,$D$7:$D$18,{1,2,3,4,5,6,7,8,9,10,11,12}))) -> 5 | O66: 22.2 | P66: 22.175 | R66: =IF(COUNT($D$7:$D$18)=0,"",IF(ISNA(LOOKUP(S66,$D$7:$D$18,{1,2,3,4,5,6,7,8,9,10,11,12})),0,LOOKUP(S66,$D$7:$D$18,{1,2,3,4,5,6,7,8,9,10,11,12}))) -> 6 | S66: 28.7 | T66: 28.6 | V66: =IF(COUNT($D$7:$D$18)=0,"",IF(ISNA(LOOKUP(W66,$D$7:$D$18,{1,2,3,4,5,6,7,8,9,10,11,12})),0,LOOKUP(W66,$D$7:$D$18,{1,2,3,4,5,6,7,8,9,10,11,12}))) -> 6 | W66: 35.2 | X66: 35.1 | Y66: =IF(ISNA(MATCH($E$1,OFFSET('Temperature Checks'!$A$6,SUM($Y$1:$Y65),0,495-SUM($Y$1:$Y65),1),0)),0,MATCH($E$1,OFFSET('Temperature Checks'!$A$6,SUM($Y$1:$Y65),0,495-SUM($Y$1:$Y65),1),0)) -> 0 | Z66: =IF($Y66=0,"",INDEX('Temperature Checks'!$B$6:$B$500,SUM($Y$1:$Y66))) -> 
B67: =IF(COUNT($D$7:$D$18)=0,"",IF(ISNA(LOOKUP(C67,$D$7:$D$18,{1,2,3,4,5,6,7,8,9,10,11,12})),0,LOOKUP(C67,$D$7:$D$18,{1,2,3,4,5,6,7,8,9,10,11,12}))) -> 1 | C67: 4.3 | D67: 4.272857143 | F67: =IF(COUNT($D$7:$D$18)=0,"",IF(ISNA(LOOKUP(G67,$D$7:$D$18,{1,2,3,4,5,6,7,8,9,10,11,12})),0,LOOKUP(G67,$D$7:$D$18,{1,2,3,4,5,6,7,8,9,10,11,12}))) -> 2 | G67: 9.3 | H67: 9.2972 | J67: =IF(COUNT($D$7:$D$18)=0,"",IF(ISNA(LOOKUP(K67,$D$7:$D$18,{1,2,3,4,5,6,7,8,9,10,11,12})),0,LOOKUP(K67,$D$7:$D$18,{1,2,3,4,5,6,7,8,9,10,11,12}))) -> 4 | K67: 15.8 | L67: 15.8132 | N67: =IF(COUNT($D$7:$D$18)=0,"",IF(ISNA(LOOKUP(O67,$D$7:$D$18,{1,2,3,4,5,6,7,8,9,10,11,12})),0,LOOKUP(O67,$D$7:$D$18,{1,2,3,4,5,6,7,8,9,10,11,12}))) -> 5 | O67: 22.3 | P67: 22.2725 | R67: =IF(COUNT($D$7:$D$18)=0,"",IF(ISNA(LOOKUP(S67,$D$7:$D$18,{1,2,3,4,5,6,7,8,9,10,11,12})),0,LOOKUP(S67,$D$7:$D$18,{1,2,3,4,5,6,7,8,9,10,11,12}))) -> 6 | S67: 28.8 | T67: 28.7 | V67: =IF(COUNT($D$7:$D$18)=0,"",IF(ISNA(LOOKUP(W67,$D$7:$D$18,{1,2,3,4,5,6,7,8,9,10,11,12})),0,LOOKUP(W67,$D$7:$D$18,{1,2,3,4,5,6,7,8,9,10,11,12}))) -> 6 | W67: 35.3 | X67: 35.2 | Y67: =IF(ISNA(MATCH($E$1,OFFSET('Temperature Checks'!$A$6,SUM($Y$1:$Y66),0,495-SUM($Y$1:$Y66),1),0)),0,MATCH($E$1,OFFSET('Temperature Checks'!$A$6,SUM($Y$1:$Y66),0,495-SUM($Y$1:$Y66),1),0)) -> 0 | Z67: =IF($Y67=0,"",INDEX('Temperature Checks'!$B$6:$B$500,SUM($Y$1:$Y67))) -> 
B68: =IF(COUNT($D$7:$D$18)=0,"",IF(ISNA(LOOKUP(C68,$D$7:$D$18,{1,2,3,4,5,6,7,8,9,10,11,12})),0,LOOKUP(C68,$D$7:$D$18,{1,2,3,4,5,6,7,8,9,10,11,12}))) -> 1 | C68: 4.4 | D68: 4.373877551 | F68: =IF(COUNT($D$7:$D$18)=0,"",IF(ISNA(LOOKUP(G68,$D$7:$D$18,{1,2,3,4,5,6,7,8,9,10,11,12})),0,LOOKUP(G68,$D$7:$D$18,{1,2,3,4,5,6,7,8,9,10,11,12}))) -> 2 | G68: 9.4 | H68: 9.3976 | J68: =IF(COUNT($D$7:$D$18)=0,"",IF(ISNA(LOOKUP(K68,$D$7:$D$18,{1,2,3,4,5,6,7,8,9,10,11,12})),0,LOOKUP(K68,$D$7:$D$18,{1,2,3,4,5,6,7,8,9,10,11,12}))) -> 4 | K68: 15.9 | L68: 15.9136 | N68: =IF(COUNT($D$7:$D$18)=0,"",IF(ISNA(LOOKUP(O68,$D$7:$D$18,{1,2,3,4,5,6,7,8,9,10,11,12})),0,LOOKUP(O68,$D$7:$D$18,{1,2,3,4,5,6,7,8,9,10,11,12}))) -> 5 | O68: 22.4 | P68: 22.37 | R68: =IF(COUNT($D$7:$D$18)=0,"",IF(ISNA(LOOKUP(S68,$D$7:$D$18,{1,2,3,4,5,6,7,8,9,10,11,12})),0,LOOKUP(S68,$D$7:$D$18,{1,2,3,4,5,6,7,8,9,10,11,12}))) -> 6 | S68: 28.9 | T68: 28.8 | V68: =IF(COUNT($D$7:$D$18)=0,"",IF(ISNA(LOOKUP(W68,$D$7:$D$18,{1,2,3,4,5,6,7,8,9,10,11,12})),0,LOOKUP(W68,$D$7:$D$18,{1,2,3,4,5,6,7,8,9,10,11,12}))) -> 6 | W68: 35.4 | X68: 35.3 | Y68: =IF(ISNA(MATCH($E$1,OFFSET('Temperature Checks'!$A$6,SUM($Y$1:$Y67),0,495-SUM($Y$1:$Y67),1),0)),0,MATCH($E$1,OFFSET('Temperature Checks'!$A$6,SUM($Y$1:$Y67),0,495-SUM($Y$1:$Y67),1),0)) -> 0 | Z68: =IF($Y68=0,"",INDEX('Temperature Checks'!$B$6:$B$500,SUM($Y$1:$Y68))) -> 
B69: =IF(COUNT($D$7:$D$18)=0,"",IF(ISNA(LOOKUP(C69,$D$7:$D$18,{1,2,3,4,5,6,7,8,9,10,11,12})),0,LOOKUP(C69,$D$7:$D$18,{1,2,3,4,5,6,7,8,9,10,11,12}))) -> 1 | C69: 4.5 | D69: 4.474897959 | F69: =IF(COUNT($D$7:$D$18)=0,"",IF(ISNA(LOOKUP(G69,$D$7:$D$18,{1,2,3,4,5,6,7,8,9,10,11,12})),0,LOOKUP(G69,$D$7:$D$18,{1,2,3,4,5,6,7,8,9,10,11,12}))) -> 2 | G69: 9.5 | H69: 9.498 | J69: =IF(COUNT($D$7:$D$18)=0,"",IF(ISNA(LOOKUP(K69,$D$7:$D$18,{1,2,3,4,5,6,7,8,9,10,11,12})),0,LOOKUP(K69,$D$7:$D$18,{1,2,3,4,5,6,7,8,9,10,11,12}))) -> 4 | K69: 16 | L69: 16.014 | N69: =IF(COUNT($D$7:$D$18)=0,"",IF(ISNA(LOOKUP(O69,$D$7:$D$18,{1,2,3,4,5,6,7,8,9,10,11,12})),0,LOOKUP(O69,$D$7:$D$18,{1,2,3,4,5,6,7,8,9,10,11,12}))) -> 5 | O69: 22.5 | P69: 22.4675 | R69: =IF(COUNT($D$7:$D$18)=0,"",IF(ISNA(LOOKUP(S69,$D$7:$D$18,{1,2,3,4,5,6,7,8,9,10,11,12})),0,LOOKUP(S69,$D$7:$D$18,{1,2,3,4,5,6,7,8,9,10,11,12}))) -> 6 | S69: 29 | T69: 28.9 | V69: =IF(COUNT($D$7:$D$18)=0,"",IF(ISNA(LOOKUP(W69,$D$7:$D$18,{1,2,3,4,5,6,7,8,9,10,11,12})),0,LOOKUP(W69,$D$7:$D$18,{1,2,3,4,5,6,7,8,9,10,11,12}))) -> 6 | W69: 35.5 | X69: 35.4 | Y69: =IF(ISNA(MATCH($E$1,OFFSET('Temperature Checks'!$A$6,SUM($Y$1:$Y68),0,495-SUM($Y$1:$Y68),1),0)),0,MATCH($E$1,OFFSET('Temperature Checks'!$A$6,SUM($Y$1:$Y68),0,495-SUM($Y$1:$Y68),1),0)) -> 0 | Z69: =IF($Y69=0,"",INDEX('Temperature Checks'!$B$6:$B$500,SUM($Y$1:$Y69))) -> 
B70: =IF(COUNT($D$7:$D$18)=0,"",IF(ISNA(LOOKUP(C70,$D$7:$D$18,{1,2,3,4,5,6,7,8,9,10,11,12})),0,LOOKUP(C70,$D$7:$D$18,{1,2,3,4,5,6,7,8,9,10,11,12}))) -> 1 | C70: 4.6 | D70: 4.575918367 | F70: =IF(COUNT($D$7:$D$18)=0,"",IF(ISNA(LOOKUP(G70,$D$7:$D$18,{1,2,3,4,5,6,7,8,9,10,11,12})),0,LOOKUP(G70,$D$7:$D$18,{1,2,3,4,5,6,7,8,9,10,11,12}))) -> 2 | G70: 9.6 | H70: 9.5984 | J70: =IF(COUNT($D$7:$D$18)=0,"",IF(ISNA(LOOKUP(K70,$D$7:$D$18,{1,2,3,4,5,6,7,8,9,10,11,12})),0,LOOKUP(K70,$D$7:$D$18,{1,2,3,4,5,6,7,8,9,10,11,12}))) -> 4 | K70: 16.1 | L70: 16.1144 | N70: =IF(COUNT($D$7:$D$18)=0,"",IF(ISNA(LOOKUP(O70,$D$7:$D$18,{1,2,3,4,5,6,7,8,9,10,11,12})),0,LOOKUP(O70,$D$7:$D$18,{1,2,3,4,5,6,7,8,9,10,11,12}))) -> 5 | O70: 22.6 | P70: 22.565 | R70: =IF(COUNT($D$7:$D$18)=0,"",IF(ISNA(LOOKUP(S70,$D$7:$D$18,{1,2,3,4,5,6,7,8,9,10,11,12})),0,LOOKUP(S70,$D$7:$D$18,{1,2,3,4,5,6,7,8,9,10,11,12}))) -> 6 | S70: 29.1 | T70: 29 | V70: =IF(COUNT($D$7:$D$18)=0,"",IF(ISNA(LOOKUP(W70,$D$7:$D$18,{1,2,3,4,5,6,7,8,9,10,11,12})),0,LOOKUP(W70,$D$7:$D$18,{1,2,3,4,5,6,7,8,9,10,11,12}))) -> 6 | W70: 35.6 | X70: 35.5 | Y70: =IF(ISNA(MATCH($E$1,OFFSET('Temperature Checks'!$A$6,SUM($Y$1:$Y69),0,495-SUM($Y$1:$Y69),1),0)),0,MATCH($E$1,OFFSET('Temperature Checks'!$A$6,SUM($Y$1:$Y69),0,495-SUM($Y$1:$Y69),1),0)) -> 0 | Z70: =IF($Y70=0,"",INDEX('Temperature Checks'!$B$6:$B$500,SUM($Y$1:$Y70))) -> 
B71: =IF(COUNT($D$7:$D$18)=0,"",IF(ISNA(LOOKUP(C71,$D$7:$D$18,{1,2,3,4,5,6,7,8,9,10,11,12})),0,LOOKUP(C71,$D$7:$D$18,{1,2,3,4,5,6,7,8,9,10,11,12}))) -> 1 | C71: 4.7 | D71: 4.676938776 | F71: =IF(COUNT($D$7:$D$18)=0,"",IF(ISNA(LOOKUP(G71,$D$7:$D$18,{1,2,3,4,5,6,7,8,9,10,11,12})),0,LOOKUP(G71,$D$7:$D$18,{1,2,3,4,5,6,7,8,9,10,11,12}))) -> 2 | G71: 9.7 | H71: 9.6988 | J71: =IF(COUNT($D$7:$D$18)=0,"",IF(ISNA(LOOKUP(K71,$D$7:$D$18,{1,2,3,4,5,6,7,8,9,10,11,12})),0,LOOKUP(K71,$D$7:$D$18,{1,2,3,4,5,6,7,8,9,10,11,12}))) -> 4 | K71: 16.2 | L71: 16.2148 | N71: =IF(COUNT($D$7:$D$18)=0,"",IF(ISNA(LOOKUP(O71,$D$7:$D$18,{1,2,3,4,5,6,7,8,9,10,11,12})),0,LOOKUP(O71,$D$7:$D$18,{1,2,3,4,5,6,7,8,9,10,11,12}))) -> 5 | O71: 22.7 | P71: 22.6625 | R71: =IF(COUNT($D$7:$D$18)=0,"",IF(ISNA(LOOKUP(S71,$D$7:$D$18,{1,2,3,4,5,6,7,8,9,10,11,12})),0,LOOKUP(S71,$D$7:$D$18,{1,2,3,4,5,6,7,8,9,10,11,12}))) -> 6 | S71: 29.2 | T71: 29.1 | V71: =IF(COUNT($D$7:$D$18)=0,"",IF(ISNA(LOOKUP(W71,$D$7:$D$18,{1,2,3,4,5,6,7,8,9,10,11,12})),0,LOOKUP(W71,$D$7:$D$18,{1,2,3,4,5,6,7,8,9,10,11,12}))) -> 6 | W71: 35.7 | X71: 35.6 | Y71: =IF(ISNA(MATCH($E$1,OFFSET('Temperature Checks'!$A$6,SUM($Y$1:$Y70),0,495-SUM($Y$1:$Y70),1),0)),0,MATCH($E$1,OFFSET('Temperature Checks'!$A$6,SUM($Y$1:$Y70),0,495-SUM($Y$1:$Y70),1),0)) -> 0 | Z71: =IF($Y71=0,"",INDEX('Temperature Checks'!$B$6:$B$500,SUM($Y$1:$Y71))) -> 
B72: =IF(COUNT($D$7:$D$18)=0,"",IF(ISNA(LOOKUP(C72,$D$7:$D$18,{1,2,3,4,5,6,7,8,9,10,11,12})),0,LOOKUP(C72,$D$7:$D$18,{1,2,3,4,5,6,7,8,9,10,11,12}))) -> 1 | C72: 4.8 | D72: 4.777959184 | F72: =IF(COUNT($D$7:$D$18)=0,"",IF(ISNA(LOOKUP(G72,$D$7:$D$18,{1,2,3,4,5,6,7,8,9,10,11,12})),0,LOOKUP(G72,$D$7:$D$18,{1,2,3,4,5,6,7,8,9,10,11,12}))) -> 2 | G72: 9.8 | H72: 9.7992 | J72: =IF(COUNT($D$7:$D$18)=0,"",IF(ISNA(LOOKUP(K72,$D$7:$D$18,{1,2,3,4,5,6,7,8,9,10,11,12})),0,LOOKUP(K72,$D$7:$D$18,{1,2,3,4,5,6,7,8,9,10,11,12}))) -> 4 | K72: 16.3 | L72: 16.3152 | N72: =IF(COUNT($D$7:$D$18)=0,"",IF(ISNA(LOOKUP(O72,$D$7:$D$18,{1,2,3,4,5,6,7,8,9,10,11,12})),0,LOOKUP(O72,$D$7:$D$18,{1,2,3,4,5,6,7,8,9,10,11,12}))) -> 5 | O72: 22.8 | P72: 22.76 | R72: =IF(COUNT($D$7:$D$18)=0,"",IF(ISNA(LOOKUP(S72,$D$7:$D$18,{1,2,3,4,5,6,7,8,9,10,11,12})),0,LOOKUP(S72,$D$7:$D$18,{1,2,3,4,5,6,7,8,9,10,11,12}))) -> 6 | S72: 29.3 | T72: 29.2 | V72: =IF(COUNT($D$7:$D$18)=0,"",IF(ISNA(LOOKUP(W72,$D$7:$D$18,{1,2,3,4,5,6,7,8,9,10,11,12})),0,LOOKUP(W72,$D$7:$D$18,{1,2,3,4,5,6,7,8,9,10,11,12}))) -> 6 | W72: 35.8 | X72: 35.7 | Y72: =IF(ISNA(MATCH($E$1,OFFSET('Temperature Checks'!$A$6,SUM($Y$1:$Y71),0,495-SUM($Y$1:$Y71),1),0)),0,MATCH($E$1,OFFSET('Temperature Checks'!$A$6,SUM($Y$1:$Y71),0,495-SUM($Y$1:$Y71),1),0)) -> 0 | Z72: =IF($Y72=0,"",INDEX('Temperature Checks'!$B$6:$B$500,SUM($Y$1:$Y72))) -> 
B73: =IF(COUNT($D$7:$D$18)=0,"",IF(ISNA(LOOKUP(C73,$D$7:$D$18,{1,2,3,4,5,6,7,8,9,10,11,12})),0,LOOKUP(C73,$D$7:$D$18,{1,2,3,4,5,6,7,8,9,10,11,12}))) -> 1 | C73: 4.9 | D73: 4.878979592 | F73: =IF(COUNT($D$7:$D$18)=0,"",IF(ISNA(LOOKUP(G73,$D$7:$D$18,{1,2,3,4,5,6,7,8,9,10,11,12})),0,LOOKUP(G73,$D$7:$D$18,{1,2,3,4,5,6,7,8,9,10,11,12}))) -> 2 | G73: 9.9 | H73: 9.8996 | J73: =IF(COUNT($D$7:$D$18)=0,"",IF(ISNA(LOOKUP(K73,$D$7:$D$18,{1,2,3,4,5,6,7,8,9,10,11,12})),0,LOOKUP(K73,$D$7:$D$18,{1,2,3,4,5,6,7,8,9,10,11,12}))) -> 4 | K73: 16.4 | L73: =IF(COUNT($D$7:$D$18)=0,"",IF(J73=0,K73-$G$7,IF(J73=COUNT($D$7:$D$18),K73-INDEX($G$7:$G$18,COUNT($D$7:$D$18)),K73-(INDEX($G$7:$G$18,J73)+(INDEX($G$7:$G$18,J73+1)-INDEX($G$7:$G$18,J73))*(K73-INDEX($D$7:$D$18,J73))/(INDEX($D$7:$D$18,J73+1)-INDEX($D$7:$D$18,J73)))))) -> 16.4156 | N73: =IF(COUNT($D$7:$D$18)=0,"",IF(ISNA(LOOKUP(O73,$D$7:$D$18,{1,2,3,4,5,6,7,8,9,10,11,12})),0,LOOKUP(O73,$D$7:$D$18,{1,2,3,4,5,6,7,8,9,10,11,12}))) -> 5 | O73: 22.9 | P73: =IF(COUNT($D$7:$D$18)=0,"",IF(N73=0,O73-$G$7,IF(N73=COUNT($D$7:$D$18),O73-INDEX($G$7:$G$18,COUNT($D$7:$D$18)),O73-(INDEX($G$7:$G$18,N73)+(INDEX($G$7:$G$18,N73+1)-INDEX($G$7:$G$18,N73))*(O73-INDEX($D$7:$D$18,N73))/(INDEX($D$7:$D$18,N73+1)-INDEX($D$7:$D$18,N73)))))) -> 22.8575 | R73: =IF(COUNT($D$7:$D$18)=0,"",IF(ISNA(LOOKUP(S73,$D$7:$D$18,{1,2,3,4,5,6,7,8,9,10,11,12})),0,LOOKUP(S73,$D$7:$D$18,{1,2,3,4,5,6,7,8,9,10,11,12}))) -> 6 | S73: 29.4 | T73: 29.3 | V73: =IF(COUNT($D$7:$D$18)=0,"",IF(ISNA(LOOKUP(W73,$D$7:$D$18,{1,2,3,4,5,6,7,8,9,10,11,12})),0,LOOKUP(W73,$D$7:$D$18,{1,2,3,4,5,6,7,8,9,10,11,12}))) -> 6 | W73: 35.9 | X73: 35.8 | Y73: =IF(ISNA(MATCH($E$1,OFFSET('Temperature Checks'!$A$6,SUM($Y$1:$Y72),0,495-SUM($Y$1:$Y72),1),0)),0,MATCH($E$1,OFFSET('Temperature Checks'!$A$6,SUM($Y$1:$Y72),0,495-SUM($Y$1:$Y72),1),0)) -> 0 | Z73: =IF($Y73=0,"",INDEX('Temperature Checks'!$B$6:$B$500,SUM($Y$1:$Y73))) -> 
